{"text_format":"1","workbook":"xlsx","n_sheets":12,"sheets":["ACCUEIL","Suivi activité","Analyse globale","Analyses LIONEL","Analyse CA global","OBJECTIFS","Analyses Tiphaine","Analyses Vanessa","Analyses Cléa","Analyses Marc","Analyses Team Duo de Choc","paramètres"],"not_rendered":{"charts":0,"images":0,"macros":1,"external_links":0,"defined_names":4,"comments":0,"pivot_tables":0},"unopened":[],"bounds":{"document_bytes":16777216,"sheet_cells":100000,"rows_first":2000,"rows_last":500,"rows_between":2000,"halvings":0,"cell_chars":16384,"cell_head_chars":4096},"cells_cut":0,"cells_raw":0,"read":"whole","date_system":"1900"}

{"sheet":"ACCUEIL","index":0,"n_rows":0,"n_cols":0,"rows_kept":0,"cut":false,"hidden":false,"merged":[]}

{"sheet":"Suivi activité","index":1,"n_rows":13,"n_cols":23,"rows_kept":13,"cut":false,"hidden":true,"merged":[[2,0,2,11],[2,12,2,15],[2,16,2,20]]}
["Tableau de suivi d'activité commerciale année 2023"]
[]
["PROSPECT",null,null,null,null,null,null,null,null,null,null,null,"ESTIMATION",null,null,null,"PROJET SIGNES",null,null,null,null,"PROJET PERDU /  SUSPENDU"]
["Statut actuel","Nom","Prénom","Adresse","Code Postal","Ville","Tél","Mail","Source du prospect","Date de 1er Contact","Mois","Négo","R1","Mois2","R2","Mois3","Date de Mandat","Compromis","Mois de signature","Acte Vente","Mois de signature4","Mois5","Commentaires"]
["Vente annulée","DURAND","Henri","chemin du puits",74140,"SCIEZ",null,null,"Appel direct","2022-12-12","DÉCEMBRE","Lionel","Oui","Décembre",null,"DÉCEMBRE","2022-12-01",300000,"Décembre"]
["TEL, SMS","JACOB","Michel",null,74140,"BONS",null,null,"Prospection","2022-09-09","SEPTEMBRE","Tiphaine","Oui",null,"Oui","OCTOBRE","2022-10-27"]
["Vendu","THABUIS","Sandra","34 route de conches",74140,"MASSONGY",null,null,"Appel agence",null,"FÉVRIER","Cléa","Oui",null,null,null,"2022-01-01",650000,"Avril",650000,"Juillet"]
["Abandonné","AAAAA","eeee",null,null,null,null,null,"e-mail",null,"FÉVRIER","Lionel","non"]
["Mandat","CCCC","ffff",null,null,null,null,null,"Site Internet",null,"FÉVRIER","Lionel"]
["Vente annulée","BBB","iiii",null,null,null,null,null,"Appel direct",null,"JANVIER","Marc"]
["Mandat","ZZZZ","oooo",null,null,null,null,null,"Prospection",null,"DÉCEMBRE","Vanessa"]
["Stand-by",null,null,null,null,null,null,null,"e-mail",null,"FÉVRIER","Team Duo de Choc"]
["Sous compromis","rrr","rrr",null,null,null,null,null,"Prospection",null,"DÉCEMBRE","Lionel",null,null,null,null,null,250000,"SEPTEMBRE",250000,"DÉCEMBRE"]

{"sheet":"Analyse globale","index":2,"n_rows":35,"n_cols":14,"rows_kept":35,"cut":false,"hidden":true,"merged":[]}
["Analyse Globale"]
[]
[]
[]
[null,"Analyse de l'origine des prospects (global)"]
["Origine","JANVIER","FÉVRIER","MARS","AVRIL","MAI","JUIN","JUILLET","AOÛT","SEPTEMBRE","OCTOBRE","NOVEMBRE","DÉCEMBRE","TOTAL"]
[{"$f":"IF(ISBLANK(paramètres!A5),\"\",paramètres!A5)","v":"Appel direct"},{"$f":"COUNTIFS(Tableau3[Source du prospect],$A$7,Tableau3[Mois],$B$6)","v":1},{"$f":"COUNTIFS(Tableau3[Source du prospect],$A$7,Tableau3[Mois],$C$6)","v":0},{"$f":"COUNTIFS(Tableau3[Source du prospect],$A$7,Tableau3[Mois],$D$6)","v":0},{"$f":"COUNTIFS(Tableau3[Source du prospect],$A$7,Tableau3[Mois],$E$6)","v":0},{"$f":"COUNTIFS(Tableau3[Source du prospect],$A$7,Tableau3[Mois],$F$6)","v":0},{"$f":"COUNTIFS(Tableau3[Source du prospect],$A$7,Tableau3[Mois],$G$6)","v":0},{"$f":"COUNTIFS(Tableau3[Source du prospect],$A$7,Tableau3[Mois],$H$6)","v":0},{"$f":"COUNTIFS(Tableau3[Source du prospect],$A$7,Tableau3[Mois],$I$6)","v":0},{"$f":"COUNTIFS(Tableau3[Source du prospect],$A$7,Tableau3[Mois],$J$6)","v":0},{"$f":"COUNTIFS(Tableau3[Source du prospect],$A$7,Tableau3[Mois],$K$6)","v":0},{"$f":"COUNTIFS(Tableau3[Source du prospect],$A$7,Tableau3[Mois],$L$6)","v":0},{"$f":"COUNTIFS(Tableau3[Source du prospect],$A$7,Tableau3[Mois],$M$6)","v":1},{"$f":"SUM(B7:M7)","v":2}]
[{"$f":"IF(ISBLANK(paramètres!A6),\"\",paramètres!A6)","v":"e-mail"},{"$f":"COUNTIFS(Tableau3[Source du prospect],$A$8,Tableau3[Mois],$B$6)","v":0},{"$f":"COUNTIFS(Tableau3[Source du prospect],$A$8,Tableau3[Mois],$C$6)","v":2},{"$f":"COUNTIFS(Tableau3[Source du prospect],$A$8,Tableau3[Mois],$D$6)","v":0},{"$f":"COUNTIFS(Tableau3[Source du prospect],$A$8,Tableau3[Mois],$E$6)","v":0},{"$f":"COUNTIFS(Tableau3[Source du prospect],$A$8,Tableau3[Mois],$F$6)","v":0},{"$f":"COUNTIFS(Tableau3[Source du prospect],$A$8,Tableau3[Mois],$G$6)","v":0},{"$f":"COUNTIFS(Tableau3[Source du prospect],$A$8,Tableau3[Mois],$H$6)","v":0},{"$f":"COUNTIFS(Tableau3[Source du prospect],$A$8,Tableau3[Mois],$I$6)","v":0},{"$f":"COUNTIFS(Tableau3[Source du prospect],$A$8,Tableau3[Mois],$J$6)","v":0},{"$f":"COUNTIFS(Tableau3[Source du prospect],$A$8,Tableau3[Mois],$K$6)","v":0},{"$f":"COUNTIFS(Tableau3[Source du prospect],$A$8,Tableau3[Mois],$L$6)","v":0},{"$f":"COUNTIFS(Tableau3[Source du prospect],$A$8,Tableau3[Mois],$M$6)","v":0},{"$f":"SUM(B8:M8)","v":2}]
[{"$f":"IF(ISBLANK(paramètres!A7),\"\",paramètres!A7)","v":"Prospection"},{"$f":"COUNTIFS(Tableau3[Source du prospect],$A$9,Tableau3[Mois],$B$6)","v":0},{"$f":"COUNTIFS(Tableau3[Source du prospect],$A$9,Tableau3[Mois],$C$6)","v":0},{"$f":"COUNTIFS(Tableau3[Source du prospect],$A$9,Tableau3[Mois],$D$6)","v":0},{"$f":"COUNTIFS(Tableau3[Source du prospect],$A$9,Tableau3[Mois],$E$6)","v":0},{"$f":"COUNTIFS(Tableau3[Source du prospect],$A$9,Tableau3[Mois],$F$6)","v":0},{"$f":"COUNTIFS(Tableau3[Source du prospect],$A$9,Tableau3[Mois],$G$6)","v":0},{"$f":"COUNTIFS(Tableau3[Source du prospect],$A$9,Tableau3[Mois],$H$6)","v":0},{"$f":"COUNTIFS(Tableau3[Source du prospect],$A$9,Tableau3[Mois],$I$6)","v":0},{"$f":"COUNTIFS(Tableau3[Source du prospect],$A$9,Tableau3[Mois],$J$6)","v":1},{"$f":"COUNTIFS(Tableau3[Source du prospect],$A$9,Tableau3[Mois],$K$6)","v":0},{"$f":"COUNTIFS(Tableau3[Source du prospect],$A$9,Tableau3[Mois],$L$6)","v":0},{"$f":"COUNTIFS(Tableau3[Source du prospect],$A$9,Tableau3[Mois],$M$6)","v":2},3]
[{"$f":"IF(ISBLANK(paramètres!A8),\"\",paramètres!A8)","v":"Site Internet"},{"$f":"COUNTIFS(Tableau3[Source du prospect],$A$10,Tableau3[Mois],$B$6)","v":0},{"$f":"COUNTIFS(Tableau3[Source du prospect],$A$10,Tableau3[Mois],$C$6)","v":1},{"$f":"COUNTIFS(Tableau3[Source du prospect],$A$10,Tableau3[Mois],$D$6)","v":0},{"$f":"COUNTIFS(Tableau3[Source du prospect],$A$10,Tableau3[Mois],$E$6)","v":0},{"$f":"COUNTIFS(Tableau3[Source du prospect],$A$10,Tableau3[Mois],$F$6)","v":0},{"$f":"COUNTIFS(Tableau3[Source du prospect],$A$10,Tableau3[Mois],$G$6)","v":0},{"$f":"COUNTIFS(Tableau3[Source du prospect],$A$10,Tableau3[Mois],$H$6)","v":0},{"$f":"COUNTIFS(Tableau3[Source du prospect],$A$10,Tableau3[Mois],$I$6)","v":0},{"$f":"COUNTIFS(Tableau3[Source du prospect],$A$10,Tableau3[Mois],$J$6)","v":0},{"$f":"COUNTIFS(Tableau3[Source du prospect],$A$10,Tableau3[Mois],$K$6)","v":0},{"$f":"COUNTIFS(Tableau3[Source du prospect],$A$10,Tableau3[Mois],$L$6)","v":0},{"$f":"COUNTIFS(Tableau3[Source du prospect],$A$10,Tableau3[Mois],$M$6)","v":0},1]
[{"$f":"IF(ISBLANK(paramètres!A9),\"\",paramètres!A9)","v":"Appel agence"},{"$f":"COUNTIFS(Tableau3[Source du prospect],$A$11,Tableau3[Mois],$B$6)","v":0},{"$f":"COUNTIFS(Tableau3[Source du prospect],$A$11,Tableau3[Mois],$C$6)","v":1},{"$f":"COUNTIFS(Tableau3[Source du prospect],$A$11,Tableau3[Mois],$D$6)","v":0},{"$f":"COUNTIFS(Tableau3[Source du prospect],$A$11,Tableau3[Mois],$E$6)","v":0},{"$f":"COUNTIFS(Tableau3[Source du prospect],$A$11,Tableau3[Mois],$F$6)","v":0},{"$f":"COUNTIFS(Tableau3[Source du prospect],$A$11,Tableau3[Mois],$G$6)","v":0},{"$f":"COUNTIFS(Tableau3[Source du prospect],$A$11,Tableau3[Mois],$H$6)","v":0},{"$f":"COUNTIFS(Tableau3[Source du prospect],$A$11,Tableau3[Mois],$I$6)","v":0},{"$f":"COUNTIFS(Tableau3[Source du prospect],$A$11,Tableau3[Mois],$J$6)","v":0},{"$f":"COUNTIFS(Tableau3[Source du prospect],$A$11,Tableau3[Mois],$K$6)","v":0},{"$f":"COUNTIFS(Tableau3[Source du prospect],$A$11,Tableau3[Mois],$L$6)","v":0},{"$f":"COUNTIFS(Tableau3[Source du prospect],$A$11,Tableau3[Mois],$M$6)","v":0},1]
[{"$f":"IF(ISBLANK(paramètres!A10),\"\",paramètres!A10)","v":""},null,null,null,null,null,null,null,null,null,null,null,null,0]
[{"$f":"IF(ISBLANK(paramètres!A11),\"\",paramètres!A11)","v":""},null,null,null,null,null,null,null,null,null,null,null,null,0]
[{"$f":"IF(ISBLANK(paramètres!A12),\"\",paramètres!A12)","v":""},null,null,null,null,null,null,null,null,null,null,null,null,0]
[{"$f":"IF(ISBLANK(paramètres!A13),\"\",paramètres!A15)","v":""},null,null,null,null,null,null,null,null,null,null,null,null,0]
[{"$f":"IF(ISBLANK(paramètres!A14),\"\",paramètres!A16)","v":""},null,null,null,null,null,null,null,null,null,null,null,null,0]
[{"$f":"IF(ISBLANK(paramètres!A15),\"\",paramètres!A17)","v":""},null,null,null,null,null,null,null,null,null,null,null,null,0]
[{"$f":"IF(ISBLANK(paramètres!A16),\"\",paramètres!A18)","v":""},null,null,null,null,null,null,null,null,null,null,null,null,0]
["TOTAL",{"$f":"SUM(B7:B18)","v":1},{"$f":"SUM(C7:C18)","v":4},0,0,0,0,0,0,1,0,0,3,{"$f":"SUM(N7:N18)","v":9}]
[]
["Statut des dossiers (global)"]
["Statuts","Nombre","Pourcentage"]
[{"$f":"IF(ISBLANK(paramètres!C5),\"\",paramètres!C5)","v":"TEL, SMS"},{"$f":"COUNTIF(Tableau3[Statut actuel],A23)","v":1},{"$f":"IF(ISERROR(B23/$B$35),\"\",B23/$B$35)","v":0.1111111111111111}]
[{"$f":"IF(ISBLANK(paramètres!C6),\"\",paramètres!C6)","v":"Porte à porte"},{"$f":"COUNTIF(Tableau3[Statut actuel],A24)","v":0},{"$f":"IF(ISERROR(B24/$B$35),\"\",B24/$B$35)","v":0}]
[{"$f":"IF(ISBLANK(paramètres!C7),\"\",paramètres!C7)","v":"R1"},{"$f":"COUNTIF(Tableau3[Statut actuel],A25)","v":0},0]
[{"$f":"IF(ISBLANK(paramètres!C8),\"\",paramètres!C8)","v":"R2"},{"$f":"COUNTIF(Tableau3[Statut actuel],A26)","v":0},0]
[{"$f":"IF(ISBLANK(paramètres!C9),\"\",paramètres!C9)","v":"Estimation faite"},{"$f":"COUNTIF(Tableau3[Statut actuel],A27)","v":0},0]
[{"$f":"IF(ISBLANK(paramètres!C10),\"\",paramètres!C10)","v":"Sous compromis"},{"$f":"COUNTIF(Tableau3[Statut actuel],A28)","v":1},0.1111111111111111]
[{"$f":"IF(ISBLANK(paramètres!C11),\"\",paramètres!C11)","v":"Vendu"},{"$f":"COUNTIF(Tableau3[Statut actuel],A29)","v":1},0.1111111111111111]
[{"$f":"IF(ISBLANK(paramètres!C12),\"\",paramètres!C12)","v":"Vente annulée"},{"$f":"COUNTIF(Tableau3[Statut actuel],A30)","v":2},0.22222222222222221]
[{"$f":"IF(ISBLANK(paramètres!C13),\"\",paramètres!C13)","v":"Abandonné"},{"$f":"COUNTIF(Tableau3[Statut actuel],A31)","v":1},0.1111111111111111]
[{"$f":"IF(ISBLANK(paramètres!C14),\"\",paramètres!C14)","v":"Stand-by"},{"$f":"COUNTIF(Tableau3[Statut actuel],A32)","v":1},0.1111111111111111]
[{"$f":"IF(ISBLANK(paramètres!C15),\"\",paramètres!C15)","v":"Sans Suite"},{"$f":"COUNTIF(Tableau3[Statut actuel],A33)","v":0},0]
[{"$f":"IF(ISBLANK(paramètres!C16),\"\",paramètres!C16)","v":"Mandat"},{"$f":"COUNTIF(Tableau3[Statut actuel],A34)","v":2},0.22222222222222221]
["TOTAL",{"$f":"SUM(B23:B34)","v":9},{"$f":"SUM(C23:C34)","v":1}]

{"sheet":"Analyses LIONEL","index":3,"n_rows":59,"n_cols":15,"rows_kept":59,"cut":false,"hidden":true,"merged":[]}
["Analyses par commercial"]
[]
[]
[null,null,null,null,null,"Sélectionnez nom du négociateur:","Lionel"]
[]
["Analyse de l'origine des prospects par commercial"]
["Origine","JANVIER","FÉVRIER","MARS","AVRIL","MAI","JUIN","JUILLET","AOÛT","SEPTEMBRE","OCTOBRE","NOVEMBRE","DÉCEMBRE","TOTAL","Pourcentage"]
[{"$f":"IF(ISBLANK(paramètres!A5),\"\",paramètres!A5)","v":"Appel direct"},{"$f":"COUNTIFS(Tableau3[Source du prospect],'Analyses LIONEL'!A8,Tableau3[Mois],'Analyses LIONEL'!$B$7,Tableau3[Négo],paramètres!$B$5)","v":0},{"$f":"COUNTIFS(Tableau3[Source du prospect],'Analyses LIONEL'!A8,Tableau3[Mois],'Analyses LIONEL'!$C$7,Tableau3[Négo],paramètres!$B$5)","v":0},{"$f":"COUNTIFS(Tableau3[Source du prospect],'Analyses LIONEL'!A8,Tableau3[Mois],'Analyses LIONEL'!$D$7,Tableau3[Négo],paramètres!$B$5)","v":0},{"$f":"COUNTIFS(Tableau3[Source du prospect],'Analyses LIONEL'!A8,Tableau3[Mois],'Analyses LIONEL'!$E$7,Tableau3[Négo],paramètres!$B$5)","v":0},{"$f":"COUNTIFS(Tableau3[Source du prospect],'Analyses LIONEL'!A8,Tableau3[Mois],'Analyses LIONEL'!$F$7,Tableau3[Négo],paramètres!$B$5)","v":0},{"$f":"COUNTIFS(Tableau3[Source du prospect],'Analyses LIONEL'!A8,Tableau3[Mois],'Analyses LIONEL'!$G$7,Tableau3[Négo],paramètres!$B$5)","v":0},{"$f":"COUNTIFS(Tableau3[Source du prospect],'Analyses LIONEL'!A8,Tableau3[Mois],'Analyses LIONEL'!$H$7,Tableau3[Négo],paramètres!$B$5)","v":0},{"$f":"COUNTIFS(Tableau3[Source du prospect],'Analyses LIONEL'!A8,Tableau3[Mois],'Analyses LIONEL'!$I$7,Tableau3[Négo],paramètres!$B$5)","v":0},{"$f":"COUNTIFS(Tableau3[Source du prospect],'Analyses LIONEL'!A8,Tableau3[Mois],'Analyses LIONEL'!$J$7,Tableau3[Négo],paramètres!$B$5)","v":0},{"$f":"COUNTIFS(Tableau3[Source du prospect],'Analyses LIONEL'!A8,Tableau3[Mois],'Analyses LIONEL'!$K$7,Tableau3[Négo],paramètres!$B$5)","v":0},{"$f":"COUNTIFS(Tableau3[Source du prospect],'Analyses LIONEL'!A8,Tableau3[Mois],'Analyses LIONEL'!$L$7,Tableau3[Négo],paramètres!$B$5)","v":0},{"$f":"COUNTIFS(Tableau3[Source du prospect],'Analyses LIONEL'!A8,Tableau3[Mois],'Analyses LIONEL'!$M$7,Tableau3[Négo],paramètres!$B$5)","v":1},{"$f":"SUM(B8:M8)","v":1}]
[{"$f":"IF(ISBLANK(paramètres!A6),\"\",paramètres!A6)","v":"e-mail"},{"$f":"COUNTIFS(Tableau3[Source du prospect],'Analyses LIONEL'!A9,Tableau3[Mois],'Analyses LIONEL'!$B$7,Tableau3[Négo],paramètres!$B$5)","v":0},{"$f":"COUNTIFS(Tableau3[Source du prospect],'Analyses LIONEL'!A9,Tableau3[Mois],'Analyses LIONEL'!$C$7,Tableau3[Négo],paramètres!$B$5)","v":1},{"$f":"COUNTIFS(Tableau3[Source du prospect],'Analyses LIONEL'!A9,Tableau3[Mois],'Analyses LIONEL'!$D$7,Tableau3[Négo],paramètres!$B$5)","v":0},{"$f":"COUNTIFS(Tableau3[Source du prospect],'Analyses LIONEL'!A9,Tableau3[Mois],'Analyses LIONEL'!$E$7,Tableau3[Négo],paramètres!$B$5)","v":0},{"$f":"COUNTIFS(Tableau3[Source du prospect],'Analyses LIONEL'!A9,Tableau3[Mois],'Analyses LIONEL'!$F$7,Tableau3[Négo],paramètres!$B$5)","v":0},{"$f":"COUNTIFS(Tableau3[Source du prospect],'Analyses LIONEL'!A9,Tableau3[Mois],'Analyses LIONEL'!$G$7,Tableau3[Négo],paramètres!$B$5)","v":0},{"$f":"COUNTIFS(Tableau3[Source du prospect],'Analyses LIONEL'!A9,Tableau3[Mois],'Analyses LIONEL'!$H$7,Tableau3[Négo],paramètres!$B$5)","v":0},{"$f":"COUNTIFS(Tableau3[Source du prospect],'Analyses LIONEL'!A9,Tableau3[Mois],'Analyses LIONEL'!$I$7,Tableau3[Négo],paramètres!$B$5)","v":0},{"$f":"COUNTIFS(Tableau3[Source du prospect],'Analyses LIONEL'!A9,Tableau3[Mois],'Analyses LIONEL'!$J$7,Tableau3[Négo],paramètres!$B$5)","v":0},{"$f":"COUNTIFS(Tableau3[Source du prospect],'Analyses LIONEL'!A9,Tableau3[Mois],'Analyses LIONEL'!$K$7,Tableau3[Négo],paramètres!$B$5)","v":0},{"$f":"COUNTIFS(Tableau3[Source du prospect],'Analyses LIONEL'!A9,Tableau3[Mois],'Analyses LIONEL'!$L$7,Tableau3[Négo],paramètres!$B$5)","v":0},{"$f":"COUNTIFS(Tableau3[Source du prospect],'Analyses LIONEL'!A9,Tableau3[Mois],'Analyses LIONEL'!$M$7,Tableau3[Négo],paramètres!$B$5)","v":0},{"$f":"SUM(B9:M9)","v":1}]
[{"$f":"IF(ISBLANK(paramètres!A7),\"\",paramètres!A7)","v":"Prospection"},{"$f":"COUNTIFS(Tableau3[Source du prospect],'Analyses LIONEL'!A10,Tableau3[Mois],'Analyses LIONEL'!$B$7,Tableau3[Négo],paramètres!$B$5)","v":0},{"$f":"COUNTIFS(Tableau3[Source du prospect],'Analyses LIONEL'!A10,Tableau3[Mois],'Analyses LIONEL'!$C$7,Tableau3[Négo],paramètres!$B$5)","v":0},{"$f":"COUNTIFS(Tableau3[Source du prospect],'Analyses LIONEL'!A10,Tableau3[Mois],'Analyses LIONEL'!$D$7,Tableau3[Négo],paramètres!$B$5)","v":0},{"$f":"COUNTIFS(Tableau3[Source du prospect],'Analyses LIONEL'!A10,Tableau3[Mois],'Analyses LIONEL'!$E$7,Tableau3[Négo],paramètres!$B$5)","v":0},{"$f":"COUNTIFS(Tableau3[Source du prospect],'Analyses LIONEL'!A10,Tableau3[Mois],'Analyses LIONEL'!$F$7,Tableau3[Négo],paramètres!$B$5)","v":0},{"$f":"COUNTIFS(Tableau3[Source du prospect],'Analyses LIONEL'!A10,Tableau3[Mois],'Analyses LIONEL'!$G$7,Tableau3[Négo],paramètres!$B$5)","v":0},{"$f":"COUNTIFS(Tableau3[Source du prospect],'Analyses LIONEL'!A10,Tableau3[Mois],'Analyses LIONEL'!$H$7,Tableau3[Négo],paramètres!$B$5)","v":0},{"$f":"COUNTIFS(Tableau3[Source du prospect],'Analyses LIONEL'!A10,Tableau3[Mois],'Analyses LIONEL'!$I$7,Tableau3[Négo],paramètres!$B$5)","v":0},{"$f":"COUNTIFS(Tableau3[Source du prospect],'Analyses LIONEL'!A10,Tableau3[Mois],'Analyses LIONEL'!$J$7,Tableau3[Négo],paramètres!$B$5)","v":0},{"$f":"COUNTIFS(Tableau3[Source du prospect],'Analyses LIONEL'!A10,Tableau3[Mois],'Analyses LIONEL'!$K$7,Tableau3[Négo],paramètres!$B$5)","v":0},{"$f":"COUNTIFS(Tableau3[Source du prospect],'Analyses LIONEL'!A10,Tableau3[Mois],'Analyses LIONEL'!$L$7,Tableau3[Négo],paramètres!$B$5)","v":0},{"$f":"COUNTIFS(Tableau3[Source du prospect],'Analyses LIONEL'!A10,Tableau3[Mois],'Analyses LIONEL'!$M$7,Tableau3[Négo],paramètres!$B$5)","v":1},1]
[{"$f":"IF(ISBLANK(paramètres!A8),\"\",paramètres!A8)","v":"Site Internet"},{"$f":"COUNTIFS(Tableau3[Source du prospect],'Analyses LIONEL'!A11,Tableau3[Mois],'Analyses LIONEL'!$B$7,Tableau3[Négo],paramètres!$B$5)","v":0},{"$f":"COUNTIFS(Tableau3[Source du prospect],'Analyses LIONEL'!A11,Tableau3[Mois],'Analyses LIONEL'!$C$7,Tableau3[Négo],paramètres!$B$5)","v":1},{"$f":"COUNTIFS(Tableau3[Source du prospect],'Analyses LIONEL'!A11,Tableau3[Mois],'Analyses LIONEL'!$D$7,Tableau3[Négo],paramètres!$B$5)","v":0},{"$f":"COUNTIFS(Tableau3[Source du prospect],'Analyses LIONEL'!A11,Tableau3[Mois],'Analyses LIONEL'!$E$7,Tableau3[Négo],paramètres!$B$5)","v":0},{"$f":"COUNTIFS(Tableau3[Source du prospect],'Analyses LIONEL'!A11,Tableau3[Mois],'Analyses LIONEL'!$F$7,Tableau3[Négo],paramètres!$B$5)","v":0},{"$f":"COUNTIFS(Tableau3[Source du prospect],'Analyses LIONEL'!A11,Tableau3[Mois],'Analyses LIONEL'!$G$7,Tableau3[Négo],paramètres!$B$5)","v":0},{"$f":"COUNTIFS(Tableau3[Source du prospect],'Analyses LIONEL'!A11,Tableau3[Mois],'Analyses LIONEL'!$H$7,Tableau3[Négo],paramètres!$B$5)","v":0},{"$f":"COUNTIFS(Tableau3[Source du prospect],'Analyses LIONEL'!A11,Tableau3[Mois],'Analyses LIONEL'!$I$7,Tableau3[Négo],paramètres!$B$5)","v":0},{"$f":"COUNTIFS(Tableau3[Source du prospect],'Analyses LIONEL'!A11,Tableau3[Mois],'Analyses LIONEL'!$J$7,Tableau3[Négo],paramètres!$B$5)","v":0},{"$f":"COUNTIFS(Tableau3[Source du prospect],'Analyses LIONEL'!A11,Tableau3[Mois],'Analyses LIONEL'!$K$7,Tableau3[Négo],paramètres!$B$5)","v":0},{"$f":"COUNTIFS(Tableau3[Source du prospect],'Analyses LIONEL'!A11,Tableau3[Mois],'Analyses LIONEL'!$L$7,Tableau3[Négo],paramètres!$B$5)","v":0},{"$f":"COUNTIFS(Tableau3[Source du prospect],'Analyses LIONEL'!A11,Tableau3[Mois],'Analyses LIONEL'!$M$7,Tableau3[Négo],paramètres!$B$5)","v":0},1]
[{"$f":"IF(ISBLANK(paramètres!A9),\"\",paramètres!A9)","v":"Appel agence"},{"$f":"COUNTIFS(Tableau3[Source du prospect],'Analyses LIONEL'!A12,Tableau3[Mois],'Analyses LIONEL'!$B$7,Tableau3[Négo],paramètres!$B$5)","v":0},{"$f":"COUNTIFS(Tableau3[Source du prospect],'Analyses LIONEL'!A12,Tableau3[Mois],'Analyses LIONEL'!$C$7,Tableau3[Négo],paramètres!$B$5)","v":0},{"$f":"COUNTIFS(Tableau3[Source du prospect],'Analyses LIONEL'!A12,Tableau3[Mois],'Analyses LIONEL'!$D$7,Tableau3[Négo],paramètres!$B$5)","v":0},{"$f":"COUNTIFS(Tableau3[Source du prospect],'Analyses LIONEL'!A12,Tableau3[Mois],'Analyses LIONEL'!$E$7,Tableau3[Négo],paramètres!$B$5)","v":0},{"$f":"COUNTIFS(Tableau3[Source du prospect],'Analyses LIONEL'!A12,Tableau3[Mois],'Analyses LIONEL'!$F$7,Tableau3[Négo],paramètres!$B$5)","v":0},{"$f":"COUNTIFS(Tableau3[Source du prospect],'Analyses LIONEL'!A12,Tableau3[Mois],'Analyses LIONEL'!$G$7,Tableau3[Négo],paramètres!$B$5)","v":0},{"$f":"COUNTIFS(Tableau3[Source du prospect],'Analyses LIONEL'!A12,Tableau3[Mois],'Analyses LIONEL'!$H$7,Tableau3[Négo],paramètres!$B$5)","v":0},{"$f":"COUNTIFS(Tableau3[Source du prospect],'Analyses LIONEL'!A12,Tableau3[Mois],'Analyses LIONEL'!$I$7,Tableau3[Négo],paramètres!$B$5)","v":0},{"$f":"COUNTIFS(Tableau3[Source du prospect],'Analyses LIONEL'!A12,Tableau3[Mois],'Analyses LIONEL'!$J$7,Tableau3[Négo],paramètres!$B$5)","v":0},{"$f":"COUNTIFS(Tableau3[Source du prospect],'Analyses LIONEL'!A12,Tableau3[Mois],'Analyses LIONEL'!$K$7,Tableau3[Négo],paramètres!$B$5)","v":0},{"$f":"COUNTIFS(Tableau3[Source du prospect],'Analyses LIONEL'!A12,Tableau3[Mois],'Analyses LIONEL'!$L$7,Tableau3[Négo],paramètres!$B$5)","v":0},{"$f":"COUNTIFS(Tableau3[Source du prospect],'Analyses LIONEL'!A12,Tableau3[Mois],'Analyses LIONEL'!$M$7,Tableau3[Négo],paramètres!$B$5)","v":0},0]
[{"$f":"IF(ISBLANK(paramètres!A10),\"\",paramètres!A10)","v":""},null,null,null,null,null,null,null,null,null,null,null,null,0]
[{"$f":"IF(ISBLANK(paramètres!A11),\"\",paramètres!A11)","v":""},null,null,null,null,null,null,null,null,null,null,null,null,0]
[{"$f":"IF(ISBLANK(paramètres!A12),\"\",paramètres!A12)","v":""},null,null,null,null,null,null,null,null,null,null,null,null,{"$f":"SUM(B15:M15)","v":0}]
[{"$f":"IF(ISBLANK(paramètres!A13),\"\",paramètres!A13)","v":""},null,null,null,null,null,null,null,null,null,null,null,null,0]
[{"$f":"IF(ISBLANK(paramètres!A14),\"\",paramètres!A14)","v":""},null,null,null,null,null,null,null,null,null,null,null,null,0]
[{"$f":"IF(ISBLANK(paramètres!A15),\"\",paramètres!A15)","v":""},null,null,null,null,null,null,null,null,null,null,null,null,0]
[{"$f":"IF(ISBLANK(paramètres!A16),\"\",paramètres!A16)","v":""},null,null,null,null,null,null,null,null,null,null,null,null,0]
["TOTAL",{"$f":"SUM(B8:B19)","v":0},{"$f":"SUM(C8:C19)","v":2},0,0,0,0,0,0,0,0,0,2,4,0]
[]
["Statut actuel des dossiers du négociateur"]
["Statut","JANVIER","FÉVRIER","MARS","AVRIL","MAI","JUIN","JUILLET","AOÛT","SEPTEMBRE","OCTOBRE","NOVEMBRE","DÉCEMBRE","TOTAL","Pourcentage"]
[{"$f":"IF(ISBLANK(paramètres!C5),\"\",paramètres!C5)","v":"TEL, SMS"},{"$f":"COUNTIFS(Tableau3[Statut actuel],'Analyses LIONEL'!A24,Tableau3[Mois],'Analyses LIONEL'!$B$7,Tableau3[Négo],paramètres!$B$5)","v":0},{"$f":"COUNTIFS(Tableau3[Statut actuel],'Analyses LIONEL'!A24,Tableau3[Mois],'Analyses LIONEL'!$C$7,Tableau3[Négo],paramètres!$B$5)","v":0},{"$f":"COUNTIFS(Tableau3[Statut actuel],'Analyses LIONEL'!A24,Tableau3[Mois],'Analyses LIONEL'!$D$7,Tableau3[Négo],paramètres!$B$5)","v":0},{"$f":"COUNTIFS(Tableau3[Statut actuel],'Analyses LIONEL'!A24,Tableau3[Mois],'Analyses LIONEL'!$E$7,Tableau3[Négo],paramètres!$B$5)","v":0},{"$f":"COUNTIFS(Tableau3[Statut actuel],'Analyses LIONEL'!A24,Tableau3[Mois],'Analyses LIONEL'!$F$7,Tableau3[Négo],paramètres!$B$5)","v":0},{"$f":"COUNTIFS(Tableau3[Statut actuel],'Analyses LIONEL'!A24,Tableau3[Mois],'Analyses LIONEL'!$G$7,Tableau3[Négo],paramètres!$B$5)","v":0},{"$f":"COUNTIFS(Tableau3[Statut actuel],'Analyses LIONEL'!A24,Tableau3[Mois],'Analyses LIONEL'!$H$7,Tableau3[Négo],paramètres!$B$5)","v":0},{"$f":"COUNTIFS(Tableau3[Statut actuel],'Analyses LIONEL'!A24,Tableau3[Mois],'Analyses LIONEL'!$I$7,Tableau3[Négo],paramètres!$B$5)","v":0},{"$f":"COUNTIFS(Tableau3[Statut actuel],'Analyses LIONEL'!A24,Tableau3[Mois],'Analyses LIONEL'!$J$7,Tableau3[Négo],paramètres!$B$5)","v":0},{"$f":"COUNTIFS(Tableau3[Statut actuel],'Analyses LIONEL'!A24,Tableau3[Mois],'Analyses LIONEL'!$K$7,Tableau3[Négo],paramètres!$B$5)","v":0},{"$f":"COUNTIFS(Tableau3[Statut actuel],'Analyses LIONEL'!A24,Tableau3[Mois],'Analyses LIONEL'!$L$7,Tableau3[Négo],paramètres!$B$5)","v":0},{"$f":"COUNTIFS(Tableau3[Statut actuel],'Analyses LIONEL'!A24,Tableau3[Mois],'Analyses LIONEL'!$M$7,Tableau3[Négo],paramètres!$B$5)","v":0},{"$f":"SUM(B24:M24)","v":0}]
[{"$f":"IF(ISBLANK(paramètres!C6),\"\",paramètres!C6)","v":"Porte à porte"},{"$f":"COUNTIFS(Tableau3[Statut actuel],'Analyses LIONEL'!A25,Tableau3[Mois],'Analyses LIONEL'!$B$7,Tableau3[Négo],paramètres!$B$5)","v":0},{"$f":"COUNTIFS(Tableau3[Statut actuel],'Analyses LIONEL'!A25,Tableau3[Mois],'Analyses LIONEL'!$C$7,Tableau3[Négo],paramètres!$B$5)","v":0},{"$f":"COUNTIFS(Tableau3[Statut actuel],'Analyses LIONEL'!A25,Tableau3[Mois],'Analyses LIONEL'!$D$7,Tableau3[Négo],paramètres!$B$5)","v":0},{"$f":"COUNTIFS(Tableau3[Statut actuel],'Analyses LIONEL'!A25,Tableau3[Mois],'Analyses LIONEL'!$E$7,Tableau3[Négo],paramètres!$B$5)","v":0},{"$f":"COUNTIFS(Tableau3[Statut actuel],'Analyses LIONEL'!A25,Tableau3[Mois],'Analyses LIONEL'!$F$7,Tableau3[Négo],paramètres!$B$5)","v":0},{"$f":"COUNTIFS(Tableau3[Statut actuel],'Analyses LIONEL'!A25,Tableau3[Mois],'Analyses LIONEL'!$G$7,Tableau3[Négo],paramètres!$B$5)","v":0},{"$f":"COUNTIFS(Tableau3[Statut actuel],'Analyses LIONEL'!A25,Tableau3[Mois],'Analyses LIONEL'!$H$7,Tableau3[Négo],paramètres!$B$5)","v":0},{"$f":"COUNTIFS(Tableau3[Statut actuel],'Analyses LIONEL'!A25,Tableau3[Mois],'Analyses LIONEL'!$I$7,Tableau3[Négo],paramètres!$B$5)","v":0},{"$f":"COUNTIFS(Tableau3[Statut actuel],'Analyses LIONEL'!A25,Tableau3[Mois],'Analyses LIONEL'!$J$7,Tableau3[Négo],paramètres!$B$5)","v":0},{"$f":"COUNTIFS(Tableau3[Statut actuel],'Analyses LIONEL'!A25,Tableau3[Mois],'Analyses LIONEL'!$K$7,Tableau3[Négo],paramètres!$B$5)","v":0},{"$f":"COUNTIFS(Tableau3[Statut actuel],'Analyses LIONEL'!A25,Tableau3[Mois],'Analyses LIONEL'!$L$7,Tableau3[Négo],paramètres!$B$5)","v":0},{"$f":"COUNTIFS(Tableau3[Statut actuel],'Analyses LIONEL'!A25,Tableau3[Mois],'Analyses LIONEL'!$M$7,Tableau3[Négo],paramètres!$B$5)","v":0},{"$f":"SUM(B25:M25)","v":0}]
[{"$f":"IF(ISBLANK(paramètres!C7),\"\",paramètres!C7)","v":"R1"},{"$f":"COUNTIFS(Tableau3[Statut actuel],'Analyses LIONEL'!A26,Tableau3[Mois],'Analyses LIONEL'!$B$7,Tableau3[Négo],paramètres!$B$5)","v":0},{"$f":"COUNTIFS(Tableau3[Statut actuel],'Analyses LIONEL'!A26,Tableau3[Mois],'Analyses LIONEL'!$C$7,Tableau3[Négo],paramètres!$B$5)","v":0},{"$f":"COUNTIFS(Tableau3[Statut actuel],'Analyses LIONEL'!A26,Tableau3[Mois],'Analyses LIONEL'!$D$7,Tableau3[Négo],paramètres!$B$5)","v":0},{"$f":"COUNTIFS(Tableau3[Statut actuel],'Analyses LIONEL'!A26,Tableau3[Mois],'Analyses LIONEL'!$E$7,Tableau3[Négo],paramètres!$B$5)","v":0},{"$f":"COUNTIFS(Tableau3[Statut actuel],'Analyses LIONEL'!A26,Tableau3[Mois],'Analyses LIONEL'!$F$7,Tableau3[Négo],paramètres!$B$5)","v":0},{"$f":"COUNTIFS(Tableau3[Statut actuel],'Analyses LIONEL'!A26,Tableau3[Mois],'Analyses LIONEL'!$G$7,Tableau3[Négo],paramètres!$B$5)","v":0},{"$f":"COUNTIFS(Tableau3[Statut actuel],'Analyses LIONEL'!A26,Tableau3[Mois],'Analyses LIONEL'!$H$7,Tableau3[Négo],paramètres!$B$5)","v":0},{"$f":"COUNTIFS(Tableau3[Statut actuel],'Analyses LIONEL'!A26,Tableau3[Mois],'Analyses LIONEL'!$I$7,Tableau3[Négo],paramètres!$B$5)","v":0},{"$f":"COUNTIFS(Tableau3[Statut actuel],'Analyses LIONEL'!A26,Tableau3[Mois],'Analyses LIONEL'!$J$7,Tableau3[Négo],paramètres!$B$5)","v":0},{"$f":"COUNTIFS(Tableau3[Statut actuel],'Analyses LIONEL'!A26,Tableau3[Mois],'Analyses LIONEL'!$K$7,Tableau3[Négo],paramètres!$B$5)","v":0},{"$f":"COUNTIFS(Tableau3[Statut actuel],'Analyses LIONEL'!A26,Tableau3[Mois],'Analyses LIONEL'!$L$7,Tableau3[Négo],paramètres!$B$5)","v":0},{"$f":"COUNTIFS(Tableau3[Statut actuel],'Analyses LIONEL'!A26,Tableau3[Mois],'Analyses LIONEL'!$M$7,Tableau3[Négo],paramètres!$B$5)","v":0},0]
[{"$f":"IF(ISBLANK(paramètres!C8),\"\",paramètres!C8)","v":"R2"},{"$f":"COUNTIFS(Tableau3[Statut actuel],'Analyses LIONEL'!A27,Tableau3[Mois],'Analyses LIONEL'!$B$7,Tableau3[Négo],paramètres!$B$5)","v":0},{"$f":"COUNTIFS(Tableau3[Statut actuel],'Analyses LIONEL'!A27,Tableau3[Mois],'Analyses LIONEL'!$C$7,Tableau3[Négo],paramètres!$B$5)","v":0},{"$f":"COUNTIFS(Tableau3[Statut actuel],'Analyses LIONEL'!A27,Tableau3[Mois],'Analyses LIONEL'!$D$7,Tableau3[Négo],paramètres!$B$5)","v":0},{"$f":"COUNTIFS(Tableau3[Statut actuel],'Analyses LIONEL'!A27,Tableau3[Mois],'Analyses LIONEL'!$E$7,Tableau3[Négo],paramètres!$B$5)","v":0},{"$f":"COUNTIFS(Tableau3[Statut actuel],'Analyses LIONEL'!A27,Tableau3[Mois],'Analyses LIONEL'!$F$7,Tableau3[Négo],paramètres!$B$5)","v":0},{"$f":"COUNTIFS(Tableau3[Statut actuel],'Analyses LIONEL'!A27,Tableau3[Mois],'Analyses LIONEL'!$G$7,Tableau3[Négo],paramètres!$B$5)","v":0},{"$f":"COUNTIFS(Tableau3[Statut actuel],'Analyses LIONEL'!A27,Tableau3[Mois],'Analyses LIONEL'!$H$7,Tableau3[Négo],paramètres!$B$5)","v":0},{"$f":"COUNTIFS(Tableau3[Statut actuel],'Analyses LIONEL'!A27,Tableau3[Mois],'Analyses LIONEL'!$I$7,Tableau3[Négo],paramètres!$B$5)","v":0},{"$f":"COUNTIFS(Tableau3[Statut actuel],'Analyses LIONEL'!A27,Tableau3[Mois],'Analyses LIONEL'!$J$7,Tableau3[Négo],paramètres!$B$5)","v":0},{"$f":"COUNTIFS(Tableau3[Statut actuel],'Analyses LIONEL'!A27,Tableau3[Mois],'Analyses LIONEL'!$K$7,Tableau3[Négo],paramètres!$B$5)","v":0},{"$f":"COUNTIFS(Tableau3[Statut actuel],'Analyses LIONEL'!A27,Tableau3[Mois],'Analyses LIONEL'!$L$7,Tableau3[Négo],paramètres!$B$5)","v":0},{"$f":"COUNTIFS(Tableau3[Statut actuel],'Analyses LIONEL'!A27,Tableau3[Mois],'Analyses LIONEL'!$M$7,Tableau3[Négo],paramètres!$B$5)","v":0},0]
[{"$f":"IF(ISBLANK(paramètres!C9),\"\",paramètres!C9)","v":"Estimation faite"},{"$f":"COUNTIFS(Tableau3[Statut actuel],'Analyses LIONEL'!A28,Tableau3[Mois],'Analyses LIONEL'!$B$7,Tableau3[Négo],paramètres!$B$5)","v":0},{"$f":"COUNTIFS(Tableau3[Statut actuel],'Analyses LIONEL'!A28,Tableau3[Mois],'Analyses LIONEL'!$C$7,Tableau3[Négo],paramètres!$B$5)","v":0},{"$f":"COUNTIFS(Tableau3[Statut actuel],'Analyses LIONEL'!A28,Tableau3[Mois],'Analyses LIONEL'!$D$7,Tableau3[Négo],paramètres!$B$5)","v":0},{"$f":"COUNTIFS(Tableau3[Statut actuel],'Analyses LIONEL'!A28,Tableau3[Mois],'Analyses LIONEL'!$E$7,Tableau3[Négo],paramètres!$B$5)","v":0},{"$f":"COUNTIFS(Tableau3[Statut actuel],'Analyses LIONEL'!A28,Tableau3[Mois],'Analyses LIONEL'!$F$7,Tableau3[Négo],paramètres!$B$5)","v":0},{"$f":"COUNTIFS(Tableau3[Statut actuel],'Analyses LIONEL'!A28,Tableau3[Mois],'Analyses LIONEL'!$G$7,Tableau3[Négo],paramètres!$B$5)","v":0},{"$f":"COUNTIFS(Tableau3[Statut actuel],'Analyses LIONEL'!A28,Tableau3[Mois],'Analyses LIONEL'!$H$7,Tableau3[Négo],paramètres!$B$5)","v":0},{"$f":"COUNTIFS(Tableau3[Statut actuel],'Analyses LIONEL'!A28,Tableau3[Mois],'Analyses LIONEL'!$I$7,Tableau3[Négo],paramètres!$B$5)","v":0},{"$f":"COUNTIFS(Tableau3[Statut actuel],'Analyses LIONEL'!A28,Tableau3[Mois],'Analyses LIONEL'!$J$7,Tableau3[Négo],paramètres!$B$5)","v":0},{"$f":"COUNTIFS(Tableau3[Statut actuel],'Analyses LIONEL'!A28,Tableau3[Mois],'Analyses LIONEL'!$K$7,Tableau3[Négo],paramètres!$B$5)","v":0},{"$f":"COUNTIFS(Tableau3[Statut actuel],'Analyses LIONEL'!A28,Tableau3[Mois],'Analyses LIONEL'!$L$7,Tableau3[Négo],paramètres!$B$5)","v":0},{"$f":"COUNTIFS(Tableau3[Statut actuel],'Analyses LIONEL'!A28,Tableau3[Mois],'Analyses LIONEL'!$M$7,Tableau3[Négo],paramètres!$B$5)","v":0},0]
[{"$f":"IF(ISBLANK(paramètres!C10),\"\",paramètres!C10)","v":"Sous compromis"},{"$f":"COUNTIFS(Tableau3[Statut actuel],'Analyses LIONEL'!A29,Tableau3[Mois],'Analyses LIONEL'!$B$7,Tableau3[Négo],paramètres!$B$5)","v":0},{"$f":"COUNTIFS(Tableau3[Statut actuel],'Analyses LIONEL'!A29,Tableau3[Mois],'Analyses LIONEL'!$C$7,Tableau3[Négo],paramètres!$B$5)","v":0},{"$f":"COUNTIFS(Tableau3[Statut actuel],'Analyses LIONEL'!A29,Tableau3[Mois],'Analyses LIONEL'!$D$7,Tableau3[Négo],paramètres!$B$5)","v":0},{"$f":"COUNTIFS(Tableau3[Statut actuel],'Analyses LIONEL'!A29,Tableau3[Mois],'Analyses LIONEL'!$E$7,Tableau3[Négo],paramètres!$B$5)","v":0},{"$f":"COUNTIFS(Tableau3[Statut actuel],'Analyses LIONEL'!A29,Tableau3[Mois],'Analyses LIONEL'!$F$7,Tableau3[Négo],paramètres!$B$5)","v":0},{"$f":"COUNTIFS(Tableau3[Statut actuel],'Analyses LIONEL'!A29,Tableau3[Mois],'Analyses LIONEL'!$G$7,Tableau3[Négo],paramètres!$B$5)","v":0},{"$f":"COUNTIFS(Tableau3[Statut actuel],'Analyses LIONEL'!A29,Tableau3[Mois],'Analyses LIONEL'!$H$7,Tableau3[Négo],paramètres!$B$5)","v":0},{"$f":"COUNTIFS(Tableau3[Statut actuel],'Analyses LIONEL'!A29,Tableau3[Mois],'Analyses LIONEL'!$I$7,Tableau3[Négo],paramètres!$B$5)","v":0},{"$f":"COUNTIFS(Tableau3[Statut actuel],'Analyses LIONEL'!A29,Tableau3[Mois],'Analyses LIONEL'!$J$7,Tableau3[Négo],paramètres!$B$5)","v":0},{"$f":"COUNTIFS(Tableau3[Statut actuel],'Analyses LIONEL'!A29,Tableau3[Mois],'Analyses LIONEL'!$K$7,Tableau3[Négo],paramètres!$B$5)","v":0},{"$f":"COUNTIFS(Tableau3[Statut actuel],'Analyses LIONEL'!A29,Tableau3[Mois],'Analyses LIONEL'!$L$7,Tableau3[Négo],paramètres!$B$5)","v":0},{"$f":"COUNTIFS(Tableau3[Statut actuel],'Analyses LIONEL'!A29,Tableau3[Mois],'Analyses LIONEL'!$M$7,Tableau3[Négo],paramètres!$B$5)","v":1},1]
[{"$f":"IF(ISBLANK(paramètres!C11),\"\",paramètres!C11)","v":"Vendu"},{"$f":"COUNTIFS(Tableau3[Statut actuel],'Analyses LIONEL'!A30,Tableau3[Mois],'Analyses LIONEL'!$B$7,Tableau3[Négo],paramètres!$B$5)","v":0},{"$f":"COUNTIFS(Tableau3[Statut actuel],'Analyses LIONEL'!A30,Tableau3[Mois],'Analyses LIONEL'!$C$7,Tableau3[Négo],paramètres!$B$5)","v":0},{"$f":"COUNTIFS(Tableau3[Statut actuel],'Analyses LIONEL'!A30,Tableau3[Mois],'Analyses LIONEL'!$D$7,Tableau3[Négo],paramètres!$B$5)","v":0},{"$f":"COUNTIFS(Tableau3[Statut actuel],'Analyses LIONEL'!A30,Tableau3[Mois],'Analyses LIONEL'!$E$7,Tableau3[Négo],paramètres!$B$5)","v":0},{"$f":"COUNTIFS(Tableau3[Statut actuel],'Analyses LIONEL'!A30,Tableau3[Mois],'Analyses LIONEL'!$F$7,Tableau3[Négo],paramètres!$B$5)","v":0},{"$f":"COUNTIFS(Tableau3[Statut actuel],'Analyses LIONEL'!A30,Tableau3[Mois],'Analyses LIONEL'!$G$7,Tableau3[Négo],paramètres!$B$5)","v":0},{"$f":"COUNTIFS(Tableau3[Statut actuel],'Analyses LIONEL'!A30,Tableau3[Mois],'Analyses LIONEL'!$H$7,Tableau3[Négo],paramètres!$B$5)","v":0},{"$f":"COUNTIFS(Tableau3[Statut actuel],'Analyses LIONEL'!A30,Tableau3[Mois],'Analyses LIONEL'!$I$7,Tableau3[Négo],paramètres!$B$5)","v":0},{"$f":"COUNTIFS(Tableau3[Statut actuel],'Analyses LIONEL'!A30,Tableau3[Mois],'Analyses LIONEL'!$J$7,Tableau3[Négo],paramètres!$B$5)","v":0},{"$f":"COUNTIFS(Tableau3[Statut actuel],'Analyses LIONEL'!A30,Tableau3[Mois],'Analyses LIONEL'!$K$7,Tableau3[Négo],paramètres!$B$5)","v":0},{"$f":"COUNTIFS(Tableau3[Statut actuel],'Analyses LIONEL'!A30,Tableau3[Mois],'Analyses LIONEL'!$L$7,Tableau3[Négo],paramètres!$B$5)","v":0},{"$f":"COUNTIFS(Tableau3[Statut actuel],'Analyses LIONEL'!A30,Tableau3[Mois],'Analyses LIONEL'!$M$7,Tableau3[Négo],paramètres!$B$5)","v":0},0]
[{"$f":"IF(ISBLANK(paramètres!C12),\"\",paramètres!C12)","v":"Vente annulée"},{"$f":"COUNTIFS(Tableau3[Statut actuel],'Analyses LIONEL'!A31,Tableau3[Mois],'Analyses LIONEL'!$B$7,Tableau3[Négo],paramètres!$B$5)","v":0},{"$f":"COUNTIFS(Tableau3[Statut actuel],'Analyses LIONEL'!A31,Tableau3[Mois],'Analyses LIONEL'!$C$7,Tableau3[Négo],paramètres!$B$5)","v":0},{"$f":"COUNTIFS(Tableau3[Statut actuel],'Analyses LIONEL'!A31,Tableau3[Mois],'Analyses LIONEL'!$D$7,Tableau3[Négo],paramètres!$B$5)","v":0},{"$f":"COUNTIFS(Tableau3[Statut actuel],'Analyses LIONEL'!A31,Tableau3[Mois],'Analyses LIONEL'!$E$7,Tableau3[Négo],paramètres!$B$5)","v":0},{"$f":"COUNTIFS(Tableau3[Statut actuel],'Analyses LIONEL'!A31,Tableau3[Mois],'Analyses LIONEL'!$F$7,Tableau3[Négo],paramètres!$B$5)","v":0},{"$f":"COUNTIFS(Tableau3[Statut actuel],'Analyses LIONEL'!A31,Tableau3[Mois],'Analyses LIONEL'!$G$7,Tableau3[Négo],paramètres!$B$5)","v":0},{"$f":"COUNTIFS(Tableau3[Statut actuel],'Analyses LIONEL'!A31,Tableau3[Mois],'Analyses LIONEL'!$H$7,Tableau3[Négo],paramètres!$B$5)","v":0},{"$f":"COUNTIFS(Tableau3[Statut actuel],'Analyses LIONEL'!A31,Tableau3[Mois],'Analyses LIONEL'!$I$7,Tableau3[Négo],paramètres!$B$5)","v":0},{"$f":"COUNTIFS(Tableau3[Statut actuel],'Analyses LIONEL'!A31,Tableau3[Mois],'Analyses LIONEL'!$J$7,Tableau3[Négo],paramètres!$B$5)","v":0},{"$f":"COUNTIFS(Tableau3[Statut actuel],'Analyses LIONEL'!A31,Tableau3[Mois],'Analyses LIONEL'!$K$7,Tableau3[Négo],paramètres!$B$5)","v":0},{"$f":"COUNTIFS(Tableau3[Statut actuel],'Analyses LIONEL'!A31,Tableau3[Mois],'Analyses LIONEL'!$L$7,Tableau3[Négo],paramètres!$B$5)","v":0},{"$f":"COUNTIFS(Tableau3[Statut actuel],'Analyses LIONEL'!A31,Tableau3[Mois],'Analyses LIONEL'!$M$7,Tableau3[Négo],paramètres!$B$5)","v":1},1]
[{"$f":"IF(ISBLANK(paramètres!C13),\"\",paramètres!C13)","v":"Abandonné"},{"$f":"COUNTIFS(Tableau3[Statut actuel],'Analyses LIONEL'!A32,Tableau3[Mois],'Analyses LIONEL'!$B$7,Tableau3[Négo],paramètres!$B$5)","v":0},{"$f":"COUNTIFS(Tableau3[Statut actuel],'Analyses LIONEL'!A32,Tableau3[Mois],'Analyses LIONEL'!$C$7,Tableau3[Négo],paramètres!$B$5)","v":1},{"$f":"COUNTIFS(Tableau3[Statut actuel],'Analyses LIONEL'!A32,Tableau3[Mois],'Analyses LIONEL'!$D$7,Tableau3[Négo],paramètres!$B$5)","v":0},{"$f":"COUNTIFS(Tableau3[Statut actuel],'Analyses LIONEL'!A32,Tableau3[Mois],'Analyses LIONEL'!$E$7,Tableau3[Négo],paramètres!$B$5)","v":0},{"$f":"COUNTIFS(Tableau3[Statut actuel],'Analyses LIONEL'!A32,Tableau3[Mois],'Analyses LIONEL'!$F$7,Tableau3[Négo],paramètres!$B$5)","v":0},{"$f":"COUNTIFS(Tableau3[Statut actuel],'Analyses LIONEL'!A32,Tableau3[Mois],'Analyses LIONEL'!$G$7,Tableau3[Négo],paramètres!$B$5)","v":0},{"$f":"COUNTIFS(Tableau3[Statut actuel],'Analyses LIONEL'!A32,Tableau3[Mois],'Analyses LIONEL'!$H$7,Tableau3[Négo],paramètres!$B$5)","v":0},{"$f":"COUNTIFS(Tableau3[Statut actuel],'Analyses LIONEL'!A32,Tableau3[Mois],'Analyses LIONEL'!$I$7,Tableau3[Négo],paramètres!$B$5)","v":0},{"$f":"COUNTIFS(Tableau3[Statut actuel],'Analyses LIONEL'!A32,Tableau3[Mois],'Analyses LIONEL'!$J$7,Tableau3[Négo],paramètres!$B$5)","v":0},{"$f":"COUNTIFS(Tableau3[Statut actuel],'Analyses LIONEL'!A32,Tableau3[Mois],'Analyses LIONEL'!$K$7,Tableau3[Négo],paramètres!$B$5)","v":0},{"$f":"COUNTIFS(Tableau3[Statut actuel],'Analyses LIONEL'!A32,Tableau3[Mois],'Analyses LIONEL'!$L$7,Tableau3[Négo],paramètres!$B$5)","v":0},{"$f":"COUNTIFS(Tableau3[Statut actuel],'Analyses LIONEL'!A32,Tableau3[Mois],'Analyses LIONEL'!$M$7,Tableau3[Négo],paramètres!$B$5)","v":0},1]
[{"$f":"IF(ISBLANK(paramètres!C14),\"\",paramètres!C14)","v":"Stand-by"},{"$f":"COUNTIFS(Tableau3[Statut actuel],'Analyses LIONEL'!A33,Tableau3[Mois],'Analyses LIONEL'!$B$7,Tableau3[Négo],paramètres!$B$5)","v":0},{"$f":"COUNTIFS(Tableau3[Statut actuel],'Analyses LIONEL'!A33,Tableau3[Mois],'Analyses LIONEL'!$C$7,Tableau3[Négo],paramètres!$B$5)","v":0},{"$f":"COUNTIFS(Tableau3[Statut actuel],'Analyses LIONEL'!A33,Tableau3[Mois],'Analyses LIONEL'!$D$7,Tableau3[Négo],paramètres!$B$5)","v":0},{"$f":"COUNTIFS(Tableau3[Statut actuel],'Analyses LIONEL'!A33,Tableau3[Mois],'Analyses LIONEL'!$E$7,Tableau3[Négo],paramètres!$B$5)","v":0},{"$f":"COUNTIFS(Tableau3[Statut actuel],'Analyses LIONEL'!A33,Tableau3[Mois],'Analyses LIONEL'!$F$7,Tableau3[Négo],paramètres!$B$5)","v":0},{"$f":"COUNTIFS(Tableau3[Statut actuel],'Analyses LIONEL'!A33,Tableau3[Mois],'Analyses LIONEL'!$G$7,Tableau3[Négo],paramètres!$B$5)","v":0},{"$f":"COUNTIFS(Tableau3[Statut actuel],'Analyses LIONEL'!A33,Tableau3[Mois],'Analyses LIONEL'!$H$7,Tableau3[Négo],paramètres!$B$5)","v":0},{"$f":"COUNTIFS(Tableau3[Statut actuel],'Analyses LIONEL'!A33,Tableau3[Mois],'Analyses LIONEL'!$I$7,Tableau3[Négo],paramètres!$B$5)","v":0},{"$f":"COUNTIFS(Tableau3[Statut actuel],'Analyses LIONEL'!A33,Tableau3[Mois],'Analyses LIONEL'!$J$7,Tableau3[Négo],paramètres!$B$5)","v":0},{"$f":"COUNTIFS(Tableau3[Statut actuel],'Analyses LIONEL'!A33,Tableau3[Mois],'Analyses LIONEL'!$K$7,Tableau3[Négo],paramètres!$B$5)","v":0},{"$f":"COUNTIFS(Tableau3[Statut actuel],'Analyses LIONEL'!A33,Tableau3[Mois],'Analyses LIONEL'!$L$7,Tableau3[Négo],paramètres!$B$5)","v":0},{"$f":"COUNTIFS(Tableau3[Statut actuel],'Analyses LIONEL'!A33,Tableau3[Mois],'Analyses LIONEL'!$M$7,Tableau3[Négo],paramètres!$B$5)","v":0},0]
[{"$f":"IF(ISBLANK(paramètres!C15),\"\",paramètres!C15)","v":"Sans Suite"},{"$f":"COUNTIFS(Tableau3[Statut actuel],'Analyses LIONEL'!A34,Tableau3[Mois],'Analyses LIONEL'!$B$7,Tableau3[Négo],paramètres!$B$5)","v":0},{"$f":"COUNTIFS(Tableau3[Statut actuel],'Analyses LIONEL'!A34,Tableau3[Mois],'Analyses LIONEL'!$C$7,Tableau3[Négo],paramètres!$B$5)","v":0},{"$f":"COUNTIFS(Tableau3[Statut actuel],'Analyses LIONEL'!A34,Tableau3[Mois],'Analyses LIONEL'!$D$7,Tableau3[Négo],paramètres!$B$5)","v":0},{"$f":"COUNTIFS(Tableau3[Statut actuel],'Analyses LIONEL'!A34,Tableau3[Mois],'Analyses LIONEL'!$E$7,Tableau3[Négo],paramètres!$B$5)","v":0},{"$f":"COUNTIFS(Tableau3[Statut actuel],'Analyses LIONEL'!A34,Tableau3[Mois],'Analyses LIONEL'!$F$7,Tableau3[Négo],paramètres!$B$5)","v":0},{"$f":"COUNTIFS(Tableau3[Statut actuel],'Analyses LIONEL'!A34,Tableau3[Mois],'Analyses LIONEL'!$G$7,Tableau3[Négo],paramètres!$B$5)","v":0},{"$f":"COUNTIFS(Tableau3[Statut actuel],'Analyses LIONEL'!A34,Tableau3[Mois],'Analyses LIONEL'!$H$7,Tableau3[Négo],paramètres!$B$5)","v":0},{"$f":"COUNTIFS(Tableau3[Statut actuel],'Analyses LIONEL'!A34,Tableau3[Mois],'Analyses LIONEL'!$I$7,Tableau3[Négo],paramètres!$B$5)","v":0},{"$f":"COUNTIFS(Tableau3[Statut actuel],'Analyses LIONEL'!A34,Tableau3[Mois],'Analyses LIONEL'!$J$7,Tableau3[Négo],paramètres!$B$5)","v":0},{"$f":"COUNTIFS(Tableau3[Statut actuel],'Analyses LIONEL'!A34,Tableau3[Mois],'Analyses LIONEL'!$K$7,Tableau3[Négo],paramètres!$B$5)","v":0},{"$f":"COUNTIFS(Tableau3[Statut actuel],'Analyses LIONEL'!A34,Tableau3[Mois],'Analyses LIONEL'!$L$7,Tableau3[Négo],paramètres!$B$5)","v":0},{"$f":"COUNTIFS(Tableau3[Statut actuel],'Analyses LIONEL'!A34,Tableau3[Mois],'Analyses LIONEL'!$M$7,Tableau3[Négo],paramètres!$B$5)","v":0},0]
[{"$f":"IF(ISBLANK(paramètres!C16),\"\",paramètres!C16)","v":"Mandat"},{"$f":"COUNTIFS(Tableau3[Statut actuel],'Analyses LIONEL'!A35,Tableau3[Mois],'Analyses LIONEL'!$B$7,Tableau3[Négo],paramètres!$B$5)","v":0},{"$f":"COUNTIFS(Tableau3[Statut actuel],'Analyses LIONEL'!A35,Tableau3[Mois],'Analyses LIONEL'!$C$7,Tableau3[Négo],paramètres!$B$5)","v":1},{"$f":"COUNTIFS(Tableau3[Statut actuel],'Analyses LIONEL'!A35,Tableau3[Mois],'Analyses LIONEL'!$D$7,Tableau3[Négo],paramètres!$B$5)","v":0},{"$f":"COUNTIFS(Tableau3[Statut actuel],'Analyses LIONEL'!A35,Tableau3[Mois],'Analyses LIONEL'!$E$7,Tableau3[Négo],paramètres!$B$5)","v":0},{"$f":"COUNTIFS(Tableau3[Statut actuel],'Analyses LIONEL'!A35,Tableau3[Mois],'Analyses LIONEL'!$F$7,Tableau3[Négo],paramètres!$B$5)","v":0},{"$f":"COUNTIFS(Tableau3[Statut actuel],'Analyses LIONEL'!A35,Tableau3[Mois],'Analyses LIONEL'!$G$7,Tableau3[Négo],paramètres!$B$5)","v":0},{"$f":"COUNTIFS(Tableau3[Statut actuel],'Analyses LIONEL'!A35,Tableau3[Mois],'Analyses LIONEL'!$H$7,Tableau3[Négo],paramètres!$B$5)","v":0},{"$f":"COUNTIFS(Tableau3[Statut actuel],'Analyses LIONEL'!A35,Tableau3[Mois],'Analyses LIONEL'!$I$7,Tableau3[Négo],paramètres!$B$5)","v":0},{"$f":"COUNTIFS(Tableau3[Statut actuel],'Analyses LIONEL'!A35,Tableau3[Mois],'Analyses LIONEL'!$J$7,Tableau3[Négo],paramètres!$B$5)","v":0},{"$f":"COUNTIFS(Tableau3[Statut actuel],'Analyses LIONEL'!A35,Tableau3[Mois],'Analyses LIONEL'!$K$7,Tableau3[Négo],paramètres!$B$5)","v":0},{"$f":"COUNTIFS(Tableau3[Statut actuel],'Analyses LIONEL'!A35,Tableau3[Mois],'Analyses LIONEL'!$L$7,Tableau3[Négo],paramètres!$B$5)","v":0},{"$f":"COUNTIFS(Tableau3[Statut actuel],'Analyses LIONEL'!A35,Tableau3[Mois],'Analyses LIONEL'!$M$7,Tableau3[Négo],paramètres!$B$5)","v":0},1]
[]
["TOTAL",{"$f":"SUM(B24:B35)","v":0},{"$f":"SUM(C24:C35)","v":2},0,0,0,0,0,0,0,0,0,2,{"$f":"SUM(N24:N35)","v":4}]
[]
["Chiffre d'affaires du commercial"]
[null,"JANVIER","FEVRIER","MARS","AVRIL","MAI","JUIN","JUILLET","AOÛT","SEPTEMBRE","OCTOBRE","NOVEMBRE","DÉCEMBRE","TOTAL"]
[]
["COMPROMIS EN COURS"]
["Montant"]
["ACTES"]
["Montant"]
["VENTES ANNULEES"]
["Montant annulé"]
[]
["Somme CA "]
["Rappel sur objectif (mensualisé)"]
[]
["Cumul CA"]
["Cumul objectif"]
[]
[]
[]
[null,"Rappel objectif annuel du commercial:"]
[]
[null,"Pourcentage de l'objectif:"]

{"sheet":"Analyse CA global","index":4,"n_rows":21,"n_cols":14,"rows_kept":21,"cut":false,"hidden":true,"merged":[[18,3,18,4],[20,3,20,4]]}
["Analyses CA global"]
[]
[]
[]
["CA global à date de signature"]
["Statut","JANVIER","FÉVRIER","MARS","AVRIL","MAI","JUIN","JUILLET","AOÛT","SEPTEMBRE","OCTOBRE","NOVEMBRE","DÉCEMBRE","TOTAL"]
[]
["COMPROMIS SIGNES"]
["Montant signé",{"$f":"SUMIFS('Suivi activité'!$R$5:$R$274,'Suivi activité'!$S$5:$S$274,B6)","v":0},{"$f":"SUMIFS('Suivi activité'!$R$5:$R$274,'Suivi activité'!$S$5:$S$274,C6)","v":0},{"$f":"SUMIFS('Suivi activité'!$R$5:$R$274,'Suivi activité'!$S$5:$S$274,D6)","v":0},{"$f":"SUMIFS('Suivi activité'!$R$5:$R$274,'Suivi activité'!$S$5:$S$274,E6)","v":650000},{"$f":"SUMIFS('Suivi activité'!$R$5:$R$274,'Suivi activité'!$S$5:$S$274,F6)","v":0},{"$f":"SUMIFS('Suivi activité'!$R$5:$R$274,'Suivi activité'!$S$5:$S$274,G6)","v":0},{"$f":"SUMIFS('Suivi activité'!$R$5:$R$274,'Suivi activité'!$S$5:$S$274,H6)","v":0},{"$f":"SUMIFS('Suivi activité'!$R$5:$R$274,'Suivi activité'!$S$5:$S$274,I6)","v":0},{"$f":"SUMIFS('Suivi activité'!$R$5:$R$274,'Suivi activité'!$S$5:$S$274,J6)","v":250000},{"$f":"SUMIFS('Suivi activité'!$R$5:$R$274,'Suivi activité'!$S$5:$S$274,K6)","v":0},{"$f":"SUMIFS('Suivi activité'!$R$5:$R$274,'Suivi activité'!$S$5:$S$274,L6)","v":0},{"$f":"SUMIFS('Suivi activité'!$R$5:$R$274,'Suivi activité'!$S$5:$S$274,M6)","v":300000},{"$f":"SUM(B9:M9)","v":1200000}]
["ACTE SIGNES"]
["Montant signé",{"$f":"SUMIFS('Suivi activité'!$T$5:$T$274,'Suivi activité'!$U$5:$U$274,B6)","v":0},{"$f":"SUMIFS('Suivi activité'!$T$5:$T$274,'Suivi activité'!$U$5:$U$274,C6)","v":0},{"$f":"SUMIFS('Suivi activité'!$T$5:$T$274,'Suivi activité'!$U$5:$U$274,D6)","v":0},{"$f":"SUMIFS('Suivi activité'!$T$5:$T$274,'Suivi activité'!$U$5:$U$274,E6)","v":0},{"$f":"SUMIFS('Suivi activité'!$T$5:$T$274,'Suivi activité'!$U$5:$U$274,F6)","v":0},{"$f":"SUMIFS('Suivi activité'!$T$5:$T$274,'Suivi activité'!$U$5:$U$274,G6)","v":0},{"$f":"SUMIFS('Suivi activité'!$T$5:$T$274,'Suivi activité'!$U$5:$U$274,H6)","v":650000},{"$f":"SUMIFS('Suivi activité'!$T$5:$T$274,'Suivi activité'!$U$5:$U$274,I6)","v":0},{"$f":"SUMIFS('Suivi activité'!$T$5:$T$274,'Suivi activité'!$U$5:$U$274,J6)","v":0},{"$f":"SUMIFS('Suivi activité'!$T$5:$T$274,'Suivi activité'!$U$5:$U$274,K6)","v":0},{"$f":"SUMIFS('Suivi activité'!$T$5:$T$274,'Suivi activité'!$U$5:$U$274,L6)","v":0},{"$f":"SUMIFS('Suivi activité'!$T$5:$T$274,'Suivi activité'!$U$5:$U$274,M6)","v":250000},{"$f":"SUM(B11:M11)","v":900000}]
["VENTES ANNULEES"]
["Montant annulé",{"$f":"SUMIFS('Suivi activité'!$R$5:$R$274,'Suivi activité'!$S$5:$S$274,B6)","v":0},null,null,null,null,null,null,null,null,null,null,null,{"$f":"SUM(B13:M13)","v":0}]
[]
[]
[null,null,null,"COMPROMIS",null,"ACTE"]
[null,null,"Montant signé:",{"$f":"N9","v":1200000},null,{"$f":"N11","v":900000}]
[]
[null,null,"Rappel  objectif:",{"$f":"OBJECTIFS!J5","v":1450000}]
[]
[null,null,"Pourcentage de l'objectif:",{"$f":"IF(ISERROR(F17/D19),\"\",F17/D19)","v":0.62068965517241381}]

{"sheet":"OBJECTIFS","index":5,"n_rows":17,"n_cols":13,"rows_kept":17,"cut":false,"hidden":true,"merged":[]}
["Objectifs des négociateurs",null,"Année:",{"$f":"paramètres!F5","v":2023}]
[]
[]
[null,{"$f":"IF(ISBLANK(paramètres!B5),\"\",paramètres!B5)","v":"Lionel"},{"$f":"IF(ISBLANK(paramètres!B6),\"\",paramètres!B6)","v":"Tiphaine"},{"$f":"IF(ISBLANK(paramètres!B7),\"\",paramètres!B7)","v":"Vanessa"},{"$f":"IF(ISBLANK(paramètres!B8),\"\",paramètres!B8)","v":"Cléa"},{"$f":"IF(ISBLANK(paramètres!B9),\"\",paramètres!B9)","v":"Marc"},null,null,null,"TOTAL"]
["OBJECTIF CHIFFRE D'AFFAIRES",350000,250000,250000,300000,300000,null,null,null,{"$f":"SUM(B5:I5)","v":1450000}]
[null,null,null,null,null,null,null,null,null,null,null,null,"ATTENTION A VOIR ENTRE CHIFFRE COMPROMIS et ACTE avec CA NEGO !"]
["COMPROMIS EN COURS"]
["Montant",{"$f":"SUMIFS('Suivi activité'!$R$5:$R$274,'Suivi activité'!$L$5:$L$274,B4)","v":550000},{"$f":"SUMIFS('Suivi activité'!$R$5:$R$274,'Suivi activité'!$L$5:$L$274,C4)","v":0},{"$f":"SUMIFS('Suivi activité'!$R$5:$R$274,'Suivi activité'!$L$5:$L$274,D4)","v":0},{"$f":"SUMIFS('Suivi activité'!$R$5:$R$274,'Suivi activité'!$L$5:$L$274,E4)","v":650000},{"$f":"SUMIFS('Suivi activité'!$R$5:$R$274,'Suivi activité'!$L$5:$L$274,F4)","v":0},null,null,null,{"$f":"SUM(B8:I8)","v":1200000}]
["ACTES"]
["Montant",{"$f":"SUMIFS('Suivi activité'!$T$5:$T$274,'Suivi activité'!$L$5:$L$274,B4)","v":250000},{"$f":"SUMIFS('Suivi activité'!$T$5:$T$274,'Suivi activité'!$L$5:$L$274,C4)","v":0},{"$f":"SUMIFS('Suivi activité'!$T$5:$T$274,'Suivi activité'!$L$5:$L$274,D4)","v":0},{"$f":"SUMIFS('Suivi activité'!$T$5:$T$274,'Suivi activité'!$L$5:$L$274,E4)","v":650000},{"$f":"SUMIFS('Suivi activité'!$T$5:$T$274,'Suivi activité'!$L$5:$L$274,F4)","v":0},null,null,null,{"$f":"SUM(B10:I10)","v":900000}]
["VENTES ANNULEES"]
["Montant annulé",null,null,null,null,null,null,null,null,0]
["PROJETS SUSPENDUS OU PERDUS"]
["Montant perdu",null,null,null,null,null,null,null,null,0]
[]
["Total CA acté",{"$f":"B10","v":250000},{"$f":"C10","v":0},0,650000,0,null,null,null,{"$f":"SUM(B16:I16)","v":900000}]
["% de l'objectif",{"$f":"IF(ISERROR(B16/B5),\"\",B16/B5)","v":0.7142857142857143},{"$f":"IF(ISERROR(C16/C5),\"\",C16/C5)","v":0},0,2.1666666666666665,0,null,null,null,{"$f":"SUM(B17:I17)","v":2.8809523809523809}]

{"sheet":"Analyses Tiphaine","index":6,"n_rows":59,"n_cols":15,"rows_kept":59,"cut":false,"hidden":true,"merged":[]}
["Analyses par commercial"]
[]
[]
[null,null,null,null,null,"Sélectionnez nom du négociateur:","Tiphaine"]
[]
["Analyse de l'origine des prospects par commercial"]
["Origine","JANVIER","FÉVRIER","MARS","AVRIL","MAI","JUIN","JUILLET","AOÛT","SEPTEMBRE","OCTOBRE","NOVEMBRE","DÉCEMBRE","TOTAL","Pourcentage"]
[{"$f":"IF(ISBLANK(paramètres!A5),\"\",paramètres!A5)","v":"Appel direct"},{"$f":"COUNTIFS(Tableau3[Source du prospect],'Analyses Tiphaine'!A8,Tableau3[Mois],'Analyses Tiphaine'!$B$7,Tableau3[Négo],paramètres!$B$5)","v":0},{"$f":"COUNTIFS(Tableau3[Source du prospect],'Analyses Tiphaine'!A8,Tableau3[Mois],'Analyses Tiphaine'!$C$7,Tableau3[Négo],paramètres!$B$5)","v":0},{"$f":"COUNTIFS(Tableau3[Source du prospect],'Analyses Tiphaine'!A8,Tableau3[Mois],'Analyses Tiphaine'!$D$7,Tableau3[Négo],paramètres!$B$5)","v":0},{"$f":"COUNTIFS(Tableau3[Source du prospect],'Analyses Tiphaine'!A8,Tableau3[Mois],'Analyses Tiphaine'!$E$7,Tableau3[Négo],paramètres!$B$5)","v":0},{"$f":"COUNTIFS(Tableau3[Source du prospect],'Analyses Tiphaine'!A8,Tableau3[Mois],'Analyses Tiphaine'!$F$7,Tableau3[Négo],paramètres!$B$5)","v":0},{"$f":"COUNTIFS(Tableau3[Source du prospect],'Analyses Tiphaine'!A8,Tableau3[Mois],'Analyses Tiphaine'!$G$7,Tableau3[Négo],paramètres!$B$5)","v":0},{"$f":"COUNTIFS(Tableau3[Source du prospect],'Analyses Tiphaine'!A8,Tableau3[Mois],'Analyses Tiphaine'!$H$7,Tableau3[Négo],paramètres!$B$5)","v":0},{"$f":"COUNTIFS(Tableau3[Source du prospect],'Analyses Tiphaine'!A8,Tableau3[Mois],'Analyses Tiphaine'!$I$7,Tableau3[Négo],paramètres!$B$5)","v":0},{"$f":"COUNTIFS(Tableau3[Source du prospect],'Analyses Tiphaine'!A8,Tableau3[Mois],'Analyses Tiphaine'!$J$7,Tableau3[Négo],paramètres!$B$5)","v":0},{"$f":"COUNTIFS(Tableau3[Source du prospect],'Analyses Tiphaine'!A8,Tableau3[Mois],'Analyses Tiphaine'!$K$7,Tableau3[Négo],paramètres!$B$5)","v":0},{"$f":"COUNTIFS(Tableau3[Source du prospect],'Analyses Tiphaine'!A8,Tableau3[Mois],'Analyses Tiphaine'!$L$7,Tableau3[Négo],paramètres!$B$5)","v":0},{"$f":"COUNTIFS(Tableau3[Source du prospect],'Analyses Tiphaine'!A8,Tableau3[Mois],'Analyses Tiphaine'!$M$7,Tableau3[Négo],paramètres!$B$5)","v":1},{"$f":"SUM(B8:M8)","v":1}]
[{"$f":"IF(ISBLANK(paramètres!A6),\"\",paramètres!A6)","v":"e-mail"},{"$f":"COUNTIFS(Tableau3[Source du prospect],'Analyses Tiphaine'!A9,Tableau3[Mois],'Analyses Tiphaine'!$B$7,Tableau3[Négo],paramètres!$B$5)","v":0},{"$f":"COUNTIFS(Tableau3[Source du prospect],'Analyses Tiphaine'!A9,Tableau3[Mois],'Analyses Tiphaine'!$C$7,Tableau3[Négo],paramètres!$B$5)","v":1},{"$f":"COUNTIFS(Tableau3[Source du prospect],'Analyses Tiphaine'!A9,Tableau3[Mois],'Analyses Tiphaine'!$D$7,Tableau3[Négo],paramètres!$B$5)","v":0},{"$f":"COUNTIFS(Tableau3[Source du prospect],'Analyses Tiphaine'!A9,Tableau3[Mois],'Analyses Tiphaine'!$E$7,Tableau3[Négo],paramètres!$B$5)","v":0},{"$f":"COUNTIFS(Tableau3[Source du prospect],'Analyses Tiphaine'!A9,Tableau3[Mois],'Analyses Tiphaine'!$F$7,Tableau3[Négo],paramètres!$B$5)","v":0},{"$f":"COUNTIFS(Tableau3[Source du prospect],'Analyses Tiphaine'!A9,Tableau3[Mois],'Analyses Tiphaine'!$G$7,Tableau3[Négo],paramètres!$B$5)","v":0},{"$f":"COUNTIFS(Tableau3[Source du prospect],'Analyses Tiphaine'!A9,Tableau3[Mois],'Analyses Tiphaine'!$H$7,Tableau3[Négo],paramètres!$B$5)","v":0},{"$f":"COUNTIFS(Tableau3[Source du prospect],'Analyses Tiphaine'!A9,Tableau3[Mois],'Analyses Tiphaine'!$I$7,Tableau3[Négo],paramètres!$B$5)","v":0},{"$f":"COUNTIFS(Tableau3[Source du prospect],'Analyses Tiphaine'!A9,Tableau3[Mois],'Analyses Tiphaine'!$J$7,Tableau3[Négo],paramètres!$B$5)","v":0},{"$f":"COUNTIFS(Tableau3[Source du prospect],'Analyses Tiphaine'!A9,Tableau3[Mois],'Analyses Tiphaine'!$K$7,Tableau3[Négo],paramètres!$B$5)","v":0},{"$f":"COUNTIFS(Tableau3[Source du prospect],'Analyses Tiphaine'!A9,Tableau3[Mois],'Analyses Tiphaine'!$L$7,Tableau3[Négo],paramètres!$B$5)","v":0},{"$f":"COUNTIFS(Tableau3[Source du prospect],'Analyses Tiphaine'!A9,Tableau3[Mois],'Analyses Tiphaine'!$M$7,Tableau3[Négo],paramètres!$B$5)","v":0},{"$f":"SUM(B9:M9)","v":1}]
[{"$f":"IF(ISBLANK(paramètres!A7),\"\",paramètres!A7)","v":"Prospection"},{"$f":"COUNTIFS(Tableau3[Source du prospect],'Analyses Tiphaine'!A10,Tableau3[Mois],'Analyses Tiphaine'!$B$7,Tableau3[Négo],paramètres!$B$5)","v":0},{"$f":"COUNTIFS(Tableau3[Source du prospect],'Analyses Tiphaine'!A10,Tableau3[Mois],'Analyses Tiphaine'!$C$7,Tableau3[Négo],paramètres!$B$5)","v":0},{"$f":"COUNTIFS(Tableau3[Source du prospect],'Analyses Tiphaine'!A10,Tableau3[Mois],'Analyses Tiphaine'!$D$7,Tableau3[Négo],paramètres!$B$5)","v":0},{"$f":"COUNTIFS(Tableau3[Source du prospect],'Analyses Tiphaine'!A10,Tableau3[Mois],'Analyses Tiphaine'!$E$7,Tableau3[Négo],paramètres!$B$5)","v":0},{"$f":"COUNTIFS(Tableau3[Source du prospect],'Analyses Tiphaine'!A10,Tableau3[Mois],'Analyses Tiphaine'!$F$7,Tableau3[Négo],paramètres!$B$5)","v":0},{"$f":"COUNTIFS(Tableau3[Source du prospect],'Analyses Tiphaine'!A10,Tableau3[Mois],'Analyses Tiphaine'!$G$7,Tableau3[Négo],paramètres!$B$5)","v":0},{"$f":"COUNTIFS(Tableau3[Source du prospect],'Analyses Tiphaine'!A10,Tableau3[Mois],'Analyses Tiphaine'!$H$7,Tableau3[Négo],paramètres!$B$5)","v":0},{"$f":"COUNTIFS(Tableau3[Source du prospect],'Analyses Tiphaine'!A10,Tableau3[Mois],'Analyses Tiphaine'!$I$7,Tableau3[Négo],paramètres!$B$5)","v":0},{"$f":"COUNTIFS(Tableau3[Source du prospect],'Analyses Tiphaine'!A10,Tableau3[Mois],'Analyses Tiphaine'!$J$7,Tableau3[Négo],paramètres!$B$5)","v":0},{"$f":"COUNTIFS(Tableau3[Source du prospect],'Analyses Tiphaine'!A10,Tableau3[Mois],'Analyses Tiphaine'!$K$7,Tableau3[Négo],paramètres!$B$5)","v":0},{"$f":"COUNTIFS(Tableau3[Source du prospect],'Analyses Tiphaine'!A10,Tableau3[Mois],'Analyses Tiphaine'!$L$7,Tableau3[Négo],paramètres!$B$5)","v":0},{"$f":"COUNTIFS(Tableau3[Source du prospect],'Analyses Tiphaine'!A10,Tableau3[Mois],'Analyses Tiphaine'!$M$7,Tableau3[Négo],paramètres!$B$5)","v":1},1]
[{"$f":"IF(ISBLANK(paramètres!A8),\"\",paramètres!A8)","v":"Site Internet"},{"$f":"COUNTIFS(Tableau3[Source du prospect],'Analyses Tiphaine'!A11,Tableau3[Mois],'Analyses Tiphaine'!$B$7,Tableau3[Négo],paramètres!$B$5)","v":0},{"$f":"COUNTIFS(Tableau3[Source du prospect],'Analyses Tiphaine'!A11,Tableau3[Mois],'Analyses Tiphaine'!$C$7,Tableau3[Négo],paramètres!$B$5)","v":1},{"$f":"COUNTIFS(Tableau3[Source du prospect],'Analyses Tiphaine'!A11,Tableau3[Mois],'Analyses Tiphaine'!$D$7,Tableau3[Négo],paramètres!$B$5)","v":0},{"$f":"COUNTIFS(Tableau3[Source du prospect],'Analyses Tiphaine'!A11,Tableau3[Mois],'Analyses Tiphaine'!$E$7,Tableau3[Négo],paramètres!$B$5)","v":0},{"$f":"COUNTIFS(Tableau3[Source du prospect],'Analyses Tiphaine'!A11,Tableau3[Mois],'Analyses Tiphaine'!$F$7,Tableau3[Négo],paramètres!$B$5)","v":0},{"$f":"COUNTIFS(Tableau3[Source du prospect],'Analyses Tiphaine'!A11,Tableau3[Mois],'Analyses Tiphaine'!$G$7,Tableau3[Négo],paramètres!$B$5)","v":0},{"$f":"COUNTIFS(Tableau3[Source du prospect],'Analyses Tiphaine'!A11,Tableau3[Mois],'Analyses Tiphaine'!$H$7,Tableau3[Négo],paramètres!$B$5)","v":0},{"$f":"COUNTIFS(Tableau3[Source du prospect],'Analyses Tiphaine'!A11,Tableau3[Mois],'Analyses Tiphaine'!$I$7,Tableau3[Négo],paramètres!$B$5)","v":0},{"$f":"COUNTIFS(Tableau3[Source du prospect],'Analyses Tiphaine'!A11,Tableau3[Mois],'Analyses Tiphaine'!$J$7,Tableau3[Négo],paramètres!$B$5)","v":0},{"$f":"COUNTIFS(Tableau3[Source du prospect],'Analyses Tiphaine'!A11,Tableau3[Mois],'Analyses Tiphaine'!$K$7,Tableau3[Négo],paramètres!$B$5)","v":0},{"$f":"COUNTIFS(Tableau3[Source du prospect],'Analyses Tiphaine'!A11,Tableau3[Mois],'Analyses Tiphaine'!$L$7,Tableau3[Négo],paramètres!$B$5)","v":0},{"$f":"COUNTIFS(Tableau3[Source du prospect],'Analyses Tiphaine'!A11,Tableau3[Mois],'Analyses Tiphaine'!$M$7,Tableau3[Négo],paramètres!$B$5)","v":0},1]
[{"$f":"IF(ISBLANK(paramètres!A9),\"\",paramètres!A9)","v":"Appel agence"},{"$f":"COUNTIFS(Tableau3[Source du prospect],'Analyses Tiphaine'!A12,Tableau3[Mois],'Analyses Tiphaine'!$B$7,Tableau3[Négo],paramètres!$B$5)","v":0},{"$f":"COUNTIFS(Tableau3[Source du prospect],'Analyses Tiphaine'!A12,Tableau3[Mois],'Analyses Tiphaine'!$C$7,Tableau3[Négo],paramètres!$B$5)","v":0},{"$f":"COUNTIFS(Tableau3[Source du prospect],'Analyses Tiphaine'!A12,Tableau3[Mois],'Analyses Tiphaine'!$D$7,Tableau3[Négo],paramètres!$B$5)","v":0},{"$f":"COUNTIFS(Tableau3[Source du prospect],'Analyses Tiphaine'!A12,Tableau3[Mois],'Analyses Tiphaine'!$E$7,Tableau3[Négo],paramètres!$B$5)","v":0},{"$f":"COUNTIFS(Tableau3[Source du prospect],'Analyses Tiphaine'!A12,Tableau3[Mois],'Analyses Tiphaine'!$F$7,Tableau3[Négo],paramètres!$B$5)","v":0},{"$f":"COUNTIFS(Tableau3[Source du prospect],'Analyses Tiphaine'!A12,Tableau3[Mois],'Analyses Tiphaine'!$G$7,Tableau3[Négo],paramètres!$B$5)","v":0},{"$f":"COUNTIFS(Tableau3[Source du prospect],'Analyses Tiphaine'!A12,Tableau3[Mois],'Analyses Tiphaine'!$H$7,Tableau3[Négo],paramètres!$B$5)","v":0},{"$f":"COUNTIFS(Tableau3[Source du prospect],'Analyses Tiphaine'!A12,Tableau3[Mois],'Analyses Tiphaine'!$I$7,Tableau3[Négo],paramètres!$B$5)","v":0},{"$f":"COUNTIFS(Tableau3[Source du prospect],'Analyses Tiphaine'!A12,Tableau3[Mois],'Analyses Tiphaine'!$J$7,Tableau3[Négo],paramètres!$B$5)","v":0},{"$f":"COUNTIFS(Tableau3[Source du prospect],'Analyses Tiphaine'!A12,Tableau3[Mois],'Analyses Tiphaine'!$K$7,Tableau3[Négo],paramètres!$B$5)","v":0},{"$f":"COUNTIFS(Tableau3[Source du prospect],'Analyses Tiphaine'!A12,Tableau3[Mois],'Analyses Tiphaine'!$L$7,Tableau3[Négo],paramètres!$B$5)","v":0},{"$f":"COUNTIFS(Tableau3[Source du prospect],'Analyses Tiphaine'!A12,Tableau3[Mois],'Analyses Tiphaine'!$M$7,Tableau3[Négo],paramètres!$B$5)","v":0},0]
[{"$f":"IF(ISBLANK(paramètres!A10),\"\",paramètres!A10)","v":""},null,null,null,null,null,null,null,null,null,null,null,null,0]
[{"$f":"IF(ISBLANK(paramètres!A11),\"\",paramètres!A11)","v":""},null,null,null,null,null,null,null,null,null,null,null,null,0]
[{"$f":"IF(ISBLANK(paramètres!A12),\"\",paramètres!A12)","v":""},null,null,null,null,null,null,null,null,null,null,null,null,{"$f":"SUM(B15:M15)","v":0}]
[{"$f":"IF(ISBLANK(paramètres!A13),\"\",paramètres!A13)","v":""},null,null,null,null,null,null,null,null,null,null,null,null,0]
[{"$f":"IF(ISBLANK(paramètres!A14),\"\",paramètres!A14)","v":""},null,null,null,null,null,null,null,null,null,null,null,null,0]
[{"$f":"IF(ISBLANK(paramètres!A15),\"\",paramètres!A15)","v":""},null,null,null,null,null,null,null,null,null,null,null,null,0]
[{"$f":"IF(ISBLANK(paramètres!A16),\"\",paramètres!A16)","v":""},null,null,null,null,null,null,null,null,null,null,null,null,0]
["TOTAL",{"$f":"SUM(B8:B19)","v":0},{"$f":"SUM(C8:C19)","v":2},0,0,0,0,0,0,0,0,0,2,4,0]
[]
["Statut actuel des dossiers du négociateur"]
["Statut","JANVIER","FÉVRIER","MARS","AVRIL","MAI","JUIN","JUILLET","AOÛT","SEPTEMBRE","OCTOBRE","NOVEMBRE","DÉCEMBRE","TOTAL","Pourcentage"]
[{"$f":"IF(ISBLANK(paramètres!C5),\"\",paramètres!C5)","v":"TEL, SMS"},{"$f":"COUNTIFS(Tableau3[Statut actuel],'Analyses Tiphaine'!A24,Tableau3[Mois],'Analyses Tiphaine'!$B$7,Tableau3[Négo],paramètres!$B$5)","v":0},{"$f":"COUNTIFS(Tableau3[Statut actuel],'Analyses Tiphaine'!A24,Tableau3[Mois],'Analyses Tiphaine'!$C$7,Tableau3[Négo],paramètres!$B$5)","v":0},{"$f":"COUNTIFS(Tableau3[Statut actuel],'Analyses Tiphaine'!A24,Tableau3[Mois],'Analyses Tiphaine'!$D$7,Tableau3[Négo],paramètres!$B$5)","v":0},{"$f":"COUNTIFS(Tableau3[Statut actuel],'Analyses Tiphaine'!A24,Tableau3[Mois],'Analyses Tiphaine'!$E$7,Tableau3[Négo],paramètres!$B$5)","v":0},{"$f":"COUNTIFS(Tableau3[Statut actuel],'Analyses Tiphaine'!A24,Tableau3[Mois],'Analyses Tiphaine'!$F$7,Tableau3[Négo],paramètres!$B$5)","v":0},{"$f":"COUNTIFS(Tableau3[Statut actuel],'Analyses Tiphaine'!A24,Tableau3[Mois],'Analyses Tiphaine'!$G$7,Tableau3[Négo],paramètres!$B$5)","v":0},{"$f":"COUNTIFS(Tableau3[Statut actuel],'Analyses Tiphaine'!A24,Tableau3[Mois],'Analyses Tiphaine'!$H$7,Tableau3[Négo],paramètres!$B$5)","v":0},{"$f":"COUNTIFS(Tableau3[Statut actuel],'Analyses Tiphaine'!A24,Tableau3[Mois],'Analyses Tiphaine'!$I$7,Tableau3[Négo],paramètres!$B$5)","v":0},{"$f":"COUNTIFS(Tableau3[Statut actuel],'Analyses Tiphaine'!A24,Tableau3[Mois],'Analyses Tiphaine'!$J$7,Tableau3[Négo],paramètres!$B$5)","v":0},{"$f":"COUNTIFS(Tableau3[Statut actuel],'Analyses Tiphaine'!A24,Tableau3[Mois],'Analyses Tiphaine'!$K$7,Tableau3[Négo],paramètres!$B$5)","v":0},{"$f":"COUNTIFS(Tableau3[Statut actuel],'Analyses Tiphaine'!A24,Tableau3[Mois],'Analyses Tiphaine'!$L$7,Tableau3[Négo],paramètres!$B$5)","v":0},{"$f":"COUNTIFS(Tableau3[Statut actuel],'Analyses Tiphaine'!A24,Tableau3[Mois],'Analyses Tiphaine'!$M$7,Tableau3[Négo],paramètres!$B$5)","v":0},{"$f":"SUM(B24:M24)","v":0}]
[{"$f":"IF(ISBLANK(paramètres!C6),\"\",paramètres!C6)","v":"Porte à porte"},{"$f":"COUNTIFS(Tableau3[Statut actuel],'Analyses Tiphaine'!A25,Tableau3[Mois],'Analyses Tiphaine'!$B$7,Tableau3[Négo],paramètres!$B$5)","v":0},{"$f":"COUNTIFS(Tableau3[Statut actuel],'Analyses Tiphaine'!A25,Tableau3[Mois],'Analyses Tiphaine'!$C$7,Tableau3[Négo],paramètres!$B$5)","v":0},{"$f":"COUNTIFS(Tableau3[Statut actuel],'Analyses Tiphaine'!A25,Tableau3[Mois],'Analyses Tiphaine'!$D$7,Tableau3[Négo],paramètres!$B$5)","v":0},{"$f":"COUNTIFS(Tableau3[Statut actuel],'Analyses Tiphaine'!A25,Tableau3[Mois],'Analyses Tiphaine'!$E$7,Tableau3[Négo],paramètres!$B$5)","v":0},{"$f":"COUNTIFS(Tableau3[Statut actuel],'Analyses Tiphaine'!A25,Tableau3[Mois],'Analyses Tiphaine'!$F$7,Tableau3[Négo],paramètres!$B$5)","v":0},{"$f":"COUNTIFS(Tableau3[Statut actuel],'Analyses Tiphaine'!A25,Tableau3[Mois],'Analyses Tiphaine'!$G$7,Tableau3[Négo],paramètres!$B$5)","v":0},{"$f":"COUNTIFS(Tableau3[Statut actuel],'Analyses Tiphaine'!A25,Tableau3[Mois],'Analyses Tiphaine'!$H$7,Tableau3[Négo],paramètres!$B$5)","v":0},{"$f":"COUNTIFS(Tableau3[Statut actuel],'Analyses Tiphaine'!A25,Tableau3[Mois],'Analyses Tiphaine'!$I$7,Tableau3[Négo],paramètres!$B$5)","v":0},{"$f":"COUNTIFS(Tableau3[Statut actuel],'Analyses Tiphaine'!A25,Tableau3[Mois],'Analyses Tiphaine'!$J$7,Tableau3[Négo],paramètres!$B$5)","v":0},{"$f":"COUNTIFS(Tableau3[Statut actuel],'Analyses Tiphaine'!A25,Tableau3[Mois],'Analyses Tiphaine'!$K$7,Tableau3[Négo],paramètres!$B$5)","v":0},{"$f":"COUNTIFS(Tableau3[Statut actuel],'Analyses Tiphaine'!A25,Tableau3[Mois],'Analyses Tiphaine'!$L$7,Tableau3[Négo],paramètres!$B$5)","v":0},{"$f":"COUNTIFS(Tableau3[Statut actuel],'Analyses Tiphaine'!A25,Tableau3[Mois],'Analyses Tiphaine'!$M$7,Tableau3[Négo],paramètres!$B$5)","v":0},{"$f":"SUM(B25:M25)","v":0}]
[{"$f":"IF(ISBLANK(paramètres!C7),\"\",paramètres!C7)","v":"R1"},{"$f":"COUNTIFS(Tableau3[Statut actuel],'Analyses Tiphaine'!A26,Tableau3[Mois],'Analyses Tiphaine'!$B$7,Tableau3[Négo],paramètres!$B$5)","v":0},{"$f":"COUNTIFS(Tableau3[Statut actuel],'Analyses Tiphaine'!A26,Tableau3[Mois],'Analyses Tiphaine'!$C$7,Tableau3[Négo],paramètres!$B$5)","v":0},{"$f":"COUNTIFS(Tableau3[Statut actuel],'Analyses Tiphaine'!A26,Tableau3[Mois],'Analyses Tiphaine'!$D$7,Tableau3[Négo],paramètres!$B$5)","v":0},{"$f":"COUNTIFS(Tableau3[Statut actuel],'Analyses Tiphaine'!A26,Tableau3[Mois],'Analyses Tiphaine'!$E$7,Tableau3[Négo],paramètres!$B$5)","v":0},{"$f":"COUNTIFS(Tableau3[Statut actuel],'Analyses Tiphaine'!A26,Tableau3[Mois],'Analyses Tiphaine'!$F$7,Tableau3[Négo],paramètres!$B$5)","v":0},{"$f":"COUNTIFS(Tableau3[Statut actuel],'Analyses Tiphaine'!A26,Tableau3[Mois],'Analyses Tiphaine'!$G$7,Tableau3[Négo],paramètres!$B$5)","v":0},{"$f":"COUNTIFS(Tableau3[Statut actuel],'Analyses Tiphaine'!A26,Tableau3[Mois],'Analyses Tiphaine'!$H$7,Tableau3[Négo],paramètres!$B$5)","v":0},{"$f":"COUNTIFS(Tableau3[Statut actuel],'Analyses Tiphaine'!A26,Tableau3[Mois],'Analyses Tiphaine'!$I$7,Tableau3[Négo],paramètres!$B$5)","v":0},{"$f":"COUNTIFS(Tableau3[Statut actuel],'Analyses Tiphaine'!A26,Tableau3[Mois],'Analyses Tiphaine'!$J$7,Tableau3[Négo],paramètres!$B$5)","v":0},{"$f":"COUNTIFS(Tableau3[Statut actuel],'Analyses Tiphaine'!A26,Tableau3[Mois],'Analyses Tiphaine'!$K$7,Tableau3[Négo],paramètres!$B$5)","v":0},{"$f":"COUNTIFS(Tableau3[Statut actuel],'Analyses Tiphaine'!A26,Tableau3[Mois],'Analyses Tiphaine'!$L$7,Tableau3[Négo],paramètres!$B$5)","v":0},{"$f":"COUNTIFS(Tableau3[Statut actuel],'Analyses Tiphaine'!A26,Tableau3[Mois],'Analyses Tiphaine'!$M$7,Tableau3[Négo],paramètres!$B$5)","v":0},0]
[{"$f":"IF(ISBLANK(paramètres!C8),\"\",paramètres!C8)","v":"R2"},{"$f":"COUNTIFS(Tableau3[Statut actuel],'Analyses Tiphaine'!A27,Tableau3[Mois],'Analyses Tiphaine'!$B$7,Tableau3[Négo],paramètres!$B$5)","v":0},{"$f":"COUNTIFS(Tableau3[Statut actuel],'Analyses Tiphaine'!A27,Tableau3[Mois],'Analyses Tiphaine'!$C$7,Tableau3[Négo],paramètres!$B$5)","v":0},{"$f":"COUNTIFS(Tableau3[Statut actuel],'Analyses Tiphaine'!A27,Tableau3[Mois],'Analyses Tiphaine'!$D$7,Tableau3[Négo],paramètres!$B$5)","v":0},{"$f":"COUNTIFS(Tableau3[Statut actuel],'Analyses Tiphaine'!A27,Tableau3[Mois],'Analyses Tiphaine'!$E$7,Tableau3[Négo],paramètres!$B$5)","v":0},{"$f":"COUNTIFS(Tableau3[Statut actuel],'Analyses Tiphaine'!A27,Tableau3[Mois],'Analyses Tiphaine'!$F$7,Tableau3[Négo],paramètres!$B$5)","v":0},{"$f":"COUNTIFS(Tableau3[Statut actuel],'Analyses Tiphaine'!A27,Tableau3[Mois],'Analyses Tiphaine'!$G$7,Tableau3[Négo],paramètres!$B$5)","v":0},{"$f":"COUNTIFS(Tableau3[Statut actuel],'Analyses Tiphaine'!A27,Tableau3[Mois],'Analyses Tiphaine'!$H$7,Tableau3[Négo],paramètres!$B$5)","v":0},{"$f":"COUNTIFS(Tableau3[Statut actuel],'Analyses Tiphaine'!A27,Tableau3[Mois],'Analyses Tiphaine'!$I$7,Tableau3[Négo],paramètres!$B$5)","v":0},{"$f":"COUNTIFS(Tableau3[Statut actuel],'Analyses Tiphaine'!A27,Tableau3[Mois],'Analyses Tiphaine'!$J$7,Tableau3[Négo],paramètres!$B$5)","v":0},{"$f":"COUNTIFS(Tableau3[Statut actuel],'Analyses Tiphaine'!A27,Tableau3[Mois],'Analyses Tiphaine'!$K$7,Tableau3[Négo],paramètres!$B$5)","v":0},{"$f":"COUNTIFS(Tableau3[Statut actuel],'Analyses Tiphaine'!A27,Tableau3[Mois],'Analyses Tiphaine'!$L$7,Tableau3[Négo],paramètres!$B$5)","v":0},{"$f":"COUNTIFS(Tableau3[Statut actuel],'Analyses Tiphaine'!A27,Tableau3[Mois],'Analyses Tiphaine'!$M$7,Tableau3[Négo],paramètres!$B$5)","v":0},0]
[{"$f":"IF(ISBLANK(paramètres!C9),\"\",paramètres!C9)","v":"Estimation faite"},{"$f":"COUNTIFS(Tableau3[Statut actuel],'Analyses Tiphaine'!A28,Tableau3[Mois],'Analyses Tiphaine'!$B$7,Tableau3[Négo],paramètres!$B$5)","v":0},{"$f":"COUNTIFS(Tableau3[Statut actuel],'Analyses Tiphaine'!A28,Tableau3[Mois],'Analyses Tiphaine'!$C$7,Tableau3[Négo],paramètres!$B$5)","v":0},{"$f":"COUNTIFS(Tableau3[Statut actuel],'Analyses Tiphaine'!A28,Tableau3[Mois],'Analyses Tiphaine'!$D$7,Tableau3[Négo],paramètres!$B$5)","v":0},{"$f":"COUNTIFS(Tableau3[Statut actuel],'Analyses Tiphaine'!A28,Tableau3[Mois],'Analyses Tiphaine'!$E$7,Tableau3[Négo],paramètres!$B$5)","v":0},{"$f":"COUNTIFS(Tableau3[Statut actuel],'Analyses Tiphaine'!A28,Tableau3[Mois],'Analyses Tiphaine'!$F$7,Tableau3[Négo],paramètres!$B$5)","v":0},{"$f":"COUNTIFS(Tableau3[Statut actuel],'Analyses Tiphaine'!A28,Tableau3[Mois],'Analyses Tiphaine'!$G$7,Tableau3[Négo],paramètres!$B$5)","v":0},{"$f":"COUNTIFS(Tableau3[Statut actuel],'Analyses Tiphaine'!A28,Tableau3[Mois],'Analyses Tiphaine'!$H$7,Tableau3[Négo],paramètres!$B$5)","v":0},{"$f":"COUNTIFS(Tableau3[Statut actuel],'Analyses Tiphaine'!A28,Tableau3[Mois],'Analyses Tiphaine'!$I$7,Tableau3[Négo],paramètres!$B$5)","v":0},{"$f":"COUNTIFS(Tableau3[Statut actuel],'Analyses Tiphaine'!A28,Tableau3[Mois],'Analyses Tiphaine'!$J$7,Tableau3[Négo],paramètres!$B$5)","v":0},{"$f":"COUNTIFS(Tableau3[Statut actuel],'Analyses Tiphaine'!A28,Tableau3[Mois],'Analyses Tiphaine'!$K$7,Tableau3[Négo],paramètres!$B$5)","v":0},{"$f":"COUNTIFS(Tableau3[Statut actuel],'Analyses Tiphaine'!A28,Tableau3[Mois],'Analyses Tiphaine'!$L$7,Tableau3[Négo],paramètres!$B$5)","v":0},{"$f":"COUNTIFS(Tableau3[Statut actuel],'Analyses Tiphaine'!A28,Tableau3[Mois],'Analyses Tiphaine'!$M$7,Tableau3[Négo],paramètres!$B$5)","v":0},0]
[{"$f":"IF(ISBLANK(paramètres!C10),\"\",paramètres!C10)","v":"Sous compromis"},{"$f":"COUNTIFS(Tableau3[Statut actuel],'Analyses Tiphaine'!A29,Tableau3[Mois],'Analyses Tiphaine'!$B$7,Tableau3[Négo],paramètres!$B$5)","v":0},{"$f":"COUNTIFS(Tableau3[Statut actuel],'Analyses Tiphaine'!A29,Tableau3[Mois],'Analyses Tiphaine'!$C$7,Tableau3[Négo],paramètres!$B$5)","v":0},{"$f":"COUNTIFS(Tableau3[Statut actuel],'Analyses Tiphaine'!A29,Tableau3[Mois],'Analyses Tiphaine'!$D$7,Tableau3[Négo],paramètres!$B$5)","v":0},{"$f":"COUNTIFS(Tableau3[Statut actuel],'Analyses Tiphaine'!A29,Tableau3[Mois],'Analyses Tiphaine'!$E$7,Tableau3[Négo],paramètres!$B$5)","v":0},{"$f":"COUNTIFS(Tableau3[Statut actuel],'Analyses Tiphaine'!A29,Tableau3[Mois],'Analyses Tiphaine'!$F$7,Tableau3[Négo],paramètres!$B$5)","v":0},{"$f":"COUNTIFS(Tableau3[Statut actuel],'Analyses Tiphaine'!A29,Tableau3[Mois],'Analyses Tiphaine'!$G$7,Tableau3[Négo],paramètres!$B$5)","v":0},{"$f":"COUNTIFS(Tableau3[Statut actuel],'Analyses Tiphaine'!A29,Tableau3[Mois],'Analyses Tiphaine'!$H$7,Tableau3[Négo],paramètres!$B$5)","v":0},{"$f":"COUNTIFS(Tableau3[Statut actuel],'Analyses Tiphaine'!A29,Tableau3[Mois],'Analyses Tiphaine'!$I$7,Tableau3[Négo],paramètres!$B$5)","v":0},{"$f":"COUNTIFS(Tableau3[Statut actuel],'Analyses Tiphaine'!A29,Tableau3[Mois],'Analyses Tiphaine'!$J$7,Tableau3[Négo],paramètres!$B$5)","v":0},{"$f":"COUNTIFS(Tableau3[Statut actuel],'Analyses Tiphaine'!A29,Tableau3[Mois],'Analyses Tiphaine'!$K$7,Tableau3[Négo],paramètres!$B$5)","v":0},{"$f":"COUNTIFS(Tableau3[Statut actuel],'Analyses Tiphaine'!A29,Tableau3[Mois],'Analyses Tiphaine'!$L$7,Tableau3[Négo],paramètres!$B$5)","v":0},{"$f":"COUNTIFS(Tableau3[Statut actuel],'Analyses Tiphaine'!A29,Tableau3[Mois],'Analyses Tiphaine'!$M$7,Tableau3[Négo],paramètres!$B$5)","v":1},1]
[{"$f":"IF(ISBLANK(paramètres!C11),\"\",paramètres!C11)","v":"Vendu"},{"$f":"COUNTIFS(Tableau3[Statut actuel],'Analyses Tiphaine'!A30,Tableau3[Mois],'Analyses Tiphaine'!$B$7,Tableau3[Négo],paramètres!$B$5)","v":0},{"$f":"COUNTIFS(Tableau3[Statut actuel],'Analyses Tiphaine'!A30,Tableau3[Mois],'Analyses Tiphaine'!$C$7,Tableau3[Négo],paramètres!$B$5)","v":0},{"$f":"COUNTIFS(Tableau3[Statut actuel],'Analyses Tiphaine'!A30,Tableau3[Mois],'Analyses Tiphaine'!$D$7,Tableau3[Négo],paramètres!$B$5)","v":0},{"$f":"COUNTIFS(Tableau3[Statut actuel],'Analyses Tiphaine'!A30,Tableau3[Mois],'Analyses Tiphaine'!$E$7,Tableau3[Négo],paramètres!$B$5)","v":0},{"$f":"COUNTIFS(Tableau3[Statut actuel],'Analyses Tiphaine'!A30,Tableau3[Mois],'Analyses Tiphaine'!$F$7,Tableau3[Négo],paramètres!$B$5)","v":0},{"$f":"COUNTIFS(Tableau3[Statut actuel],'Analyses Tiphaine'!A30,Tableau3[Mois],'Analyses Tiphaine'!$G$7,Tableau3[Négo],paramètres!$B$5)","v":0},{"$f":"COUNTIFS(Tableau3[Statut actuel],'Analyses Tiphaine'!A30,Tableau3[Mois],'Analyses Tiphaine'!$H$7,Tableau3[Négo],paramètres!$B$5)","v":0},{"$f":"COUNTIFS(Tableau3[Statut actuel],'Analyses Tiphaine'!A30,Tableau3[Mois],'Analyses Tiphaine'!$I$7,Tableau3[Négo],paramètres!$B$5)","v":0},{"$f":"COUNTIFS(Tableau3[Statut actuel],'Analyses Tiphaine'!A30,Tableau3[Mois],'Analyses Tiphaine'!$J$7,Tableau3[Négo],paramètres!$B$5)","v":0},{"$f":"COUNTIFS(Tableau3[Statut actuel],'Analyses Tiphaine'!A30,Tableau3[Mois],'Analyses Tiphaine'!$K$7,Tableau3[Négo],paramètres!$B$5)","v":0},{"$f":"COUNTIFS(Tableau3[Statut actuel],'Analyses Tiphaine'!A30,Tableau3[Mois],'Analyses Tiphaine'!$L$7,Tableau3[Négo],paramètres!$B$5)","v":0},{"$f":"COUNTIFS(Tableau3[Statut actuel],'Analyses Tiphaine'!A30,Tableau3[Mois],'Analyses Tiphaine'!$M$7,Tableau3[Négo],paramètres!$B$5)","v":0},0]
[{"$f":"IF(ISBLANK(paramètres!C12),\"\",paramètres!C12)","v":"Vente annulée"},{"$f":"COUNTIFS(Tableau3[Statut actuel],'Analyses Tiphaine'!A31,Tableau3[Mois],'Analyses Tiphaine'!$B$7,Tableau3[Négo],paramètres!$B$5)","v":0},{"$f":"COUNTIFS(Tableau3[Statut actuel],'Analyses Tiphaine'!A31,Tableau3[Mois],'Analyses Tiphaine'!$C$7,Tableau3[Négo],paramètres!$B$5)","v":0},{"$f":"COUNTIFS(Tableau3[Statut actuel],'Analyses Tiphaine'!A31,Tableau3[Mois],'Analyses Tiphaine'!$D$7,Tableau3[Négo],paramètres!$B$5)","v":0},{"$f":"COUNTIFS(Tableau3[Statut actuel],'Analyses Tiphaine'!A31,Tableau3[Mois],'Analyses Tiphaine'!$E$7,Tableau3[Négo],paramètres!$B$5)","v":0},{"$f":"COUNTIFS(Tableau3[Statut actuel],'Analyses Tiphaine'!A31,Tableau3[Mois],'Analyses Tiphaine'!$F$7,Tableau3[Négo],paramètres!$B$5)","v":0},{"$f":"COUNTIFS(Tableau3[Statut actuel],'Analyses Tiphaine'!A31,Tableau3[Mois],'Analyses Tiphaine'!$G$7,Tableau3[Négo],paramètres!$B$5)","v":0},{"$f":"COUNTIFS(Tableau3[Statut actuel],'Analyses Tiphaine'!A31,Tableau3[Mois],'Analyses Tiphaine'!$H$7,Tableau3[Négo],paramètres!$B$5)","v":0},{"$f":"COUNTIFS(Tableau3[Statut actuel],'Analyses Tiphaine'!A31,Tableau3[Mois],'Analyses Tiphaine'!$I$7,Tableau3[Négo],paramètres!$B$5)","v":0},{"$f":"COUNTIFS(Tableau3[Statut actuel],'Analyses Tiphaine'!A31,Tableau3[Mois],'Analyses Tiphaine'!$J$7,Tableau3[Négo],paramètres!$B$5)","v":0},{"$f":"COUNTIFS(Tableau3[Statut actuel],'Analyses Tiphaine'!A31,Tableau3[Mois],'Analyses Tiphaine'!$K$7,Tableau3[Négo],paramètres!$B$5)","v":0},{"$f":"COUNTIFS(Tableau3[Statut actuel],'Analyses Tiphaine'!A31,Tableau3[Mois],'Analyses Tiphaine'!$L$7,Tableau3[Négo],paramètres!$B$5)","v":0},{"$f":"COUNTIFS(Tableau3[Statut actuel],'Analyses Tiphaine'!A31,Tableau3[Mois],'Analyses Tiphaine'!$M$7,Tableau3[Négo],paramètres!$B$5)","v":1},1]
[{"$f":"IF(ISBLANK(paramètres!C13),\"\",paramètres!C13)","v":"Abandonné"},{"$f":"COUNTIFS(Tableau3[Statut actuel],'Analyses Tiphaine'!A32,Tableau3[Mois],'Analyses Tiphaine'!$B$7,Tableau3[Négo],paramètres!$B$5)","v":0},{"$f":"COUNTIFS(Tableau3[Statut actuel],'Analyses Tiphaine'!A32,Tableau3[Mois],'Analyses Tiphaine'!$C$7,Tableau3[Négo],paramètres!$B$5)","v":1},{"$f":"COUNTIFS(Tableau3[Statut actuel],'Analyses Tiphaine'!A32,Tableau3[Mois],'Analyses Tiphaine'!$D$7,Tableau3[Négo],paramètres!$B$5)","v":0},{"$f":"COUNTIFS(Tableau3[Statut actuel],'Analyses Tiphaine'!A32,Tableau3[Mois],'Analyses Tiphaine'!$E$7,Tableau3[Négo],paramètres!$B$5)","v":0},{"$f":"COUNTIFS(Tableau3[Statut actuel],'Analyses Tiphaine'!A32,Tableau3[Mois],'Analyses Tiphaine'!$F$7,Tableau3[Négo],paramètres!$B$5)","v":0},{"$f":"COUNTIFS(Tableau3[Statut actuel],'Analyses Tiphaine'!A32,Tableau3[Mois],'Analyses Tiphaine'!$G$7,Tableau3[Négo],paramètres!$B$5)","v":0},{"$f":"COUNTIFS(Tableau3[Statut actuel],'Analyses Tiphaine'!A32,Tableau3[Mois],'Analyses Tiphaine'!$H$7,Tableau3[Négo],paramètres!$B$5)","v":0},{"$f":"COUNTIFS(Tableau3[Statut actuel],'Analyses Tiphaine'!A32,Tableau3[Mois],'Analyses Tiphaine'!$I$7,Tableau3[Négo],paramètres!$B$5)","v":0},{"$f":"COUNTIFS(Tableau3[Statut actuel],'Analyses Tiphaine'!A32,Tableau3[Mois],'Analyses Tiphaine'!$J$7,Tableau3[Négo],paramètres!$B$5)","v":0},{"$f":"COUNTIFS(Tableau3[Statut actuel],'Analyses Tiphaine'!A32,Tableau3[Mois],'Analyses Tiphaine'!$K$7,Tableau3[Négo],paramètres!$B$5)","v":0},{"$f":"COUNTIFS(Tableau3[Statut actuel],'Analyses Tiphaine'!A32,Tableau3[Mois],'Analyses Tiphaine'!$L$7,Tableau3[Négo],paramètres!$B$5)","v":0},{"$f":"COUNTIFS(Tableau3[Statut actuel],'Analyses Tiphaine'!A32,Tableau3[Mois],'Analyses Tiphaine'!$M$7,Tableau3[Négo],paramètres!$B$5)","v":0},1]
[{"$f":"IF(ISBLANK(paramètres!C14),\"\",paramètres!C14)","v":"Stand-by"},{"$f":"COUNTIFS(Tableau3[Statut actuel],'Analyses Tiphaine'!A33,Tableau3[Mois],'Analyses Tiphaine'!$B$7,Tableau3[Négo],paramètres!$B$5)","v":0},{"$f":"COUNTIFS(Tableau3[Statut actuel],'Analyses Tiphaine'!A33,Tableau3[Mois],'Analyses Tiphaine'!$C$7,Tableau3[Négo],paramètres!$B$5)","v":0},{"$f":"COUNTIFS(Tableau3[Statut actuel],'Analyses Tiphaine'!A33,Tableau3[Mois],'Analyses Tiphaine'!$D$7,Tableau3[Négo],paramètres!$B$5)","v":0},{"$f":"COUNTIFS(Tableau3[Statut actuel],'Analyses Tiphaine'!A33,Tableau3[Mois],'Analyses Tiphaine'!$E$7,Tableau3[Négo],paramètres!$B$5)","v":0},{"$f":"COUNTIFS(Tableau3[Statut actuel],'Analyses Tiphaine'!A33,Tableau3[Mois],'Analyses Tiphaine'!$F$7,Tableau3[Négo],paramètres!$B$5)","v":0},{"$f":"COUNTIFS(Tableau3[Statut actuel],'Analyses Tiphaine'!A33,Tableau3[Mois],'Analyses Tiphaine'!$G$7,Tableau3[Négo],paramètres!$B$5)","v":0},{"$f":"COUNTIFS(Tableau3[Statut actuel],'Analyses Tiphaine'!A33,Tableau3[Mois],'Analyses Tiphaine'!$H$7,Tableau3[Négo],paramètres!$B$5)","v":0},{"$f":"COUNTIFS(Tableau3[Statut actuel],'Analyses Tiphaine'!A33,Tableau3[Mois],'Analyses Tiphaine'!$I$7,Tableau3[Négo],paramètres!$B$5)","v":0},{"$f":"COUNTIFS(Tableau3[Statut actuel],'Analyses Tiphaine'!A33,Tableau3[Mois],'Analyses Tiphaine'!$J$7,Tableau3[Négo],paramètres!$B$5)","v":0},{"$f":"COUNTIFS(Tableau3[Statut actuel],'Analyses Tiphaine'!A33,Tableau3[Mois],'Analyses Tiphaine'!$K$7,Tableau3[Négo],paramètres!$B$5)","v":0},{"$f":"COUNTIFS(Tableau3[Statut actuel],'Analyses Tiphaine'!A33,Tableau3[Mois],'Analyses Tiphaine'!$L$7,Tableau3[Négo],paramètres!$B$5)","v":0},{"$f":"COUNTIFS(Tableau3[Statut actuel],'Analyses Tiphaine'!A33,Tableau3[Mois],'Analyses Tiphaine'!$M$7,Tableau3[Négo],paramètres!$B$5)","v":0},0]
[{"$f":"IF(ISBLANK(paramètres!C15),\"\",paramètres!C15)","v":"Sans Suite"},{"$f":"COUNTIFS(Tableau3[Statut actuel],'Analyses Tiphaine'!A34,Tableau3[Mois],'Analyses Tiphaine'!$B$7,Tableau3[Négo],paramètres!$B$5)","v":0},{"$f":"COUNTIFS(Tableau3[Statut actuel],'Analyses Tiphaine'!A34,Tableau3[Mois],'Analyses Tiphaine'!$C$7,Tableau3[Négo],paramètres!$B$5)","v":0},{"$f":"COUNTIFS(Tableau3[Statut actuel],'Analyses Tiphaine'!A34,Tableau3[Mois],'Analyses Tiphaine'!$D$7,Tableau3[Négo],paramètres!$B$5)","v":0},{"$f":"COUNTIFS(Tableau3[Statut actuel],'Analyses Tiphaine'!A34,Tableau3[Mois],'Analyses Tiphaine'!$E$7,Tableau3[Négo],paramètres!$B$5)","v":0},{"$f":"COUNTIFS(Tableau3[Statut actuel],'Analyses Tiphaine'!A34,Tableau3[Mois],'Analyses Tiphaine'!$F$7,Tableau3[Négo],paramètres!$B$5)","v":0},{"$f":"COUNTIFS(Tableau3[Statut actuel],'Analyses Tiphaine'!A34,Tableau3[Mois],'Analyses Tiphaine'!$G$7,Tableau3[Négo],paramètres!$B$5)","v":0},{"$f":"COUNTIFS(Tableau3[Statut actuel],'Analyses Tiphaine'!A34,Tableau3[Mois],'Analyses Tiphaine'!$H$7,Tableau3[Négo],paramètres!$B$5)","v":0},{"$f":"COUNTIFS(Tableau3[Statut actuel],'Analyses Tiphaine'!A34,Tableau3[Mois],'Analyses Tiphaine'!$I$7,Tableau3[Négo],paramètres!$B$5)","v":0},{"$f":"COUNTIFS(Tableau3[Statut actuel],'Analyses Tiphaine'!A34,Tableau3[Mois],'Analyses Tiphaine'!$J$7,Tableau3[Négo],paramètres!$B$5)","v":0},{"$f":"COUNTIFS(Tableau3[Statut actuel],'Analyses Tiphaine'!A34,Tableau3[Mois],'Analyses Tiphaine'!$K$7,Tableau3[Négo],paramètres!$B$5)","v":0},{"$f":"COUNTIFS(Tableau3[Statut actuel],'Analyses Tiphaine'!A34,Tableau3[Mois],'Analyses Tiphaine'!$L$7,Tableau3[Négo],paramètres!$B$5)","v":0},{"$f":"COUNTIFS(Tableau3[Statut actuel],'Analyses Tiphaine'!A34,Tableau3[Mois],'Analyses Tiphaine'!$M$7,Tableau3[Négo],paramètres!$B$5)","v":0},0]
[{"$f":"IF(ISBLANK(paramètres!C16),\"\",paramètres!C16)","v":"Mandat"},{"$f":"COUNTIFS(Tableau3[Statut actuel],'Analyses Tiphaine'!A35,Tableau3[Mois],'Analyses Tiphaine'!$B$7,Tableau3[Négo],paramètres!$B$5)","v":0},{"$f":"COUNTIFS(Tableau3[Statut actuel],'Analyses Tiphaine'!A35,Tableau3[Mois],'Analyses Tiphaine'!$C$7,Tableau3[Négo],paramètres!$B$5)","v":1},{"$f":"COUNTIFS(Tableau3[Statut actuel],'Analyses Tiphaine'!A35,Tableau3[Mois],'Analyses Tiphaine'!$D$7,Tableau3[Négo],paramètres!$B$5)","v":0},{"$f":"COUNTIFS(Tableau3[Statut actuel],'Analyses Tiphaine'!A35,Tableau3[Mois],'Analyses Tiphaine'!$E$7,Tableau3[Négo],paramètres!$B$5)","v":0},{"$f":"COUNTIFS(Tableau3[Statut actuel],'Analyses Tiphaine'!A35,Tableau3[Mois],'Analyses Tiphaine'!$F$7,Tableau3[Négo],paramètres!$B$5)","v":0},{"$f":"COUNTIFS(Tableau3[Statut actuel],'Analyses Tiphaine'!A35,Tableau3[Mois],'Analyses Tiphaine'!$G$7,Tableau3[Négo],paramètres!$B$5)","v":0},{"$f":"COUNTIFS(Tableau3[Statut actuel],'Analyses Tiphaine'!A35,Tableau3[Mois],'Analyses Tiphaine'!$H$7,Tableau3[Négo],paramètres!$B$5)","v":0},{"$f":"COUNTIFS(Tableau3[Statut actuel],'Analyses Tiphaine'!A35,Tableau3[Mois],'Analyses Tiphaine'!$I$7,Tableau3[Négo],paramètres!$B$5)","v":0},{"$f":"COUNTIFS(Tableau3[Statut actuel],'Analyses Tiphaine'!A35,Tableau3[Mois],'Analyses Tiphaine'!$J$7,Tableau3[Négo],paramètres!$B$5)","v":0},{"$f":"COUNTIFS(Tableau3[Statut actuel],'Analyses Tiphaine'!A35,Tableau3[Mois],'Analyses Tiphaine'!$K$7,Tableau3[Négo],paramètres!$B$5)","v":0},{"$f":"COUNTIFS(Tableau3[Statut actuel],'Analyses Tiphaine'!A35,Tableau3[Mois],'Analyses Tiphaine'!$L$7,Tableau3[Négo],paramètres!$B$5)","v":0},{"$f":"COUNTIFS(Tableau3[Statut actuel],'Analyses Tiphaine'!A35,Tableau3[Mois],'Analyses Tiphaine'!$M$7,Tableau3[Négo],paramètres!$B$5)","v":0},1]
[]
["TOTAL",{"$f":"SUM(B24:B35)","v":0},{"$f":"SUM(C24:C35)","v":2},0,0,0,0,0,0,0,0,0,2,{"$f":"SUM(N24:N35)","v":4}]
[]
["Chiffre d'affaires du commercial"]
[null,"JANVIER","FEVRIER","MARS","AVRIL","MAI","JUIN","JUILLET","AOÛT","SEPTEMBRE","OCTOBRE","NOVEMBRE","DÉCEMBRE","TOTAL"]
[]
["COMPROMIS EN COURS"]
["Montant"]
["ACTES"]
["Montant"]
["VENTES ANNULEES"]
["Montant annulé"]
[]
["Somme CA "]
["Rappel sur objectif (mensualisé)"]
[]
["Cumul CA"]
["Cumul objectif"]
[]
[]
[]
[null,"Rappel objectif annuel du commercial:"]
[]
[null,"Pourcentage de l'objectif:"]

{"sheet":"Analyses Vanessa","index":7,"n_rows":59,"n_cols":15,"rows_kept":59,"cut":false,"hidden":true,"merged":[]}
["Analyses par commercial"]
[]
[]
[null,null,null,null,null,"Sélectionnez nom du négociateur:","Vanessa"]
[]
["Analyse de l'origine des prospects par commercial"]
["Origine","JANVIER","FÉVRIER","MARS","AVRIL","MAI","JUIN","JUILLET","AOÛT","SEPTEMBRE","OCTOBRE","NOVEMBRE","DÉCEMBRE","TOTAL","Pourcentage"]
[{"$f":"IF(ISBLANK(paramètres!A5),\"\",paramètres!A5)","v":"Appel direct"},{"$f":"COUNTIFS(Tableau3[Source du prospect],'Analyses Vanessa'!A8,Tableau3[Mois],'Analyses Vanessa'!$B$7,Tableau3[Négo],paramètres!$B$5)","v":0},{"$f":"COUNTIFS(Tableau3[Source du prospect],'Analyses Vanessa'!A8,Tableau3[Mois],'Analyses Vanessa'!$C$7,Tableau3[Négo],paramètres!$B$5)","v":0},{"$f":"COUNTIFS(Tableau3[Source du prospect],'Analyses Vanessa'!A8,Tableau3[Mois],'Analyses Vanessa'!$D$7,Tableau3[Négo],paramètres!$B$5)","v":0},{"$f":"COUNTIFS(Tableau3[Source du prospect],'Analyses Vanessa'!A8,Tableau3[Mois],'Analyses Vanessa'!$E$7,Tableau3[Négo],paramètres!$B$5)","v":0},{"$f":"COUNTIFS(Tableau3[Source du prospect],'Analyses Vanessa'!A8,Tableau3[Mois],'Analyses Vanessa'!$F$7,Tableau3[Négo],paramètres!$B$5)","v":0},{"$f":"COUNTIFS(Tableau3[Source du prospect],'Analyses Vanessa'!A8,Tableau3[Mois],'Analyses Vanessa'!$G$7,Tableau3[Négo],paramètres!$B$5)","v":0},{"$f":"COUNTIFS(Tableau3[Source du prospect],'Analyses Vanessa'!A8,Tableau3[Mois],'Analyses Vanessa'!$H$7,Tableau3[Négo],paramètres!$B$5)","v":0},{"$f":"COUNTIFS(Tableau3[Source du prospect],'Analyses Vanessa'!A8,Tableau3[Mois],'Analyses Vanessa'!$I$7,Tableau3[Négo],paramètres!$B$5)","v":0},{"$f":"COUNTIFS(Tableau3[Source du prospect],'Analyses Vanessa'!A8,Tableau3[Mois],'Analyses Vanessa'!$J$7,Tableau3[Négo],paramètres!$B$5)","v":0},{"$f":"COUNTIFS(Tableau3[Source du prospect],'Analyses Vanessa'!A8,Tableau3[Mois],'Analyses Vanessa'!$K$7,Tableau3[Négo],paramètres!$B$5)","v":0},{"$f":"COUNTIFS(Tableau3[Source du prospect],'Analyses Vanessa'!A8,Tableau3[Mois],'Analyses Vanessa'!$L$7,Tableau3[Négo],paramètres!$B$5)","v":0},{"$f":"COUNTIFS(Tableau3[Source du prospect],'Analyses Vanessa'!A8,Tableau3[Mois],'Analyses Vanessa'!$M$7,Tableau3[Négo],paramètres!$B$5)","v":1},{"$f":"SUM(B8:M8)","v":1}]
[{"$f":"IF(ISBLANK(paramètres!A6),\"\",paramètres!A6)","v":"e-mail"},{"$f":"COUNTIFS(Tableau3[Source du prospect],'Analyses Vanessa'!A9,Tableau3[Mois],'Analyses Vanessa'!$B$7,Tableau3[Négo],paramètres!$B$5)","v":0},{"$f":"COUNTIFS(Tableau3[Source du prospect],'Analyses Vanessa'!A9,Tableau3[Mois],'Analyses Vanessa'!$C$7,Tableau3[Négo],paramètres!$B$5)","v":1},{"$f":"COUNTIFS(Tableau3[Source du prospect],'Analyses Vanessa'!A9,Tableau3[Mois],'Analyses Vanessa'!$D$7,Tableau3[Négo],paramètres!$B$5)","v":0},{"$f":"COUNTIFS(Tableau3[Source du prospect],'Analyses Vanessa'!A9,Tableau3[Mois],'Analyses Vanessa'!$E$7,Tableau3[Négo],paramètres!$B$5)","v":0},{"$f":"COUNTIFS(Tableau3[Source du prospect],'Analyses Vanessa'!A9,Tableau3[Mois],'Analyses Vanessa'!$F$7,Tableau3[Négo],paramètres!$B$5)","v":0},{"$f":"COUNTIFS(Tableau3[Source du prospect],'Analyses Vanessa'!A9,Tableau3[Mois],'Analyses Vanessa'!$G$7,Tableau3[Négo],paramètres!$B$5)","v":0},{"$f":"COUNTIFS(Tableau3[Source du prospect],'Analyses Vanessa'!A9,Tableau3[Mois],'Analyses Vanessa'!$H$7,Tableau3[Négo],paramètres!$B$5)","v":0},{"$f":"COUNTIFS(Tableau3[Source du prospect],'Analyses Vanessa'!A9,Tableau3[Mois],'Analyses Vanessa'!$I$7,Tableau3[Négo],paramètres!$B$5)","v":0},{"$f":"COUNTIFS(Tableau3[Source du prospect],'Analyses Vanessa'!A9,Tableau3[Mois],'Analyses Vanessa'!$J$7,Tableau3[Négo],paramètres!$B$5)","v":0},{"$f":"COUNTIFS(Tableau3[Source du prospect],'Analyses Vanessa'!A9,Tableau3[Mois],'Analyses Vanessa'!$K$7,Tableau3[Négo],paramètres!$B$5)","v":0},{"$f":"COUNTIFS(Tableau3[Source du prospect],'Analyses Vanessa'!A9,Tableau3[Mois],'Analyses Vanessa'!$L$7,Tableau3[Négo],paramètres!$B$5)","v":0},{"$f":"COUNTIFS(Tableau3[Source du prospect],'Analyses Vanessa'!A9,Tableau3[Mois],'Analyses Vanessa'!$M$7,Tableau3[Négo],paramètres!$B$5)","v":0},{"$f":"SUM(B9:M9)","v":1}]
[{"$f":"IF(ISBLANK(paramètres!A7),\"\",paramètres!A7)","v":"Prospection"},{"$f":"COUNTIFS(Tableau3[Source du prospect],'Analyses Vanessa'!A10,Tableau3[Mois],'Analyses Vanessa'!$B$7,Tableau3[Négo],paramètres!$B$5)","v":0},{"$f":"COUNTIFS(Tableau3[Source du prospect],'Analyses Vanessa'!A10,Tableau3[Mois],'Analyses Vanessa'!$C$7,Tableau3[Négo],paramètres!$B$5)","v":0},{"$f":"COUNTIFS(Tableau3[Source du prospect],'Analyses Vanessa'!A10,Tableau3[Mois],'Analyses Vanessa'!$D$7,Tableau3[Négo],paramètres!$B$5)","v":0},{"$f":"COUNTIFS(Tableau3[Source du prospect],'Analyses Vanessa'!A10,Tableau3[Mois],'Analyses Vanessa'!$E$7,Tableau3[Négo],paramètres!$B$5)","v":0},{"$f":"COUNTIFS(Tableau3[Source du prospect],'Analyses Vanessa'!A10,Tableau3[Mois],'Analyses Vanessa'!$F$7,Tableau3[Négo],paramètres!$B$5)","v":0},{"$f":"COUNTIFS(Tableau3[Source du prospect],'Analyses Vanessa'!A10,Tableau3[Mois],'Analyses Vanessa'!$G$7,Tableau3[Négo],paramètres!$B$5)","v":0},{"$f":"COUNTIFS(Tableau3[Source du prospect],'Analyses Vanessa'!A10,Tableau3[Mois],'Analyses Vanessa'!$H$7,Tableau3[Négo],paramètres!$B$5)","v":0},{"$f":"COUNTIFS(Tableau3[Source du prospect],'Analyses Vanessa'!A10,Tableau3[Mois],'Analyses Vanessa'!$I$7,Tableau3[Négo],paramètres!$B$5)","v":0},{"$f":"COUNTIFS(Tableau3[Source du prospect],'Analyses Vanessa'!A10,Tableau3[Mois],'Analyses Vanessa'!$J$7,Tableau3[Négo],paramètres!$B$5)","v":0},{"$f":"COUNTIFS(Tableau3[Source du prospect],'Analyses Vanessa'!A10,Tableau3[Mois],'Analyses Vanessa'!$K$7,Tableau3[Négo],paramètres!$B$5)","v":0},{"$f":"COUNTIFS(Tableau3[Source du prospect],'Analyses Vanessa'!A10,Tableau3[Mois],'Analyses Vanessa'!$L$7,Tableau3[Négo],paramètres!$B$5)","v":0},{"$f":"COUNTIFS(Tableau3[Source du prospect],'Analyses Vanessa'!A10,Tableau3[Mois],'Analyses Vanessa'!$M$7,Tableau3[Négo],paramètres!$B$5)","v":1},1]
[{"$f":"IF(ISBLANK(paramètres!A8),\"\",paramètres!A8)","v":"Site Internet"},{"$f":"COUNTIFS(Tableau3[Source du prospect],'Analyses Vanessa'!A11,Tableau3[Mois],'Analyses Vanessa'!$B$7,Tableau3[Négo],paramètres!$B$5)","v":0},{"$f":"COUNTIFS(Tableau3[Source du prospect],'Analyses Vanessa'!A11,Tableau3[Mois],'Analyses Vanessa'!$C$7,Tableau3[Négo],paramètres!$B$5)","v":1},{"$f":"COUNTIFS(Tableau3[Source du prospect],'Analyses Vanessa'!A11,Tableau3[Mois],'Analyses Vanessa'!$D$7,Tableau3[Négo],paramètres!$B$5)","v":0},{"$f":"COUNTIFS(Tableau3[Source du prospect],'Analyses Vanessa'!A11,Tableau3[Mois],'Analyses Vanessa'!$E$7,Tableau3[Négo],paramètres!$B$5)","v":0},{"$f":"COUNTIFS(Tableau3[Source du prospect],'Analyses Vanessa'!A11,Tableau3[Mois],'Analyses Vanessa'!$F$7,Tableau3[Négo],paramètres!$B$5)","v":0},{"$f":"COUNTIFS(Tableau3[Source du prospect],'Analyses Vanessa'!A11,Tableau3[Mois],'Analyses Vanessa'!$G$7,Tableau3[Négo],paramètres!$B$5)","v":0},{"$f":"COUNTIFS(Tableau3[Source du prospect],'Analyses Vanessa'!A11,Tableau3[Mois],'Analyses Vanessa'!$H$7,Tableau3[Négo],paramètres!$B$5)","v":0},{"$f":"COUNTIFS(Tableau3[Source du prospect],'Analyses Vanessa'!A11,Tableau3[Mois],'Analyses Vanessa'!$I$7,Tableau3[Négo],paramètres!$B$5)","v":0},{"$f":"COUNTIFS(Tableau3[Source du prospect],'Analyses Vanessa'!A11,Tableau3[Mois],'Analyses Vanessa'!$J$7,Tableau3[Négo],paramètres!$B$5)","v":0},{"$f":"COUNTIFS(Tableau3[Source du prospect],'Analyses Vanessa'!A11,Tableau3[Mois],'Analyses Vanessa'!$K$7,Tableau3[Négo],paramètres!$B$5)","v":0},{"$f":"COUNTIFS(Tableau3[Source du prospect],'Analyses Vanessa'!A11,Tableau3[Mois],'Analyses Vanessa'!$L$7,Tableau3[Négo],paramètres!$B$5)","v":0},{"$f":"COUNTIFS(Tableau3[Source du prospect],'Analyses Vanessa'!A11,Tableau3[Mois],'Analyses Vanessa'!$M$7,Tableau3[Négo],paramètres!$B$5)","v":0},1]
[{"$f":"IF(ISBLANK(paramètres!A9),\"\",paramètres!A9)","v":"Appel agence"},{"$f":"COUNTIFS(Tableau3[Source du prospect],'Analyses Vanessa'!A12,Tableau3[Mois],'Analyses Vanessa'!$B$7,Tableau3[Négo],paramètres!$B$5)","v":0},{"$f":"COUNTIFS(Tableau3[Source du prospect],'Analyses Vanessa'!A12,Tableau3[Mois],'Analyses Vanessa'!$C$7,Tableau3[Négo],paramètres!$B$5)","v":0},{"$f":"COUNTIFS(Tableau3[Source du prospect],'Analyses Vanessa'!A12,Tableau3[Mois],'Analyses Vanessa'!$D$7,Tableau3[Négo],paramètres!$B$5)","v":0},{"$f":"COUNTIFS(Tableau3[Source du prospect],'Analyses Vanessa'!A12,Tableau3[Mois],'Analyses Vanessa'!$E$7,Tableau3[Négo],paramètres!$B$5)","v":0},{"$f":"COUNTIFS(Tableau3[Source du prospect],'Analyses Vanessa'!A12,Tableau3[Mois],'Analyses Vanessa'!$F$7,Tableau3[Négo],paramètres!$B$5)","v":0},{"$f":"COUNTIFS(Tableau3[Source du prospect],'Analyses Vanessa'!A12,Tableau3[Mois],'Analyses Vanessa'!$G$7,Tableau3[Négo],paramètres!$B$5)","v":0},{"$f":"COUNTIFS(Tableau3[Source du prospect],'Analyses Vanessa'!A12,Tableau3[Mois],'Analyses Vanessa'!$H$7,Tableau3[Négo],paramètres!$B$5)","v":0},{"$f":"COUNTIFS(Tableau3[Source du prospect],'Analyses Vanessa'!A12,Tableau3[Mois],'Analyses Vanessa'!$I$7,Tableau3[Négo],paramètres!$B$5)","v":0},{"$f":"COUNTIFS(Tableau3[Source du prospect],'Analyses Vanessa'!A12,Tableau3[Mois],'Analyses Vanessa'!$J$7,Tableau3[Négo],paramètres!$B$5)","v":0},{"$f":"COUNTIFS(Tableau3[Source du prospect],'Analyses Vanessa'!A12,Tableau3[Mois],'Analyses Vanessa'!$K$7,Tableau3[Négo],paramètres!$B$5)","v":0},{"$f":"COUNTIFS(Tableau3[Source du prospect],'Analyses Vanessa'!A12,Tableau3[Mois],'Analyses Vanessa'!$L$7,Tableau3[Négo],paramètres!$B$5)","v":0},{"$f":"COUNTIFS(Tableau3[Source du prospect],'Analyses Vanessa'!A12,Tableau3[Mois],'Analyses Vanessa'!$M$7,Tableau3[Négo],paramètres!$B$5)","v":0},0]
[{"$f":"IF(ISBLANK(paramètres!A10),\"\",paramètres!A10)","v":""},null,null,null,null,null,null,null,null,null,null,null,null,0]
[{"$f":"IF(ISBLANK(paramètres!A11),\"\",paramètres!A11)","v":""},null,null,null,null,null,null,null,null,null,null,null,null,0]
[{"$f":"IF(ISBLANK(paramètres!A12),\"\",paramètres!A12)","v":""},null,null,null,null,null,null,null,null,null,null,null,null,{"$f":"SUM(B15:M15)","v":0}]
[{"$f":"IF(ISBLANK(paramètres!A13),\"\",paramètres!A13)","v":""},null,null,null,null,null,null,null,null,null,null,null,null,0]
[{"$f":"IF(ISBLANK(paramètres!A14),\"\",paramètres!A14)","v":""},null,null,null,null,null,null,null,null,null,null,null,null,0]
[{"$f":"IF(ISBLANK(paramètres!A15),\"\",paramètres!A15)","v":""},null,null,null,null,null,null,null,null,null,null,null,null,0]
[{"$f":"IF(ISBLANK(paramètres!A16),\"\",paramètres!A16)","v":""},null,null,null,null,null,null,null,null,null,null,null,null,0]
["TOTAL",{"$f":"SUM(B8:B19)","v":0},{"$f":"SUM(C8:C19)","v":2},0,0,0,0,0,0,0,0,0,2,4,0]
[]
["Statut actuel des dossiers du négociateur"]
["Statut","JANVIER","FÉVRIER","MARS","AVRIL","MAI","JUIN","JUILLET","AOÛT","SEPTEMBRE","OCTOBRE","NOVEMBRE","DÉCEMBRE","TOTAL","Pourcentage"]
[{"$f":"IF(ISBLANK(paramètres!C5),\"\",paramètres!C5)","v":"TEL, SMS"},{"$f":"COUNTIFS(Tableau3[Statut actuel],'Analyses Vanessa'!A24,Tableau3[Mois],'Analyses Vanessa'!$B$7,Tableau3[Négo],paramètres!$B$5)","v":0},{"$f":"COUNTIFS(Tableau3[Statut actuel],'Analyses Vanessa'!A24,Tableau3[Mois],'Analyses Vanessa'!$C$7,Tableau3[Négo],paramètres!$B$5)","v":0},{"$f":"COUNTIFS(Tableau3[Statut actuel],'Analyses Vanessa'!A24,Tableau3[Mois],'Analyses Vanessa'!$D$7,Tableau3[Négo],paramètres!$B$5)","v":0},{"$f":"COUNTIFS(Tableau3[Statut actuel],'Analyses Vanessa'!A24,Tableau3[Mois],'Analyses Vanessa'!$E$7,Tableau3[Négo],paramètres!$B$5)","v":0},{"$f":"COUNTIFS(Tableau3[Statut actuel],'Analyses Vanessa'!A24,Tableau3[Mois],'Analyses Vanessa'!$F$7,Tableau3[Négo],paramètres!$B$5)","v":0},{"$f":"COUNTIFS(Tableau3[Statut actuel],'Analyses Vanessa'!A24,Tableau3[Mois],'Analyses Vanessa'!$G$7,Tableau3[Négo],paramètres!$B$5)","v":0},{"$f":"COUNTIFS(Tableau3[Statut actuel],'Analyses Vanessa'!A24,Tableau3[Mois],'Analyses Vanessa'!$H$7,Tableau3[Négo],paramètres!$B$5)","v":0},{"$f":"COUNTIFS(Tableau3[Statut actuel],'Analyses Vanessa'!A24,Tableau3[Mois],'Analyses Vanessa'!$I$7,Tableau3[Négo],paramètres!$B$5)","v":0},{"$f":"COUNTIFS(Tableau3[Statut actuel],'Analyses Vanessa'!A24,Tableau3[Mois],'Analyses Vanessa'!$J$7,Tableau3[Négo],paramètres!$B$5)","v":0},{"$f":"COUNTIFS(Tableau3[Statut actuel],'Analyses Vanessa'!A24,Tableau3[Mois],'Analyses Vanessa'!$K$7,Tableau3[Négo],paramètres!$B$5)","v":0},{"$f":"COUNTIFS(Tableau3[Statut actuel],'Analyses Vanessa'!A24,Tableau3[Mois],'Analyses Vanessa'!$L$7,Tableau3[Négo],paramètres!$B$5)","v":0},{"$f":"COUNTIFS(Tableau3[Statut actuel],'Analyses Vanessa'!A24,Tableau3[Mois],'Analyses Vanessa'!$M$7,Tableau3[Négo],paramètres!$B$5)","v":0},{"$f":"SUM(B24:M24)","v":0}]
[{"$f":"IF(ISBLANK(paramètres!C6),\"\",paramètres!C6)","v":"Porte à porte"},{"$f":"COUNTIFS(Tableau3[Statut actuel],'Analyses Vanessa'!A25,Tableau3[Mois],'Analyses Vanessa'!$B$7,Tableau3[Négo],paramètres!$B$5)","v":0},{"$f":"COUNTIFS(Tableau3[Statut actuel],'Analyses Vanessa'!A25,Tableau3[Mois],'Analyses Vanessa'!$C$7,Tableau3[Négo],paramètres!$B$5)","v":0},{"$f":"COUNTIFS(Tableau3[Statut actuel],'Analyses Vanessa'!A25,Tableau3[Mois],'Analyses Vanessa'!$D$7,Tableau3[Négo],paramètres!$B$5)","v":0},{"$f":"COUNTIFS(Tableau3[Statut actuel],'Analyses Vanessa'!A25,Tableau3[Mois],'Analyses Vanessa'!$E$7,Tableau3[Négo],paramètres!$B$5)","v":0},{"$f":"COUNTIFS(Tableau3[Statut actuel],'Analyses Vanessa'!A25,Tableau3[Mois],'Analyses Vanessa'!$F$7,Tableau3[Négo],paramètres!$B$5)","v":0},{"$f":"COUNTIFS(Tableau3[Statut actuel],'Analyses Vanessa'!A25,Tableau3[Mois],'Analyses Vanessa'!$G$7,Tableau3[Négo],paramètres!$B$5)","v":0},{"$f":"COUNTIFS(Tableau3[Statut actuel],'Analyses Vanessa'!A25,Tableau3[Mois],'Analyses Vanessa'!$H$7,Tableau3[Négo],paramètres!$B$5)","v":0},{"$f":"COUNTIFS(Tableau3[Statut actuel],'Analyses Vanessa'!A25,Tableau3[Mois],'Analyses Vanessa'!$I$7,Tableau3[Négo],paramètres!$B$5)","v":0},{"$f":"COUNTIFS(Tableau3[Statut actuel],'Analyses Vanessa'!A25,Tableau3[Mois],'Analyses Vanessa'!$J$7,Tableau3[Négo],paramètres!$B$5)","v":0},{"$f":"COUNTIFS(Tableau3[Statut actuel],'Analyses Vanessa'!A25,Tableau3[Mois],'Analyses Vanessa'!$K$7,Tableau3[Négo],paramètres!$B$5)","v":0},{"$f":"COUNTIFS(Tableau3[Statut actuel],'Analyses Vanessa'!A25,Tableau3[Mois],'Analyses Vanessa'!$L$7,Tableau3[Négo],paramètres!$B$5)","v":0},{"$f":"COUNTIFS(Tableau3[Statut actuel],'Analyses Vanessa'!A25,Tableau3[Mois],'Analyses Vanessa'!$M$7,Tableau3[Négo],paramètres!$B$5)","v":0},{"$f":"SUM(B25:M25)","v":0}]
[{"$f":"IF(ISBLANK(paramètres!C7),\"\",paramètres!C7)","v":"R1"},{"$f":"COUNTIFS(Tableau3[Statut actuel],'Analyses Vanessa'!A26,Tableau3[Mois],'Analyses Vanessa'!$B$7,Tableau3[Négo],paramètres!$B$5)","v":0},{"$f":"COUNTIFS(Tableau3[Statut actuel],'Analyses Vanessa'!A26,Tableau3[Mois],'Analyses Vanessa'!$C$7,Tableau3[Négo],paramètres!$B$5)","v":0},{"$f":"COUNTIFS(Tableau3[Statut actuel],'Analyses Vanessa'!A26,Tableau3[Mois],'Analyses Vanessa'!$D$7,Tableau3[Négo],paramètres!$B$5)","v":0},{"$f":"COUNTIFS(Tableau3[Statut actuel],'Analyses Vanessa'!A26,Tableau3[Mois],'Analyses Vanessa'!$E$7,Tableau3[Négo],paramètres!$B$5)","v":0},{"$f":"COUNTIFS(Tableau3[Statut actuel],'Analyses Vanessa'!A26,Tableau3[Mois],'Analyses Vanessa'!$F$7,Tableau3[Négo],paramètres!$B$5)","v":0},{"$f":"COUNTIFS(Tableau3[Statut actuel],'Analyses Vanessa'!A26,Tableau3[Mois],'Analyses Vanessa'!$G$7,Tableau3[Négo],paramètres!$B$5)","v":0},{"$f":"COUNTIFS(Tableau3[Statut actuel],'Analyses Vanessa'!A26,Tableau3[Mois],'Analyses Vanessa'!$H$7,Tableau3[Négo],paramètres!$B$5)","v":0},{"$f":"COUNTIFS(Tableau3[Statut actuel],'Analyses Vanessa'!A26,Tableau3[Mois],'Analyses Vanessa'!$I$7,Tableau3[Négo],paramètres!$B$5)","v":0},{"$f":"COUNTIFS(Tableau3[Statut actuel],'Analyses Vanessa'!A26,Tableau3[Mois],'Analyses Vanessa'!$J$7,Tableau3[Négo],paramètres!$B$5)","v":0},{"$f":"COUNTIFS(Tableau3[Statut actuel],'Analyses Vanessa'!A26,Tableau3[Mois],'Analyses Vanessa'!$K$7,Tableau3[Négo],paramètres!$B$5)","v":0},{"$f":"COUNTIFS(Tableau3[Statut actuel],'Analyses Vanessa'!A26,Tableau3[Mois],'Analyses Vanessa'!$L$7,Tableau3[Négo],paramètres!$B$5)","v":0},{"$f":"COUNTIFS(Tableau3[Statut actuel],'Analyses Vanessa'!A26,Tableau3[Mois],'Analyses Vanessa'!$M$7,Tableau3[Négo],paramètres!$B$5)","v":0},0]
[{"$f":"IF(ISBLANK(paramètres!C8),\"\",paramètres!C8)","v":"R2"},{"$f":"COUNTIFS(Tableau3[Statut actuel],'Analyses Vanessa'!A27,Tableau3[Mois],'Analyses Vanessa'!$B$7,Tableau3[Négo],paramètres!$B$5)","v":0},{"$f":"COUNTIFS(Tableau3[Statut actuel],'Analyses Vanessa'!A27,Tableau3[Mois],'Analyses Vanessa'!$C$7,Tableau3[Négo],paramètres!$B$5)","v":0},{"$f":"COUNTIFS(Tableau3[Statut actuel],'Analyses Vanessa'!A27,Tableau3[Mois],'Analyses Vanessa'!$D$7,Tableau3[Négo],paramètres!$B$5)","v":0},{"$f":"COUNTIFS(Tableau3[Statut actuel],'Analyses Vanessa'!A27,Tableau3[Mois],'Analyses Vanessa'!$E$7,Tableau3[Négo],paramètres!$B$5)","v":0},{"$f":"COUNTIFS(Tableau3[Statut actuel],'Analyses Vanessa'!A27,Tableau3[Mois],'Analyses Vanessa'!$F$7,Tableau3[Négo],paramètres!$B$5)","v":0},{"$f":"COUNTIFS(Tableau3[Statut actuel],'Analyses Vanessa'!A27,Tableau3[Mois],'Analyses Vanessa'!$G$7,Tableau3[Négo],paramètres!$B$5)","v":0},{"$f":"COUNTIFS(Tableau3[Statut actuel],'Analyses Vanessa'!A27,Tableau3[Mois],'Analyses Vanessa'!$H$7,Tableau3[Négo],paramètres!$B$5)","v":0},{"$f":"COUNTIFS(Tableau3[Statut actuel],'Analyses Vanessa'!A27,Tableau3[Mois],'Analyses Vanessa'!$I$7,Tableau3[Négo],paramètres!$B$5)","v":0},{"$f":"COUNTIFS(Tableau3[Statut actuel],'Analyses Vanessa'!A27,Tableau3[Mois],'Analyses Vanessa'!$J$7,Tableau3[Négo],paramètres!$B$5)","v":0},{"$f":"COUNTIFS(Tableau3[Statut actuel],'Analyses Vanessa'!A27,Tableau3[Mois],'Analyses Vanessa'!$K$7,Tableau3[Négo],paramètres!$B$5)","v":0},{"$f":"COUNTIFS(Tableau3[Statut actuel],'Analyses Vanessa'!A27,Tableau3[Mois],'Analyses Vanessa'!$L$7,Tableau3[Négo],paramètres!$B$5)","v":0},{"$f":"COUNTIFS(Tableau3[Statut actuel],'Analyses Vanessa'!A27,Tableau3[Mois],'Analyses Vanessa'!$M$7,Tableau3[Négo],paramètres!$B$5)","v":0},0]
[{"$f":"IF(ISBLANK(paramètres!C9),\"\",paramètres!C9)","v":"Estimation faite"},{"$f":"COUNTIFS(Tableau3[Statut actuel],'Analyses Vanessa'!A28,Tableau3[Mois],'Analyses Vanessa'!$B$7,Tableau3[Négo],paramètres!$B$5)","v":0},{"$f":"COUNTIFS(Tableau3[Statut actuel],'Analyses Vanessa'!A28,Tableau3[Mois],'Analyses Vanessa'!$C$7,Tableau3[Négo],paramètres!$B$5)","v":0},{"$f":"COUNTIFS(Tableau3[Statut actuel],'Analyses Vanessa'!A28,Tableau3[Mois],'Analyses Vanessa'!$D$7,Tableau3[Négo],paramètres!$B$5)","v":0},{"$f":"COUNTIFS(Tableau3[Statut actuel],'Analyses Vanessa'!A28,Tableau3[Mois],'Analyses Vanessa'!$E$7,Tableau3[Négo],paramètres!$B$5)","v":0},{"$f":"COUNTIFS(Tableau3[Statut actuel],'Analyses Vanessa'!A28,Tableau3[Mois],'Analyses Vanessa'!$F$7,Tableau3[Négo],paramètres!$B$5)","v":0},{"$f":"COUNTIFS(Tableau3[Statut actuel],'Analyses Vanessa'!A28,Tableau3[Mois],'Analyses Vanessa'!$G$7,Tableau3[Négo],paramètres!$B$5)","v":0},{"$f":"COUNTIFS(Tableau3[Statut actuel],'Analyses Vanessa'!A28,Tableau3[Mois],'Analyses Vanessa'!$H$7,Tableau3[Négo],paramètres!$B$5)","v":0},{"$f":"COUNTIFS(Tableau3[Statut actuel],'Analyses Vanessa'!A28,Tableau3[Mois],'Analyses Vanessa'!$I$7,Tableau3[Négo],paramètres!$B$5)","v":0},{"$f":"COUNTIFS(Tableau3[Statut actuel],'Analyses Vanessa'!A28,Tableau3[Mois],'Analyses Vanessa'!$J$7,Tableau3[Négo],paramètres!$B$5)","v":0},{"$f":"COUNTIFS(Tableau3[Statut actuel],'Analyses Vanessa'!A28,Tableau3[Mois],'Analyses Vanessa'!$K$7,Tableau3[Négo],paramètres!$B$5)","v":0},{"$f":"COUNTIFS(Tableau3[Statut actuel],'Analyses Vanessa'!A28,Tableau3[Mois],'Analyses Vanessa'!$L$7,Tableau3[Négo],paramètres!$B$5)","v":0},{"$f":"COUNTIFS(Tableau3[Statut actuel],'Analyses Vanessa'!A28,Tableau3[Mois],'Analyses Vanessa'!$M$7,Tableau3[Négo],paramètres!$B$5)","v":0},0]
[{"$f":"IF(ISBLANK(paramètres!C10),\"\",paramètres!C10)","v":"Sous compromis"},{"$f":"COUNTIFS(Tableau3[Statut actuel],'Analyses Vanessa'!A29,Tableau3[Mois],'Analyses Vanessa'!$B$7,Tableau3[Négo],paramètres!$B$5)","v":0},{"$f":"COUNTIFS(Tableau3[Statut actuel],'Analyses Vanessa'!A29,Tableau3[Mois],'Analyses Vanessa'!$C$7,Tableau3[Négo],paramètres!$B$5)","v":0},{"$f":"COUNTIFS(Tableau3[Statut actuel],'Analyses Vanessa'!A29,Tableau3[Mois],'Analyses Vanessa'!$D$7,Tableau3[Négo],paramètres!$B$5)","v":0},{"$f":"COUNTIFS(Tableau3[Statut actuel],'Analyses Vanessa'!A29,Tableau3[Mois],'Analyses Vanessa'!$E$7,Tableau3[Négo],paramètres!$B$5)","v":0},{"$f":"COUNTIFS(Tableau3[Statut actuel],'Analyses Vanessa'!A29,Tableau3[Mois],'Analyses Vanessa'!$F$7,Tableau3[Négo],paramètres!$B$5)","v":0},{"$f":"COUNTIFS(Tableau3[Statut actuel],'Analyses Vanessa'!A29,Tableau3[Mois],'Analyses Vanessa'!$G$7,Tableau3[Négo],paramètres!$B$5)","v":0},{"$f":"COUNTIFS(Tableau3[Statut actuel],'Analyses Vanessa'!A29,Tableau3[Mois],'Analyses Vanessa'!$H$7,Tableau3[Négo],paramètres!$B$5)","v":0},{"$f":"COUNTIFS(Tableau3[Statut actuel],'Analyses Vanessa'!A29,Tableau3[Mois],'Analyses Vanessa'!$I$7,Tableau3[Négo],paramètres!$B$5)","v":0},{"$f":"COUNTIFS(Tableau3[Statut actuel],'Analyses Vanessa'!A29,Tableau3[Mois],'Analyses Vanessa'!$J$7,Tableau3[Négo],paramètres!$B$5)","v":0},{"$f":"COUNTIFS(Tableau3[Statut actuel],'Analyses Vanessa'!A29,Tableau3[Mois],'Analyses Vanessa'!$K$7,Tableau3[Négo],paramètres!$B$5)","v":0},{"$f":"COUNTIFS(Tableau3[Statut actuel],'Analyses Vanessa'!A29,Tableau3[Mois],'Analyses Vanessa'!$L$7,Tableau3[Négo],paramètres!$B$5)","v":0},{"$f":"COUNTIFS(Tableau3[Statut actuel],'Analyses Vanessa'!A29,Tableau3[Mois],'Analyses Vanessa'!$M$7,Tableau3[Négo],paramètres!$B$5)","v":1},1]
[{"$f":"IF(ISBLANK(paramètres!C11),\"\",paramètres!C11)","v":"Vendu"},{"$f":"COUNTIFS(Tableau3[Statut actuel],'Analyses Vanessa'!A30,Tableau3[Mois],'Analyses Vanessa'!$B$7,Tableau3[Négo],paramètres!$B$5)","v":0},{"$f":"COUNTIFS(Tableau3[Statut actuel],'Analyses Vanessa'!A30,Tableau3[Mois],'Analyses Vanessa'!$C$7,Tableau3[Négo],paramètres!$B$5)","v":0},{"$f":"COUNTIFS(Tableau3[Statut actuel],'Analyses Vanessa'!A30,Tableau3[Mois],'Analyses Vanessa'!$D$7,Tableau3[Négo],paramètres!$B$5)","v":0},{"$f":"COUNTIFS(Tableau3[Statut actuel],'Analyses Vanessa'!A30,Tableau3[Mois],'Analyses Vanessa'!$E$7,Tableau3[Négo],paramètres!$B$5)","v":0},{"$f":"COUNTIFS(Tableau3[Statut actuel],'Analyses Vanessa'!A30,Tableau3[Mois],'Analyses Vanessa'!$F$7,Tableau3[Négo],paramètres!$B$5)","v":0},{"$f":"COUNTIFS(Tableau3[Statut actuel],'Analyses Vanessa'!A30,Tableau3[Mois],'Analyses Vanessa'!$G$7,Tableau3[Négo],paramètres!$B$5)","v":0},{"$f":"COUNTIFS(Tableau3[Statut actuel],'Analyses Vanessa'!A30,Tableau3[Mois],'Analyses Vanessa'!$H$7,Tableau3[Négo],paramètres!$B$5)","v":0},{"$f":"COUNTIFS(Tableau3[Statut actuel],'Analyses Vanessa'!A30,Tableau3[Mois],'Analyses Vanessa'!$I$7,Tableau3[Négo],paramètres!$B$5)","v":0},{"$f":"COUNTIFS(Tableau3[Statut actuel],'Analyses Vanessa'!A30,Tableau3[Mois],'Analyses Vanessa'!$J$7,Tableau3[Négo],paramètres!$B$5)","v":0},{"$f":"COUNTIFS(Tableau3[Statut actuel],'Analyses Vanessa'!A30,Tableau3[Mois],'Analyses Vanessa'!$K$7,Tableau3[Négo],paramètres!$B$5)","v":0},{"$f":"COUNTIFS(Tableau3[Statut actuel],'Analyses Vanessa'!A30,Tableau3[Mois],'Analyses Vanessa'!$L$7,Tableau3[Négo],paramètres!$B$5)","v":0},{"$f":"COUNTIFS(Tableau3[Statut actuel],'Analyses Vanessa'!A30,Tableau3[Mois],'Analyses Vanessa'!$M$7,Tableau3[Négo],paramètres!$B$5)","v":0},0]
[{"$f":"IF(ISBLANK(paramètres!C12),\"\",paramètres!C12)","v":"Vente annulée"},{"$f":"COUNTIFS(Tableau3[Statut actuel],'Analyses Vanessa'!A31,Tableau3[Mois],'Analyses Vanessa'!$B$7,Tableau3[Négo],paramètres!$B$5)","v":0},{"$f":"COUNTIFS(Tableau3[Statut actuel],'Analyses Vanessa'!A31,Tableau3[Mois],'Analyses Vanessa'!$C$7,Tableau3[Négo],paramètres!$B$5)","v":0},{"$f":"COUNTIFS(Tableau3[Statut actuel],'Analyses Vanessa'!A31,Tableau3[Mois],'Analyses Vanessa'!$D$7,Tableau3[Négo],paramètres!$B$5)","v":0},{"$f":"COUNTIFS(Tableau3[Statut actuel],'Analyses Vanessa'!A31,Tableau3[Mois],'Analyses Vanessa'!$E$7,Tableau3[Négo],paramètres!$B$5)","v":0},{"$f":"COUNTIFS(Tableau3[Statut actuel],'Analyses Vanessa'!A31,Tableau3[Mois],'Analyses Vanessa'!$F$7,Tableau3[Négo],paramètres!$B$5)","v":0},{"$f":"COUNTIFS(Tableau3[Statut actuel],'Analyses Vanessa'!A31,Tableau3[Mois],'Analyses Vanessa'!$G$7,Tableau3[Négo],paramètres!$B$5)","v":0},{"$f":"COUNTIFS(Tableau3[Statut actuel],'Analyses Vanessa'!A31,Tableau3[Mois],'Analyses Vanessa'!$H$7,Tableau3[Négo],paramètres!$B$5)","v":0},{"$f":"COUNTIFS(Tableau3[Statut actuel],'Analyses Vanessa'!A31,Tableau3[Mois],'Analyses Vanessa'!$I$7,Tableau3[Négo],paramètres!$B$5)","v":0},{"$f":"COUNTIFS(Tableau3[Statut actuel],'Analyses Vanessa'!A31,Tableau3[Mois],'Analyses Vanessa'!$J$7,Tableau3[Négo],paramètres!$B$5)","v":0},{"$f":"COUNTIFS(Tableau3[Statut actuel],'Analyses Vanessa'!A31,Tableau3[Mois],'Analyses Vanessa'!$K$7,Tableau3[Négo],paramètres!$B$5)","v":0},{"$f":"COUNTIFS(Tableau3[Statut actuel],'Analyses Vanessa'!A31,Tableau3[Mois],'Analyses Vanessa'!$L$7,Tableau3[Négo],paramètres!$B$5)","v":0},{"$f":"COUNTIFS(Tableau3[Statut actuel],'Analyses Vanessa'!A31,Tableau3[Mois],'Analyses Vanessa'!$M$7,Tableau3[Négo],paramètres!$B$5)","v":1},1]
[{"$f":"IF(ISBLANK(paramètres!C13),\"\",paramètres!C13)","v":"Abandonné"},{"$f":"COUNTIFS(Tableau3[Statut actuel],'Analyses Vanessa'!A32,Tableau3[Mois],'Analyses Vanessa'!$B$7,Tableau3[Négo],paramètres!$B$5)","v":0},{"$f":"COUNTIFS(Tableau3[Statut actuel],'Analyses Vanessa'!A32,Tableau3[Mois],'Analyses Vanessa'!$C$7,Tableau3[Négo],paramètres!$B$5)","v":1},{"$f":"COUNTIFS(Tableau3[Statut actuel],'Analyses Vanessa'!A32,Tableau3[Mois],'Analyses Vanessa'!$D$7,Tableau3[Négo],paramètres!$B$5)","v":0},{"$f":"COUNTIFS(Tableau3[Statut actuel],'Analyses Vanessa'!A32,Tableau3[Mois],'Analyses Vanessa'!$E$7,Tableau3[Négo],paramètres!$B$5)","v":0},{"$f":"COUNTIFS(Tableau3[Statut actuel],'Analyses Vanessa'!A32,Tableau3[Mois],'Analyses Vanessa'!$F$7,Tableau3[Négo],paramètres!$B$5)","v":0},{"$f":"COUNTIFS(Tableau3[Statut actuel],'Analyses Vanessa'!A32,Tableau3[Mois],'Analyses Vanessa'!$G$7,Tableau3[Négo],paramètres!$B$5)","v":0},{"$f":"COUNTIFS(Tableau3[Statut actuel],'Analyses Vanessa'!A32,Tableau3[Mois],'Analyses Vanessa'!$H$7,Tableau3[Négo],paramètres!$B$5)","v":0},{"$f":"COUNTIFS(Tableau3[Statut actuel],'Analyses Vanessa'!A32,Tableau3[Mois],'Analyses Vanessa'!$I$7,Tableau3[Négo],paramètres!$B$5)","v":0},{"$f":"COUNTIFS(Tableau3[Statut actuel],'Analyses Vanessa'!A32,Tableau3[Mois],'Analyses Vanessa'!$J$7,Tableau3[Négo],paramètres!$B$5)","v":0},{"$f":"COUNTIFS(Tableau3[Statut actuel],'Analyses Vanessa'!A32,Tableau3[Mois],'Analyses Vanessa'!$K$7,Tableau3[Négo],paramètres!$B$5)","v":0},{"$f":"COUNTIFS(Tableau3[Statut actuel],'Analyses Vanessa'!A32,Tableau3[Mois],'Analyses Vanessa'!$L$7,Tableau3[Négo],paramètres!$B$5)","v":0},{"$f":"COUNTIFS(Tableau3[Statut actuel],'Analyses Vanessa'!A32,Tableau3[Mois],'Analyses Vanessa'!$M$7,Tableau3[Négo],paramètres!$B$5)","v":0},1]
[{"$f":"IF(ISBLANK(paramètres!C14),\"\",paramètres!C14)","v":"Stand-by"},{"$f":"COUNTIFS(Tableau3[Statut actuel],'Analyses Vanessa'!A33,Tableau3[Mois],'Analyses Vanessa'!$B$7,Tableau3[Négo],paramètres!$B$5)","v":0},{"$f":"COUNTIFS(Tableau3[Statut actuel],'Analyses Vanessa'!A33,Tableau3[Mois],'Analyses Vanessa'!$C$7,Tableau3[Négo],paramètres!$B$5)","v":0},{"$f":"COUNTIFS(Tableau3[Statut actuel],'Analyses Vanessa'!A33,Tableau3[Mois],'Analyses Vanessa'!$D$7,Tableau3[Négo],paramètres!$B$5)","v":0},{"$f":"COUNTIFS(Tableau3[Statut actuel],'Analyses Vanessa'!A33,Tableau3[Mois],'Analyses Vanessa'!$E$7,Tableau3[Négo],paramètres!$B$5)","v":0},{"$f":"COUNTIFS(Tableau3[Statut actuel],'Analyses Vanessa'!A33,Tableau3[Mois],'Analyses Vanessa'!$F$7,Tableau3[Négo],paramètres!$B$5)","v":0},{"$f":"COUNTIFS(Tableau3[Statut actuel],'Analyses Vanessa'!A33,Tableau3[Mois],'Analyses Vanessa'!$G$7,Tableau3[Négo],paramètres!$B$5)","v":0},{"$f":"COUNTIFS(Tableau3[Statut actuel],'Analyses Vanessa'!A33,Tableau3[Mois],'Analyses Vanessa'!$H$7,Tableau3[Négo],paramètres!$B$5)","v":0},{"$f":"COUNTIFS(Tableau3[Statut actuel],'Analyses Vanessa'!A33,Tableau3[Mois],'Analyses Vanessa'!$I$7,Tableau3[Négo],paramètres!$B$5)","v":0},{"$f":"COUNTIFS(Tableau3[Statut actuel],'Analyses Vanessa'!A33,Tableau3[Mois],'Analyses Vanessa'!$J$7,Tableau3[Négo],paramètres!$B$5)","v":0},{"$f":"COUNTIFS(Tableau3[Statut actuel],'Analyses Vanessa'!A33,Tableau3[Mois],'Analyses Vanessa'!$K$7,Tableau3[Négo],paramètres!$B$5)","v":0},{"$f":"COUNTIFS(Tableau3[Statut actuel],'Analyses Vanessa'!A33,Tableau3[Mois],'Analyses Vanessa'!$L$7,Tableau3[Négo],paramètres!$B$5)","v":0},{"$f":"COUNTIFS(Tableau3[Statut actuel],'Analyses Vanessa'!A33,Tableau3[Mois],'Analyses Vanessa'!$M$7,Tableau3[Négo],paramètres!$B$5)","v":0},0]
[{"$f":"IF(ISBLANK(paramètres!C15),\"\",paramètres!C15)","v":"Sans Suite"},{"$f":"COUNTIFS(Tableau3[Statut actuel],'Analyses Vanessa'!A34,Tableau3[Mois],'Analyses Vanessa'!$B$7,Tableau3[Négo],paramètres!$B$5)","v":0},{"$f":"COUNTIFS(Tableau3[Statut actuel],'Analyses Vanessa'!A34,Tableau3[Mois],'Analyses Vanessa'!$C$7,Tableau3[Négo],paramètres!$B$5)","v":0},{"$f":"COUNTIFS(Tableau3[Statut actuel],'Analyses Vanessa'!A34,Tableau3[Mois],'Analyses Vanessa'!$D$7,Tableau3[Négo],paramètres!$B$5)","v":0},{"$f":"COUNTIFS(Tableau3[Statut actuel],'Analyses Vanessa'!A34,Tableau3[Mois],'Analyses Vanessa'!$E$7,Tableau3[Négo],paramètres!$B$5)","v":0},{"$f":"COUNTIFS(Tableau3[Statut actuel],'Analyses Vanessa'!A34,Tableau3[Mois],'Analyses Vanessa'!$F$7,Tableau3[Négo],paramètres!$B$5)","v":0},{"$f":"COUNTIFS(Tableau3[Statut actuel],'Analyses Vanessa'!A34,Tableau3[Mois],'Analyses Vanessa'!$G$7,Tableau3[Négo],paramètres!$B$5)","v":0},{"$f":"COUNTIFS(Tableau3[Statut actuel],'Analyses Vanessa'!A34,Tableau3[Mois],'Analyses Vanessa'!$H$7,Tableau3[Négo],paramètres!$B$5)","v":0},{"$f":"COUNTIFS(Tableau3[Statut actuel],'Analyses Vanessa'!A34,Tableau3[Mois],'Analyses Vanessa'!$I$7,Tableau3[Négo],paramètres!$B$5)","v":0},{"$f":"COUNTIFS(Tableau3[Statut actuel],'Analyses Vanessa'!A34,Tableau3[Mois],'Analyses Vanessa'!$J$7,Tableau3[Négo],paramètres!$B$5)","v":0},{"$f":"COUNTIFS(Tableau3[Statut actuel],'Analyses Vanessa'!A34,Tableau3[Mois],'Analyses Vanessa'!$K$7,Tableau3[Négo],paramètres!$B$5)","v":0},{"$f":"COUNTIFS(Tableau3[Statut actuel],'Analyses Vanessa'!A34,Tableau3[Mois],'Analyses Vanessa'!$L$7,Tableau3[Négo],paramètres!$B$5)","v":0},{"$f":"COUNTIFS(Tableau3[Statut actuel],'Analyses Vanessa'!A34,Tableau3[Mois],'Analyses Vanessa'!$M$7,Tableau3[Négo],paramètres!$B$5)","v":0},0]
[{"$f":"IF(ISBLANK(paramètres!C16),\"\",paramètres!C16)","v":"Mandat"},{"$f":"COUNTIFS(Tableau3[Statut actuel],'Analyses Vanessa'!A35,Tableau3[Mois],'Analyses Vanessa'!$B$7,Tableau3[Négo],paramètres!$B$5)","v":0},{"$f":"COUNTIFS(Tableau3[Statut actuel],'Analyses Vanessa'!A35,Tableau3[Mois],'Analyses Vanessa'!$C$7,Tableau3[Négo],paramètres!$B$5)","v":1},{"$f":"COUNTIFS(Tableau3[Statut actuel],'Analyses Vanessa'!A35,Tableau3[Mois],'Analyses Vanessa'!$D$7,Tableau3[Négo],paramètres!$B$5)","v":0},{"$f":"COUNTIFS(Tableau3[Statut actuel],'Analyses Vanessa'!A35,Tableau3[Mois],'Analyses Vanessa'!$E$7,Tableau3[Négo],paramètres!$B$5)","v":0},{"$f":"COUNTIFS(Tableau3[Statut actuel],'Analyses Vanessa'!A35,Tableau3[Mois],'Analyses Vanessa'!$F$7,Tableau3[Négo],paramètres!$B$5)","v":0},{"$f":"COUNTIFS(Tableau3[Statut actuel],'Analyses Vanessa'!A35,Tableau3[Mois],'Analyses Vanessa'!$G$7,Tableau3[Négo],paramètres!$B$5)","v":0},{"$f":"COUNTIFS(Tableau3[Statut actuel],'Analyses Vanessa'!A35,Tableau3[Mois],'Analyses Vanessa'!$H$7,Tableau3[Négo],paramètres!$B$5)","v":0},{"$f":"COUNTIFS(Tableau3[Statut actuel],'Analyses Vanessa'!A35,Tableau3[Mois],'Analyses Vanessa'!$I$7,Tableau3[Négo],paramètres!$B$5)","v":0},{"$f":"COUNTIFS(Tableau3[Statut actuel],'Analyses Vanessa'!A35,Tableau3[Mois],'Analyses Vanessa'!$J$7,Tableau3[Négo],paramètres!$B$5)","v":0},{"$f":"COUNTIFS(Tableau3[Statut actuel],'Analyses Vanessa'!A35,Tableau3[Mois],'Analyses Vanessa'!$K$7,Tableau3[Négo],paramètres!$B$5)","v":0},{"$f":"COUNTIFS(Tableau3[Statut actuel],'Analyses Vanessa'!A35,Tableau3[Mois],'Analyses Vanessa'!$L$7,Tableau3[Négo],paramètres!$B$5)","v":0},{"$f":"COUNTIFS(Tableau3[Statut actuel],'Analyses Vanessa'!A35,Tableau3[Mois],'Analyses Vanessa'!$M$7,Tableau3[Négo],paramètres!$B$5)","v":0},1]
[]
["TOTAL",{"$f":"SUM(B24:B35)","v":0},{"$f":"SUM(C24:C35)","v":2},0,0,0,0,0,0,0,0,0,2,{"$f":"SUM(N24:N35)","v":4}]
[]
["Chiffre d'affaires du commercial"]
[null,"JANVIER","FEVRIER","MARS","AVRIL","MAI","JUIN","JUILLET","AOÛT","SEPTEMBRE","OCTOBRE","NOVEMBRE","DÉCEMBRE","TOTAL"]
[]
["COMPROMIS EN COURS"]
["Montant"]
["ACTES"]
["Montant"]
["VENTES ANNULEES"]
["Montant annulé"]
[]
["Somme CA "]
["Rappel sur objectif (mensualisé)"]
[]
["Cumul CA"]
["Cumul objectif"]
[]
[]
[]
[null,"Rappel objectif annuel du commercial:"]
[]
[null,"Pourcentage de l'objectif:"]

{"sheet":"Analyses Cléa","index":8,"n_rows":59,"n_cols":15,"rows_kept":59,"cut":false,"hidden":true,"merged":[]}
["Analyses par commercial"]
[]
[]
[null,null,null,null,null,"Sélectionnez nom du négociateur:","Cléa"]
[]
["Analyse de l'origine des prospects par commercial"]
["Origine","JANVIER","FÉVRIER","MARS","AVRIL","MAI","JUIN","JUILLET","AOÛT","SEPTEMBRE","OCTOBRE","NOVEMBRE","DÉCEMBRE","TOTAL","Pourcentage"]
[{"$f":"IF(ISBLANK(paramètres!A5),\"\",paramètres!A5)","v":"Appel direct"},{"$f":"COUNTIFS(Tableau3[Source du prospect],'Analyses Cléa'!A8,Tableau3[Mois],'Analyses Cléa'!$B$7,Tableau3[Négo],paramètres!$B$5)","v":0},{"$f":"COUNTIFS(Tableau3[Source du prospect],'Analyses Cléa'!A8,Tableau3[Mois],'Analyses Cléa'!$C$7,Tableau3[Négo],paramètres!$B$5)","v":0},{"$f":"COUNTIFS(Tableau3[Source du prospect],'Analyses Cléa'!A8,Tableau3[Mois],'Analyses Cléa'!$D$7,Tableau3[Négo],paramètres!$B$5)","v":0},{"$f":"COUNTIFS(Tableau3[Source du prospect],'Analyses Cléa'!A8,Tableau3[Mois],'Analyses Cléa'!$E$7,Tableau3[Négo],paramètres!$B$5)","v":0},{"$f":"COUNTIFS(Tableau3[Source du prospect],'Analyses Cléa'!A8,Tableau3[Mois],'Analyses Cléa'!$F$7,Tableau3[Négo],paramètres!$B$5)","v":0},{"$f":"COUNTIFS(Tableau3[Source du prospect],'Analyses Cléa'!A8,Tableau3[Mois],'Analyses Cléa'!$G$7,Tableau3[Négo],paramètres!$B$5)","v":0},{"$f":"COUNTIFS(Tableau3[Source du prospect],'Analyses Cléa'!A8,Tableau3[Mois],'Analyses Cléa'!$H$7,Tableau3[Négo],paramètres!$B$5)","v":0},{"$f":"COUNTIFS(Tableau3[Source du prospect],'Analyses Cléa'!A8,Tableau3[Mois],'Analyses Cléa'!$I$7,Tableau3[Négo],paramètres!$B$5)","v":0},{"$f":"COUNTIFS(Tableau3[Source du prospect],'Analyses Cléa'!A8,Tableau3[Mois],'Analyses Cléa'!$J$7,Tableau3[Négo],paramètres!$B$5)","v":0},{"$f":"COUNTIFS(Tableau3[Source du prospect],'Analyses Cléa'!A8,Tableau3[Mois],'Analyses Cléa'!$K$7,Tableau3[Négo],paramètres!$B$5)","v":0},{"$f":"COUNTIFS(Tableau3[Source du prospect],'Analyses Cléa'!A8,Tableau3[Mois],'Analyses Cléa'!$L$7,Tableau3[Négo],paramètres!$B$5)","v":0},{"$f":"COUNTIFS(Tableau3[Source du prospect],'Analyses Cléa'!A8,Tableau3[Mois],'Analyses Cléa'!$M$7,Tableau3[Négo],paramètres!$B$5)","v":1},{"$f":"SUM(B8:M8)","v":1}]
[{"$f":"IF(ISBLANK(paramètres!A6),\"\",paramètres!A6)","v":"e-mail"},{"$f":"COUNTIFS(Tableau3[Source du prospect],'Analyses Cléa'!A9,Tableau3[Mois],'Analyses Cléa'!$B$7,Tableau3[Négo],paramètres!$B$5)","v":0},{"$f":"COUNTIFS(Tableau3[Source du prospect],'Analyses Cléa'!A9,Tableau3[Mois],'Analyses Cléa'!$C$7,Tableau3[Négo],paramètres!$B$5)","v":1},{"$f":"COUNTIFS(Tableau3[Source du prospect],'Analyses Cléa'!A9,Tableau3[Mois],'Analyses Cléa'!$D$7,Tableau3[Négo],paramètres!$B$5)","v":0},{"$f":"COUNTIFS(Tableau3[Source du prospect],'Analyses Cléa'!A9,Tableau3[Mois],'Analyses Cléa'!$E$7,Tableau3[Négo],paramètres!$B$5)","v":0},{"$f":"COUNTIFS(Tableau3[Source du prospect],'Analyses Cléa'!A9,Tableau3[Mois],'Analyses Cléa'!$F$7,Tableau3[Négo],paramètres!$B$5)","v":0},{"$f":"COUNTIFS(Tableau3[Source du prospect],'Analyses Cléa'!A9,Tableau3[Mois],'Analyses Cléa'!$G$7,Tableau3[Négo],paramètres!$B$5)","v":0},{"$f":"COUNTIFS(Tableau3[Source du prospect],'Analyses Cléa'!A9,Tableau3[Mois],'Analyses Cléa'!$H$7,Tableau3[Négo],paramètres!$B$5)","v":0},{"$f":"COUNTIFS(Tableau3[Source du prospect],'Analyses Cléa'!A9,Tableau3[Mois],'Analyses Cléa'!$I$7,Tableau3[Négo],paramètres!$B$5)","v":0},{"$f":"COUNTIFS(Tableau3[Source du prospect],'Analyses Cléa'!A9,Tableau3[Mois],'Analyses Cléa'!$J$7,Tableau3[Négo],paramètres!$B$5)","v":0},{"$f":"COUNTIFS(Tableau3[Source du prospect],'Analyses Cléa'!A9,Tableau3[Mois],'Analyses Cléa'!$K$7,Tableau3[Négo],paramètres!$B$5)","v":0},{"$f":"COUNTIFS(Tableau3[Source du prospect],'Analyses Cléa'!A9,Tableau3[Mois],'Analyses Cléa'!$L$7,Tableau3[Négo],paramètres!$B$5)","v":0},{"$f":"COUNTIFS(Tableau3[Source du prospect],'Analyses Cléa'!A9,Tableau3[Mois],'Analyses Cléa'!$M$7,Tableau3[Négo],paramètres!$B$5)","v":0},{"$f":"SUM(B9:M9)","v":1}]
[{"$f":"IF(ISBLANK(paramètres!A7),\"\",paramètres!A7)","v":"Prospection"},{"$f":"COUNTIFS(Tableau3[Source du prospect],'Analyses Cléa'!A10,Tableau3[Mois],'Analyses Cléa'!$B$7,Tableau3[Négo],paramètres!$B$5)","v":0},{"$f":"COUNTIFS(Tableau3[Source du prospect],'Analyses Cléa'!A10,Tableau3[Mois],'Analyses Cléa'!$C$7,Tableau3[Négo],paramètres!$B$5)","v":0},{"$f":"COUNTIFS(Tableau3[Source du prospect],'Analyses Cléa'!A10,Tableau3[Mois],'Analyses Cléa'!$D$7,Tableau3[Négo],paramètres!$B$5)","v":0},{"$f":"COUNTIFS(Tableau3[Source du prospect],'Analyses Cléa'!A10,Tableau3[Mois],'Analyses Cléa'!$E$7,Tableau3[Négo],paramètres!$B$5)","v":0},{"$f":"COUNTIFS(Tableau3[Source du prospect],'Analyses Cléa'!A10,Tableau3[Mois],'Analyses Cléa'!$F$7,Tableau3[Négo],paramètres!$B$5)","v":0},{"$f":"COUNTIFS(Tableau3[Source du prospect],'Analyses Cléa'!A10,Tableau3[Mois],'Analyses Cléa'!$G$7,Tableau3[Négo],paramètres!$B$5)","v":0},{"$f":"COUNTIFS(Tableau3[Source du prospect],'Analyses Cléa'!A10,Tableau3[Mois],'Analyses Cléa'!$H$7,Tableau3[Négo],paramètres!$B$5)","v":0},{"$f":"COUNTIFS(Tableau3[Source du prospect],'Analyses Cléa'!A10,Tableau3[Mois],'Analyses Cléa'!$I$7,Tableau3[Négo],paramètres!$B$5)","v":0},{"$f":"COUNTIFS(Tableau3[Source du prospect],'Analyses Cléa'!A10,Tableau3[Mois],'Analyses Cléa'!$J$7,Tableau3[Négo],paramètres!$B$5)","v":0},{"$f":"COUNTIFS(Tableau3[Source du prospect],'Analyses Cléa'!A10,Tableau3[Mois],'Analyses Cléa'!$K$7,Tableau3[Négo],paramètres!$B$5)","v":0},{"$f":"COUNTIFS(Tableau3[Source du prospect],'Analyses Cléa'!A10,Tableau3[Mois],'Analyses Cléa'!$L$7,Tableau3[Négo],paramètres!$B$5)","v":0},{"$f":"COUNTIFS(Tableau3[Source du prospect],'Analyses Cléa'!A10,Tableau3[Mois],'Analyses Cléa'!$M$7,Tableau3[Négo],paramètres!$B$5)","v":1},1]
[{"$f":"IF(ISBLANK(paramètres!A8),\"\",paramètres!A8)","v":"Site Internet"},{"$f":"COUNTIFS(Tableau3[Source du prospect],'Analyses Cléa'!A11,Tableau3[Mois],'Analyses Cléa'!$B$7,Tableau3[Négo],paramètres!$B$5)","v":0},{"$f":"COUNTIFS(Tableau3[Source du prospect],'Analyses Cléa'!A11,Tableau3[Mois],'Analyses Cléa'!$C$7,Tableau3[Négo],paramètres!$B$5)","v":1},{"$f":"COUNTIFS(Tableau3[Source du prospect],'Analyses Cléa'!A11,Tableau3[Mois],'Analyses Cléa'!$D$7,Tableau3[Négo],paramètres!$B$5)","v":0},{"$f":"COUNTIFS(Tableau3[Source du prospect],'Analyses Cléa'!A11,Tableau3[Mois],'Analyses Cléa'!$E$7,Tableau3[Négo],paramètres!$B$5)","v":0},{"$f":"COUNTIFS(Tableau3[Source du prospect],'Analyses Cléa'!A11,Tableau3[Mois],'Analyses Cléa'!$F$7,Tableau3[Négo],paramètres!$B$5)","v":0},{"$f":"COUNTIFS(Tableau3[Source du prospect],'Analyses Cléa'!A11,Tableau3[Mois],'Analyses Cléa'!$G$7,Tableau3[Négo],paramètres!$B$5)","v":0},{"$f":"COUNTIFS(Tableau3[Source du prospect],'Analyses Cléa'!A11,Tableau3[Mois],'Analyses Cléa'!$H$7,Tableau3[Négo],paramètres!$B$5)","v":0},{"$f":"COUNTIFS(Tableau3[Source du prospect],'Analyses Cléa'!A11,Tableau3[Mois],'Analyses Cléa'!$I$7,Tableau3[Négo],paramètres!$B$5)","v":0},{"$f":"COUNTIFS(Tableau3[Source du prospect],'Analyses Cléa'!A11,Tableau3[Mois],'Analyses Cléa'!$J$7,Tableau3[Négo],paramètres!$B$5)","v":0},{"$f":"COUNTIFS(Tableau3[Source du prospect],'Analyses Cléa'!A11,Tableau3[Mois],'Analyses Cléa'!$K$7,Tableau3[Négo],paramètres!$B$5)","v":0},{"$f":"COUNTIFS(Tableau3[Source du prospect],'Analyses Cléa'!A11,Tableau3[Mois],'Analyses Cléa'!$L$7,Tableau3[Négo],paramètres!$B$5)","v":0},{"$f":"COUNTIFS(Tableau3[Source du prospect],'Analyses Cléa'!A11,Tableau3[Mois],'Analyses Cléa'!$M$7,Tableau3[Négo],paramètres!$B$5)","v":0},1]
[{"$f":"IF(ISBLANK(paramètres!A9),\"\",paramètres!A9)","v":"Appel agence"},{"$f":"COUNTIFS(Tableau3[Source du prospect],'Analyses Cléa'!A12,Tableau3[Mois],'Analyses Cléa'!$B$7,Tableau3[Négo],paramètres!$B$5)","v":0},{"$f":"COUNTIFS(Tableau3[Source du prospect],'Analyses Cléa'!A12,Tableau3[Mois],'Analyses Cléa'!$C$7,Tableau3[Négo],paramètres!$B$5)","v":0},{"$f":"COUNTIFS(Tableau3[Source du prospect],'Analyses Cléa'!A12,Tableau3[Mois],'Analyses Cléa'!$D$7,Tableau3[Négo],paramètres!$B$5)","v":0},{"$f":"COUNTIFS(Tableau3[Source du prospect],'Analyses Cléa'!A12,Tableau3[Mois],'Analyses Cléa'!$E$7,Tableau3[Négo],paramètres!$B$5)","v":0},{"$f":"COUNTIFS(Tableau3[Source du prospect],'Analyses Cléa'!A12,Tableau3[Mois],'Analyses Cléa'!$F$7,Tableau3[Négo],paramètres!$B$5)","v":0},{"$f":"COUNTIFS(Tableau3[Source du prospect],'Analyses Cléa'!A12,Tableau3[Mois],'Analyses Cléa'!$G$7,Tableau3[Négo],paramètres!$B$5)","v":0},{"$f":"COUNTIFS(Tableau3[Source du prospect],'Analyses Cléa'!A12,Tableau3[Mois],'Analyses Cléa'!$H$7,Tableau3[Négo],paramètres!$B$5)","v":0},{"$f":"COUNTIFS(Tableau3[Source du prospect],'Analyses Cléa'!A12,Tableau3[Mois],'Analyses Cléa'!$I$7,Tableau3[Négo],paramètres!$B$5)","v":0},{"$f":"COUNTIFS(Tableau3[Source du prospect],'Analyses Cléa'!A12,Tableau3[Mois],'Analyses Cléa'!$J$7,Tableau3[Négo],paramètres!$B$5)","v":0},{"$f":"COUNTIFS(Tableau3[Source du prospect],'Analyses Cléa'!A12,Tableau3[Mois],'Analyses Cléa'!$K$7,Tableau3[Négo],paramètres!$B$5)","v":0},{"$f":"COUNTIFS(Tableau3[Source du prospect],'Analyses Cléa'!A12,Tableau3[Mois],'Analyses Cléa'!$L$7,Tableau3[Négo],paramètres!$B$5)","v":0},{"$f":"COUNTIFS(Tableau3[Source du prospect],'Analyses Cléa'!A12,Tableau3[Mois],'Analyses Cléa'!$M$7,Tableau3[Négo],paramètres!$B$5)","v":0},0]
[{"$f":"IF(ISBLANK(paramètres!A10),\"\",paramètres!A10)","v":""},null,null,null,null,null,null,null,null,null,null,null,null,0]
[{"$f":"IF(ISBLANK(paramètres!A11),\"\",paramètres!A11)","v":""},null,null,null,null,null,null,null,null,null,null,null,null,0]
[{"$f":"IF(ISBLANK(paramètres!A12),\"\",paramètres!A12)","v":""},null,null,null,null,null,null,null,null,null,null,null,null,{"$f":"SUM(B15:M15)","v":0}]
[{"$f":"IF(ISBLANK(paramètres!A13),\"\",paramètres!A13)","v":""},null,null,null,null,null,null,null,null,null,null,null,null,0]
[{"$f":"IF(ISBLANK(paramètres!A14),\"\",paramètres!A14)","v":""},null,null,null,null,null,null,null,null,null,null,null,null,0]
[{"$f":"IF(ISBLANK(paramètres!A15),\"\",paramètres!A15)","v":""},null,null,null,null,null,null,null,null,null,null,null,null,0]
[{"$f":"IF(ISBLANK(paramètres!A16),\"\",paramètres!A16)","v":""},null,null,null,null,null,null,null,null,null,null,null,null,0]
["TOTAL",{"$f":"SUM(B8:B19)","v":0},{"$f":"SUM(C8:C19)","v":2},0,0,0,0,0,0,0,0,0,2,4,0]
[]
["Statut actuel des dossiers du négociateur"]
["Statut","JANVIER","FÉVRIER","MARS","AVRIL","MAI","JUIN","JUILLET","AOÛT","SEPTEMBRE","OCTOBRE","NOVEMBRE","DÉCEMBRE","TOTAL","Pourcentage"]
[{"$f":"IF(ISBLANK(paramètres!C5),\"\",paramètres!C5)","v":"TEL, SMS"},{"$f":"COUNTIFS(Tableau3[Statut actuel],'Analyses Cléa'!A24,Tableau3[Mois],'Analyses Cléa'!$B$7,Tableau3[Négo],paramètres!$B$5)","v":0},{"$f":"COUNTIFS(Tableau3[Statut actuel],'Analyses Cléa'!A24,Tableau3[Mois],'Analyses Cléa'!$C$7,Tableau3[Négo],paramètres!$B$5)","v":0},{"$f":"COUNTIFS(Tableau3[Statut actuel],'Analyses Cléa'!A24,Tableau3[Mois],'Analyses Cléa'!$D$7,Tableau3[Négo],paramètres!$B$5)","v":0},{"$f":"COUNTIFS(Tableau3[Statut actuel],'Analyses Cléa'!A24,Tableau3[Mois],'Analyses Cléa'!$E$7,Tableau3[Négo],paramètres!$B$5)","v":0},{"$f":"COUNTIFS(Tableau3[Statut actuel],'Analyses Cléa'!A24,Tableau3[Mois],'Analyses Cléa'!$F$7,Tableau3[Négo],paramètres!$B$5)","v":0},{"$f":"COUNTIFS(Tableau3[Statut actuel],'Analyses Cléa'!A24,Tableau3[Mois],'Analyses Cléa'!$G$7,Tableau3[Négo],paramètres!$B$5)","v":0},{"$f":"COUNTIFS(Tableau3[Statut actuel],'Analyses Cléa'!A24,Tableau3[Mois],'Analyses Cléa'!$H$7,Tableau3[Négo],paramètres!$B$5)","v":0},{"$f":"COUNTIFS(Tableau3[Statut actuel],'Analyses Cléa'!A24,Tableau3[Mois],'Analyses Cléa'!$I$7,Tableau3[Négo],paramètres!$B$5)","v":0},{"$f":"COUNTIFS(Tableau3[Statut actuel],'Analyses Cléa'!A24,Tableau3[Mois],'Analyses Cléa'!$J$7,Tableau3[Négo],paramètres!$B$5)","v":0},{"$f":"COUNTIFS(Tableau3[Statut actuel],'Analyses Cléa'!A24,Tableau3[Mois],'Analyses Cléa'!$K$7,Tableau3[Négo],paramètres!$B$5)","v":0},{"$f":"COUNTIFS(Tableau3[Statut actuel],'Analyses Cléa'!A24,Tableau3[Mois],'Analyses Cléa'!$L$7,Tableau3[Négo],paramètres!$B$5)","v":0},{"$f":"COUNTIFS(Tableau3[Statut actuel],'Analyses Cléa'!A24,Tableau3[Mois],'Analyses Cléa'!$M$7,Tableau3[Négo],paramètres!$B$5)","v":0},{"$f":"SUM(B24:M24)","v":0}]
[{"$f":"IF(ISBLANK(paramètres!C6),\"\",paramètres!C6)","v":"Porte à porte"},{"$f":"COUNTIFS(Tableau3[Statut actuel],'Analyses Cléa'!A25,Tableau3[Mois],'Analyses Cléa'!$B$7,Tableau3[Négo],paramètres!$B$5)","v":0},{"$f":"COUNTIFS(Tableau3[Statut actuel],'Analyses Cléa'!A25,Tableau3[Mois],'Analyses Cléa'!$C$7,Tableau3[Négo],paramètres!$B$5)","v":0},{"$f":"COUNTIFS(Tableau3[Statut actuel],'Analyses Cléa'!A25,Tableau3[Mois],'Analyses Cléa'!$D$7,Tableau3[Négo],paramètres!$B$5)","v":0},{"$f":"COUNTIFS(Tableau3[Statut actuel],'Analyses Cléa'!A25,Tableau3[Mois],'Analyses Cléa'!$E$7,Tableau3[Négo],paramètres!$B$5)","v":0},{"$f":"COUNTIFS(Tableau3[Statut actuel],'Analyses Cléa'!A25,Tableau3[Mois],'Analyses Cléa'!$F$7,Tableau3[Négo],paramètres!$B$5)","v":0},{"$f":"COUNTIFS(Tableau3[Statut actuel],'Analyses Cléa'!A25,Tableau3[Mois],'Analyses Cléa'!$G$7,Tableau3[Négo],paramètres!$B$5)","v":0},{"$f":"COUNTIFS(Tableau3[Statut actuel],'Analyses Cléa'!A25,Tableau3[Mois],'Analyses Cléa'!$H$7,Tableau3[Négo],paramètres!$B$5)","v":0},{"$f":"COUNTIFS(Tableau3[Statut actuel],'Analyses Cléa'!A25,Tableau3[Mois],'Analyses Cléa'!$I$7,Tableau3[Négo],paramètres!$B$5)","v":0},{"$f":"COUNTIFS(Tableau3[Statut actuel],'Analyses Cléa'!A25,Tableau3[Mois],'Analyses Cléa'!$J$7,Tableau3[Négo],paramètres!$B$5)","v":0},{"$f":"COUNTIFS(Tableau3[Statut actuel],'Analyses Cléa'!A25,Tableau3[Mois],'Analyses Cléa'!$K$7,Tableau3[Négo],paramètres!$B$5)","v":0},{"$f":"COUNTIFS(Tableau3[Statut actuel],'Analyses Cléa'!A25,Tableau3[Mois],'Analyses Cléa'!$L$7,Tableau3[Négo],paramètres!$B$5)","v":0},{"$f":"COUNTIFS(Tableau3[Statut actuel],'Analyses Cléa'!A25,Tableau3[Mois],'Analyses Cléa'!$M$7,Tableau3[Négo],paramètres!$B$5)","v":0},{"$f":"SUM(B25:M25)","v":0}]
[{"$f":"IF(ISBLANK(paramètres!C7),\"\",paramètres!C7)","v":"R1"},{"$f":"COUNTIFS(Tableau3[Statut actuel],'Analyses Cléa'!A26,Tableau3[Mois],'Analyses Cléa'!$B$7,Tableau3[Négo],paramètres!$B$5)","v":0},{"$f":"COUNTIFS(Tableau3[Statut actuel],'Analyses Cléa'!A26,Tableau3[Mois],'Analyses Cléa'!$C$7,Tableau3[Négo],paramètres!$B$5)","v":0},{"$f":"COUNTIFS(Tableau3[Statut actuel],'Analyses Cléa'!A26,Tableau3[Mois],'Analyses Cléa'!$D$7,Tableau3[Négo],paramètres!$B$5)","v":0},{"$f":"COUNTIFS(Tableau3[Statut actuel],'Analyses Cléa'!A26,Tableau3[Mois],'Analyses Cléa'!$E$7,Tableau3[Négo],paramètres!$B$5)","v":0},{"$f":"COUNTIFS(Tableau3[Statut actuel],'Analyses Cléa'!A26,Tableau3[Mois],'Analyses Cléa'!$F$7,Tableau3[Négo],paramètres!$B$5)","v":0},{"$f":"COUNTIFS(Tableau3[Statut actuel],'Analyses Cléa'!A26,Tableau3[Mois],'Analyses Cléa'!$G$7,Tableau3[Négo],paramètres!$B$5)","v":0},{"$f":"COUNTIFS(Tableau3[Statut actuel],'Analyses Cléa'!A26,Tableau3[Mois],'Analyses Cléa'!$H$7,Tableau3[Négo],paramètres!$B$5)","v":0},{"$f":"COUNTIFS(Tableau3[Statut actuel],'Analyses Cléa'!A26,Tableau3[Mois],'Analyses Cléa'!$I$7,Tableau3[Négo],paramètres!$B$5)","v":0},{"$f":"COUNTIFS(Tableau3[Statut actuel],'Analyses Cléa'!A26,Tableau3[Mois],'Analyses Cléa'!$J$7,Tableau3[Négo],paramètres!$B$5)","v":0},{"$f":"COUNTIFS(Tableau3[Statut actuel],'Analyses Cléa'!A26,Tableau3[Mois],'Analyses Cléa'!$K$7,Tableau3[Négo],paramètres!$B$5)","v":0},{"$f":"COUNTIFS(Tableau3[Statut actuel],'Analyses Cléa'!A26,Tableau3[Mois],'Analyses Cléa'!$L$7,Tableau3[Négo],paramètres!$B$5)","v":0},{"$f":"COUNTIFS(Tableau3[Statut actuel],'Analyses Cléa'!A26,Tableau3[Mois],'Analyses Cléa'!$M$7,Tableau3[Négo],paramètres!$B$5)","v":0},0]
[{"$f":"IF(ISBLANK(paramètres!C8),\"\",paramètres!C8)","v":"R2"},{"$f":"COUNTIFS(Tableau3[Statut actuel],'Analyses Cléa'!A27,Tableau3[Mois],'Analyses Cléa'!$B$7,Tableau3[Négo],paramètres!$B$5)","v":0},{"$f":"COUNTIFS(Tableau3[Statut actuel],'Analyses Cléa'!A27,Tableau3[Mois],'Analyses Cléa'!$C$7,Tableau3[Négo],paramètres!$B$5)","v":0},{"$f":"COUNTIFS(Tableau3[Statut actuel],'Analyses Cléa'!A27,Tableau3[Mois],'Analyses Cléa'!$D$7,Tableau3[Négo],paramètres!$B$5)","v":0},{"$f":"COUNTIFS(Tableau3[Statut actuel],'Analyses Cléa'!A27,Tableau3[Mois],'Analyses Cléa'!$E$7,Tableau3[Négo],paramètres!$B$5)","v":0},{"$f":"COUNTIFS(Tableau3[Statut actuel],'Analyses Cléa'!A27,Tableau3[Mois],'Analyses Cléa'!$F$7,Tableau3[Négo],paramètres!$B$5)","v":0},{"$f":"COUNTIFS(Tableau3[Statut actuel],'Analyses Cléa'!A27,Tableau3[Mois],'Analyses Cléa'!$G$7,Tableau3[Négo],paramètres!$B$5)","v":0},{"$f":"COUNTIFS(Tableau3[Statut actuel],'Analyses Cléa'!A27,Tableau3[Mois],'Analyses Cléa'!$H$7,Tableau3[Négo],paramètres!$B$5)","v":0},{"$f":"COUNTIFS(Tableau3[Statut actuel],'Analyses Cléa'!A27,Tableau3[Mois],'Analyses Cléa'!$I$7,Tableau3[Négo],paramètres!$B$5)","v":0},{"$f":"COUNTIFS(Tableau3[Statut actuel],'Analyses Cléa'!A27,Tableau3[Mois],'Analyses Cléa'!$J$7,Tableau3[Négo],paramètres!$B$5)","v":0},{"$f":"COUNTIFS(Tableau3[Statut actuel],'Analyses Cléa'!A27,Tableau3[Mois],'Analyses Cléa'!$K$7,Tableau3[Négo],paramètres!$B$5)","v":0},{"$f":"COUNTIFS(Tableau3[Statut actuel],'Analyses Cléa'!A27,Tableau3[Mois],'Analyses Cléa'!$L$7,Tableau3[Négo],paramètres!$B$5)","v":0},{"$f":"COUNTIFS(Tableau3[Statut actuel],'Analyses Cléa'!A27,Tableau3[Mois],'Analyses Cléa'!$M$7,Tableau3[Négo],paramètres!$B$5)","v":0},0]
[{"$f":"IF(ISBLANK(paramètres!C9),\"\",paramètres!C9)","v":"Estimation faite"},{"$f":"COUNTIFS(Tableau3[Statut actuel],'Analyses Cléa'!A28,Tableau3[Mois],'Analyses Cléa'!$B$7,Tableau3[Négo],paramètres!$B$5)","v":0},{"$f":"COUNTIFS(Tableau3[Statut actuel],'Analyses Cléa'!A28,Tableau3[Mois],'Analyses Cléa'!$C$7,Tableau3[Négo],paramètres!$B$5)","v":0},{"$f":"COUNTIFS(Tableau3[Statut actuel],'Analyses Cléa'!A28,Tableau3[Mois],'Analyses Cléa'!$D$7,Tableau3[Négo],paramètres!$B$5)","v":0},{"$f":"COUNTIFS(Tableau3[Statut actuel],'Analyses Cléa'!A28,Tableau3[Mois],'Analyses Cléa'!$E$7,Tableau3[Négo],paramètres!$B$5)","v":0},{"$f":"COUNTIFS(Tableau3[Statut actuel],'Analyses Cléa'!A28,Tableau3[Mois],'Analyses Cléa'!$F$7,Tableau3[Négo],paramètres!$B$5)","v":0},{"$f":"COUNTIFS(Tableau3[Statut actuel],'Analyses Cléa'!A28,Tableau3[Mois],'Analyses Cléa'!$G$7,Tableau3[Négo],paramètres!$B$5)","v":0},{"$f":"COUNTIFS(Tableau3[Statut actuel],'Analyses Cléa'!A28,Tableau3[Mois],'Analyses Cléa'!$H$7,Tableau3[Négo],paramètres!$B$5)","v":0},{"$f":"COUNTIFS(Tableau3[Statut actuel],'Analyses Cléa'!A28,Tableau3[Mois],'Analyses Cléa'!$I$7,Tableau3[Négo],paramètres!$B$5)","v":0},{"$f":"COUNTIFS(Tableau3[Statut actuel],'Analyses Cléa'!A28,Tableau3[Mois],'Analyses Cléa'!$J$7,Tableau3[Négo],paramètres!$B$5)","v":0},{"$f":"COUNTIFS(Tableau3[Statut actuel],'Analyses Cléa'!A28,Tableau3[Mois],'Analyses Cléa'!$K$7,Tableau3[Négo],paramètres!$B$5)","v":0},{"$f":"COUNTIFS(Tableau3[Statut actuel],'Analyses Cléa'!A28,Tableau3[Mois],'Analyses Cléa'!$L$7,Tableau3[Négo],paramètres!$B$5)","v":0},{"$f":"COUNTIFS(Tableau3[Statut actuel],'Analyses Cléa'!A28,Tableau3[Mois],'Analyses Cléa'!$M$7,Tableau3[Négo],paramètres!$B$5)","v":0},0]
[{"$f":"IF(ISBLANK(paramètres!C10),\"\",paramètres!C10)","v":"Sous compromis"},{"$f":"COUNTIFS(Tableau3[Statut actuel],'Analyses Cléa'!A29,Tableau3[Mois],'Analyses Cléa'!$B$7,Tableau3[Négo],paramètres!$B$5)","v":0},{"$f":"COUNTIFS(Tableau3[Statut actuel],'Analyses Cléa'!A29,Tableau3[Mois],'Analyses Cléa'!$C$7,Tableau3[Négo],paramètres!$B$5)","v":0},{"$f":"COUNTIFS(Tableau3[Statut actuel],'Analyses Cléa'!A29,Tableau3[Mois],'Analyses Cléa'!$D$7,Tableau3[Négo],paramètres!$B$5)","v":0},{"$f":"COUNTIFS(Tableau3[Statut actuel],'Analyses Cléa'!A29,Tableau3[Mois],'Analyses Cléa'!$E$7,Tableau3[Négo],paramètres!$B$5)","v":0},{"$f":"COUNTIFS(Tableau3[Statut actuel],'Analyses Cléa'!A29,Tableau3[Mois],'Analyses Cléa'!$F$7,Tableau3[Négo],paramètres!$B$5)","v":0},{"$f":"COUNTIFS(Tableau3[Statut actuel],'Analyses Cléa'!A29,Tableau3[Mois],'Analyses Cléa'!$G$7,Tableau3[Négo],paramètres!$B$5)","v":0},{"$f":"COUNTIFS(Tableau3[Statut actuel],'Analyses Cléa'!A29,Tableau3[Mois],'Analyses Cléa'!$H$7,Tableau3[Négo],paramètres!$B$5)","v":0},{"$f":"COUNTIFS(Tableau3[Statut actuel],'Analyses Cléa'!A29,Tableau3[Mois],'Analyses Cléa'!$I$7,Tableau3[Négo],paramètres!$B$5)","v":0},{"$f":"COUNTIFS(Tableau3[Statut actuel],'Analyses Cléa'!A29,Tableau3[Mois],'Analyses Cléa'!$J$7,Tableau3[Négo],paramètres!$B$5)","v":0},{"$f":"COUNTIFS(Tableau3[Statut actuel],'Analyses Cléa'!A29,Tableau3[Mois],'Analyses Cléa'!$K$7,Tableau3[Négo],paramètres!$B$5)","v":0},{"$f":"COUNTIFS(Tableau3[Statut actuel],'Analyses Cléa'!A29,Tableau3[Mois],'Analyses Cléa'!$L$7,Tableau3[Négo],paramètres!$B$5)","v":0},{"$f":"COUNTIFS(Tableau3[Statut actuel],'Analyses Cléa'!A29,Tableau3[Mois],'Analyses Cléa'!$M$7,Tableau3[Négo],paramètres!$B$5)","v":1},1]
[{"$f":"IF(ISBLANK(paramètres!C11),\"\",paramètres!C11)","v":"Vendu"},{"$f":"COUNTIFS(Tableau3[Statut actuel],'Analyses Cléa'!A30,Tableau3[Mois],'Analyses Cléa'!$B$7,Tableau3[Négo],paramètres!$B$5)","v":0},{"$f":"COUNTIFS(Tableau3[Statut actuel],'Analyses Cléa'!A30,Tableau3[Mois],'Analyses Cléa'!$C$7,Tableau3[Négo],paramètres!$B$5)","v":0},{"$f":"COUNTIFS(Tableau3[Statut actuel],'Analyses Cléa'!A30,Tableau3[Mois],'Analyses Cléa'!$D$7,Tableau3[Négo],paramètres!$B$5)","v":0},{"$f":"COUNTIFS(Tableau3[Statut actuel],'Analyses Cléa'!A30,Tableau3[Mois],'Analyses Cléa'!$E$7,Tableau3[Négo],paramètres!$B$5)","v":0},{"$f":"COUNTIFS(Tableau3[Statut actuel],'Analyses Cléa'!A30,Tableau3[Mois],'Analyses Cléa'!$F$7,Tableau3[Négo],paramètres!$B$5)","v":0},{"$f":"COUNTIFS(Tableau3[Statut actuel],'Analyses Cléa'!A30,Tableau3[Mois],'Analyses Cléa'!$G$7,Tableau3[Négo],paramètres!$B$5)","v":0},{"$f":"COUNTIFS(Tableau3[Statut actuel],'Analyses Cléa'!A30,Tableau3[Mois],'Analyses Cléa'!$H$7,Tableau3[Négo],paramètres!$B$5)","v":0},{"$f":"COUNTIFS(Tableau3[Statut actuel],'Analyses Cléa'!A30,Tableau3[Mois],'Analyses Cléa'!$I$7,Tableau3[Négo],paramètres!$B$5)","v":0},{"$f":"COUNTIFS(Tableau3[Statut actuel],'Analyses Cléa'!A30,Tableau3[Mois],'Analyses Cléa'!$J$7,Tableau3[Négo],paramètres!$B$5)","v":0},{"$f":"COUNTIFS(Tableau3[Statut actuel],'Analyses Cléa'!A30,Tableau3[Mois],'Analyses Cléa'!$K$7,Tableau3[Négo],paramètres!$B$5)","v":0},{"$f":"COUNTIFS(Tableau3[Statut actuel],'Analyses Cléa'!A30,Tableau3[Mois],'Analyses Cléa'!$L$7,Tableau3[Négo],paramètres!$B$5)","v":0},{"$f":"COUNTIFS(Tableau3[Statut actuel],'Analyses Cléa'!A30,Tableau3[Mois],'Analyses Cléa'!$M$7,Tableau3[Négo],paramètres!$B$5)","v":0},0]
[{"$f":"IF(ISBLANK(paramètres!C12),\"\",paramètres!C12)","v":"Vente annulée"},{"$f":"COUNTIFS(Tableau3[Statut actuel],'Analyses Cléa'!A31,Tableau3[Mois],'Analyses Cléa'!$B$7,Tableau3[Négo],paramètres!$B$5)","v":0},{"$f":"COUNTIFS(Tableau3[Statut actuel],'Analyses Cléa'!A31,Tableau3[Mois],'Analyses Cléa'!$C$7,Tableau3[Négo],paramètres!$B$5)","v":0},{"$f":"COUNTIFS(Tableau3[Statut actuel],'Analyses Cléa'!A31,Tableau3[Mois],'Analyses Cléa'!$D$7,Tableau3[Négo],paramètres!$B$5)","v":0},{"$f":"COUNTIFS(Tableau3[Statut actuel],'Analyses Cléa'!A31,Tableau3[Mois],'Analyses Cléa'!$E$7,Tableau3[Négo],paramètres!$B$5)","v":0},{"$f":"COUNTIFS(Tableau3[Statut actuel],'Analyses Cléa'!A31,Tableau3[Mois],'Analyses Cléa'!$F$7,Tableau3[Négo],paramètres!$B$5)","v":0},{"$f":"COUNTIFS(Tableau3[Statut actuel],'Analyses Cléa'!A31,Tableau3[Mois],'Analyses Cléa'!$G$7,Tableau3[Négo],paramètres!$B$5)","v":0},{"$f":"COUNTIFS(Tableau3[Statut actuel],'Analyses Cléa'!A31,Tableau3[Mois],'Analyses Cléa'!$H$7,Tableau3[Négo],paramètres!$B$5)","v":0},{"$f":"COUNTIFS(Tableau3[Statut actuel],'Analyses Cléa'!A31,Tableau3[Mois],'Analyses Cléa'!$I$7,Tableau3[Négo],paramètres!$B$5)","v":0},{"$f":"COUNTIFS(Tableau3[Statut actuel],'Analyses Cléa'!A31,Tableau3[Mois],'Analyses Cléa'!$J$7,Tableau3[Négo],paramètres!$B$5)","v":0},{"$f":"COUNTIFS(Tableau3[Statut actuel],'Analyses Cléa'!A31,Tableau3[Mois],'Analyses Cléa'!$K$7,Tableau3[Négo],paramètres!$B$5)","v":0},{"$f":"COUNTIFS(Tableau3[Statut actuel],'Analyses Cléa'!A31,Tableau3[Mois],'Analyses Cléa'!$L$7,Tableau3[Négo],paramètres!$B$5)","v":0},{"$f":"COUNTIFS(Tableau3[Statut actuel],'Analyses Cléa'!A31,Tableau3[Mois],'Analyses Cléa'!$M$7,Tableau3[Négo],paramètres!$B$5)","v":1},1]
[{"$f":"IF(ISBLANK(paramètres!C13),\"\",paramètres!C13)","v":"Abandonné"},{"$f":"COUNTIFS(Tableau3[Statut actuel],'Analyses Cléa'!A32,Tableau3[Mois],'Analyses Cléa'!$B$7,Tableau3[Négo],paramètres!$B$5)","v":0},{"$f":"COUNTIFS(Tableau3[Statut actuel],'Analyses Cléa'!A32,Tableau3[Mois],'Analyses Cléa'!$C$7,Tableau3[Négo],paramètres!$B$5)","v":1},{"$f":"COUNTIFS(Tableau3[Statut actuel],'Analyses Cléa'!A32,Tableau3[Mois],'Analyses Cléa'!$D$7,Tableau3[Négo],paramètres!$B$5)","v":0},{"$f":"COUNTIFS(Tableau3[Statut actuel],'Analyses Cléa'!A32,Tableau3[Mois],'Analyses Cléa'!$E$7,Tableau3[Négo],paramètres!$B$5)","v":0},{"$f":"COUNTIFS(Tableau3[Statut actuel],'Analyses Cléa'!A32,Tableau3[Mois],'Analyses Cléa'!$F$7,Tableau3[Négo],paramètres!$B$5)","v":0},{"$f":"COUNTIFS(Tableau3[Statut actuel],'Analyses Cléa'!A32,Tableau3[Mois],'Analyses Cléa'!$G$7,Tableau3[Négo],paramètres!$B$5)","v":0},{"$f":"COUNTIFS(Tableau3[Statut actuel],'Analyses Cléa'!A32,Tableau3[Mois],'Analyses Cléa'!$H$7,Tableau3[Négo],paramètres!$B$5)","v":0},{"$f":"COUNTIFS(Tableau3[Statut actuel],'Analyses Cléa'!A32,Tableau3[Mois],'Analyses Cléa'!$I$7,Tableau3[Négo],paramètres!$B$5)","v":0},{"$f":"COUNTIFS(Tableau3[Statut actuel],'Analyses Cléa'!A32,Tableau3[Mois],'Analyses Cléa'!$J$7,Tableau3[Négo],paramètres!$B$5)","v":0},{"$f":"COUNTIFS(Tableau3[Statut actuel],'Analyses Cléa'!A32,Tableau3[Mois],'Analyses Cléa'!$K$7,Tableau3[Négo],paramètres!$B$5)","v":0},{"$f":"COUNTIFS(Tableau3[Statut actuel],'Analyses Cléa'!A32,Tableau3[Mois],'Analyses Cléa'!$L$7,Tableau3[Négo],paramètres!$B$5)","v":0},{"$f":"COUNTIFS(Tableau3[Statut actuel],'Analyses Cléa'!A32,Tableau3[Mois],'Analyses Cléa'!$M$7,Tableau3[Négo],paramètres!$B$5)","v":0},1]
[{"$f":"IF(ISBLANK(paramètres!C14),\"\",paramètres!C14)","v":"Stand-by"},{"$f":"COUNTIFS(Tableau3[Statut actuel],'Analyses Cléa'!A33,Tableau3[Mois],'Analyses Cléa'!$B$7,Tableau3[Négo],paramètres!$B$5)","v":0},{"$f":"COUNTIFS(Tableau3[Statut actuel],'Analyses Cléa'!A33,Tableau3[Mois],'Analyses Cléa'!$C$7,Tableau3[Négo],paramètres!$B$5)","v":0},{"$f":"COUNTIFS(Tableau3[Statut actuel],'Analyses Cléa'!A33,Tableau3[Mois],'Analyses Cléa'!$D$7,Tableau3[Négo],paramètres!$B$5)","v":0},{"$f":"COUNTIFS(Tableau3[Statut actuel],'Analyses Cléa'!A33,Tableau3[Mois],'Analyses Cléa'!$E$7,Tableau3[Négo],paramètres!$B$5)","v":0},{"$f":"COUNTIFS(Tableau3[Statut actuel],'Analyses Cléa'!A33,Tableau3[Mois],'Analyses Cléa'!$F$7,Tableau3[Négo],paramètres!$B$5)","v":0},{"$f":"COUNTIFS(Tableau3[Statut actuel],'Analyses Cléa'!A33,Tableau3[Mois],'Analyses Cléa'!$G$7,Tableau3[Négo],paramètres!$B$5)","v":0},{"$f":"COUNTIFS(Tableau3[Statut actuel],'Analyses Cléa'!A33,Tableau3[Mois],'Analyses Cléa'!$H$7,Tableau3[Négo],paramètres!$B$5)","v":0},{"$f":"COUNTIFS(Tableau3[Statut actuel],'Analyses Cléa'!A33,Tableau3[Mois],'Analyses Cléa'!$I$7,Tableau3[Négo],paramètres!$B$5)","v":0},{"$f":"COUNTIFS(Tableau3[Statut actuel],'Analyses Cléa'!A33,Tableau3[Mois],'Analyses Cléa'!$J$7,Tableau3[Négo],paramètres!$B$5)","v":0},{"$f":"COUNTIFS(Tableau3[Statut actuel],'Analyses Cléa'!A33,Tableau3[Mois],'Analyses Cléa'!$K$7,Tableau3[Négo],paramètres!$B$5)","v":0},{"$f":"COUNTIFS(Tableau3[Statut actuel],'Analyses Cléa'!A33,Tableau3[Mois],'Analyses Cléa'!$L$7,Tableau3[Négo],paramètres!$B$5)","v":0},{"$f":"COUNTIFS(Tableau3[Statut actuel],'Analyses Cléa'!A33,Tableau3[Mois],'Analyses Cléa'!$M$7,Tableau3[Négo],paramètres!$B$5)","v":0},0]
[{"$f":"IF(ISBLANK(paramètres!C15),\"\",paramètres!C15)","v":"Sans Suite"},{"$f":"COUNTIFS(Tableau3[Statut actuel],'Analyses Cléa'!A34,Tableau3[Mois],'Analyses Cléa'!$B$7,Tableau3[Négo],paramètres!$B$5)","v":0},{"$f":"COUNTIFS(Tableau3[Statut actuel],'Analyses Cléa'!A34,Tableau3[Mois],'Analyses Cléa'!$C$7,Tableau3[Négo],paramètres!$B$5)","v":0},{"$f":"COUNTIFS(Tableau3[Statut actuel],'Analyses Cléa'!A34,Tableau3[Mois],'Analyses Cléa'!$D$7,Tableau3[Négo],paramètres!$B$5)","v":0},{"$f":"COUNTIFS(Tableau3[Statut actuel],'Analyses Cléa'!A34,Tableau3[Mois],'Analyses Cléa'!$E$7,Tableau3[Négo],paramètres!$B$5)","v":0},{"$f":"COUNTIFS(Tableau3[Statut actuel],'Analyses Cléa'!A34,Tableau3[Mois],'Analyses Cléa'!$F$7,Tableau3[Négo],paramètres!$B$5)","v":0},{"$f":"COUNTIFS(Tableau3[Statut actuel],'Analyses Cléa'!A34,Tableau3[Mois],'Analyses Cléa'!$G$7,Tableau3[Négo],paramètres!$B$5)","v":0},{"$f":"COUNTIFS(Tableau3[Statut actuel],'Analyses Cléa'!A34,Tableau3[Mois],'Analyses Cléa'!$H$7,Tableau3[Négo],paramètres!$B$5)","v":0},{"$f":"COUNTIFS(Tableau3[Statut actuel],'Analyses Cléa'!A34,Tableau3[Mois],'Analyses Cléa'!$I$7,Tableau3[Négo],paramètres!$B$5)","v":0},{"$f":"COUNTIFS(Tableau3[Statut actuel],'Analyses Cléa'!A34,Tableau3[Mois],'Analyses Cléa'!$J$7,Tableau3[Négo],paramètres!$B$5)","v":0},{"$f":"COUNTIFS(Tableau3[Statut actuel],'Analyses Cléa'!A34,Tableau3[Mois],'Analyses Cléa'!$K$7,Tableau3[Négo],paramètres!$B$5)","v":0},{"$f":"COUNTIFS(Tableau3[Statut actuel],'Analyses Cléa'!A34,Tableau3[Mois],'Analyses Cléa'!$L$7,Tableau3[Négo],paramètres!$B$5)","v":0},{"$f":"COUNTIFS(Tableau3[Statut actuel],'Analyses Cléa'!A34,Tableau3[Mois],'Analyses Cléa'!$M$7,Tableau3[Négo],paramètres!$B$5)","v":0},0]
[{"$f":"IF(ISBLANK(paramètres!C16),\"\",paramètres!C16)","v":"Mandat"},{"$f":"COUNTIFS(Tableau3[Statut actuel],'Analyses Cléa'!A35,Tableau3[Mois],'Analyses Cléa'!$B$7,Tableau3[Négo],paramètres!$B$5)","v":0},{"$f":"COUNTIFS(Tableau3[Statut actuel],'Analyses Cléa'!A35,Tableau3[Mois],'Analyses Cléa'!$C$7,Tableau3[Négo],paramètres!$B$5)","v":1},{"$f":"COUNTIFS(Tableau3[Statut actuel],'Analyses Cléa'!A35,Tableau3[Mois],'Analyses Cléa'!$D$7,Tableau3[Négo],paramètres!$B$5)","v":0},{"$f":"COUNTIFS(Tableau3[Statut actuel],'Analyses Cléa'!A35,Tableau3[Mois],'Analyses Cléa'!$E$7,Tableau3[Négo],paramètres!$B$5)","v":0},{"$f":"COUNTIFS(Tableau3[Statut actuel],'Analyses Cléa'!A35,Tableau3[Mois],'Analyses Cléa'!$F$7,Tableau3[Négo],paramètres!$B$5)","v":0},{"$f":"COUNTIFS(Tableau3[Statut actuel],'Analyses Cléa'!A35,Tableau3[Mois],'Analyses Cléa'!$G$7,Tableau3[Négo],paramètres!$B$5)","v":0},{"$f":"COUNTIFS(Tableau3[Statut actuel],'Analyses Cléa'!A35,Tableau3[Mois],'Analyses Cléa'!$H$7,Tableau3[Négo],paramètres!$B$5)","v":0},{"$f":"COUNTIFS(Tableau3[Statut actuel],'Analyses Cléa'!A35,Tableau3[Mois],'Analyses Cléa'!$I$7,Tableau3[Négo],paramètres!$B$5)","v":0},{"$f":"COUNTIFS(Tableau3[Statut actuel],'Analyses Cléa'!A35,Tableau3[Mois],'Analyses Cléa'!$J$7,Tableau3[Négo],paramètres!$B$5)","v":0},{"$f":"COUNTIFS(Tableau3[Statut actuel],'Analyses Cléa'!A35,Tableau3[Mois],'Analyses Cléa'!$K$7,Tableau3[Négo],paramètres!$B$5)","v":0},{"$f":"COUNTIFS(Tableau3[Statut actuel],'Analyses Cléa'!A35,Tableau3[Mois],'Analyses Cléa'!$L$7,Tableau3[Négo],paramètres!$B$5)","v":0},{"$f":"COUNTIFS(Tableau3[Statut actuel],'Analyses Cléa'!A35,Tableau3[Mois],'Analyses Cléa'!$M$7,Tableau3[Négo],paramètres!$B$5)","v":0},1]
[]
["TOTAL",{"$f":"SUM(B24:B35)","v":0},{"$f":"SUM(C24:C35)","v":2},0,0,0,0,0,0,0,0,0,2,{"$f":"SUM(N24:N35)","v":4}]
[]
["Chiffre d'affaires du commercial"]
[null,"JANVIER","FEVRIER","MARS","AVRIL","MAI","JUIN","JUILLET","AOÛT","SEPTEMBRE","OCTOBRE","NOVEMBRE","DÉCEMBRE","TOTAL"]
[]
["COMPROMIS EN COURS"]
["Montant"]
["ACTES"]
["Montant"]
["VENTES ANNULEES"]
["Montant annulé"]
[]
["Somme CA "]
["Rappel sur objectif (mensualisé)"]
[]
["Cumul CA"]
["Cumul objectif"]
[]
[]
[]
[null,"Rappel objectif annuel du commercial:"]
[]
[null,"Pourcentage de l'objectif:"]

{"sheet":"Analyses Marc","index":9,"n_rows":59,"n_cols":15,"rows_kept":59,"cut":false,"hidden":false,"merged":[]}
["Analyses par commercial"]
[]
[]
[null,null,null,null,null,"Sélectionnez nom du négociateur:","Marc"]
[]
["Analyse de l'origine des prospects par commercial"]
["Origine","JANVIER","FÉVRIER","MARS","AVRIL","MAI","JUIN","JUILLET","AOÛT","SEPTEMBRE","OCTOBRE","NOVEMBRE","DÉCEMBRE","TOTAL","Pourcentage"]
[{"$f":"IF(ISBLANK(paramètres!A5),\"\",paramètres!A5)","v":"Appel direct"},{"$f":"COUNTIFS(Tableau3[Source du prospect],'Analyses Marc'!A8,Tableau3[Mois],'Analyses Marc'!$B$7,Tableau3[Négo],paramètres!$B$5)","v":0},{"$f":"COUNTIFS(Tableau3[Source du prospect],'Analyses Marc'!A8,Tableau3[Mois],'Analyses Marc'!$C$7,Tableau3[Négo],paramètres!$B$5)","v":0},{"$f":"COUNTIFS(Tableau3[Source du prospect],'Analyses Marc'!A8,Tableau3[Mois],'Analyses Marc'!$D$7,Tableau3[Négo],paramètres!$B$5)","v":0},{"$f":"COUNTIFS(Tableau3[Source du prospect],'Analyses Marc'!A8,Tableau3[Mois],'Analyses Marc'!$E$7,Tableau3[Négo],paramètres!$B$5)","v":0},{"$f":"COUNTIFS(Tableau3[Source du prospect],'Analyses Marc'!A8,Tableau3[Mois],'Analyses Marc'!$F$7,Tableau3[Négo],paramètres!$B$5)","v":0},{"$f":"COUNTIFS(Tableau3[Source du prospect],'Analyses Marc'!A8,Tableau3[Mois],'Analyses Marc'!$G$7,Tableau3[Négo],paramètres!$B$5)","v":0},{"$f":"COUNTIFS(Tableau3[Source du prospect],'Analyses Marc'!A8,Tableau3[Mois],'Analyses Marc'!$H$7,Tableau3[Négo],paramètres!$B$5)","v":0},{"$f":"COUNTIFS(Tableau3[Source du prospect],'Analyses Marc'!A8,Tableau3[Mois],'Analyses Marc'!$I$7,Tableau3[Négo],paramètres!$B$5)","v":0},{"$f":"COUNTIFS(Tableau3[Source du prospect],'Analyses Marc'!A8,Tableau3[Mois],'Analyses Marc'!$J$7,Tableau3[Négo],paramètres!$B$5)","v":0},{"$f":"COUNTIFS(Tableau3[Source du prospect],'Analyses Marc'!A8,Tableau3[Mois],'Analyses Marc'!$K$7,Tableau3[Négo],paramètres!$B$5)","v":0},{"$f":"COUNTIFS(Tableau3[Source du prospect],'Analyses Marc'!A8,Tableau3[Mois],'Analyses Marc'!$L$7,Tableau3[Négo],paramètres!$B$5)","v":0},{"$f":"COUNTIFS(Tableau3[Source du prospect],'Analyses Marc'!A8,Tableau3[Mois],'Analyses Marc'!$M$7,Tableau3[Négo],paramètres!$B$5)","v":1},{"$f":"SUM(B8:M8)","v":1}]
[{"$f":"IF(ISBLANK(paramètres!A6),\"\",paramètres!A6)","v":"e-mail"},{"$f":"COUNTIFS(Tableau3[Source du prospect],'Analyses Marc'!A9,Tableau3[Mois],'Analyses Marc'!$B$7,Tableau3[Négo],paramètres!$B$5)","v":0},{"$f":"COUNTIFS(Tableau3[Source du prospect],'Analyses Marc'!A9,Tableau3[Mois],'Analyses Marc'!$C$7,Tableau3[Négo],paramètres!$B$5)","v":1},{"$f":"COUNTIFS(Tableau3[Source du prospect],'Analyses Marc'!A9,Tableau3[Mois],'Analyses Marc'!$D$7,Tableau3[Négo],paramètres!$B$5)","v":0},{"$f":"COUNTIFS(Tableau3[Source du prospect],'Analyses Marc'!A9,Tableau3[Mois],'Analyses Marc'!$E$7,Tableau3[Négo],paramètres!$B$5)","v":0},{"$f":"COUNTIFS(Tableau3[Source du prospect],'Analyses Marc'!A9,Tableau3[Mois],'Analyses Marc'!$F$7,Tableau3[Négo],paramètres!$B$5)","v":0},{"$f":"COUNTIFS(Tableau3[Source du prospect],'Analyses Marc'!A9,Tableau3[Mois],'Analyses Marc'!$G$7,Tableau3[Négo],paramètres!$B$5)","v":0},{"$f":"COUNTIFS(Tableau3[Source du prospect],'Analyses Marc'!A9,Tableau3[Mois],'Analyses Marc'!$H$7,Tableau3[Négo],paramètres!$B$5)","v":0},{"$f":"COUNTIFS(Tableau3[Source du prospect],'Analyses Marc'!A9,Tableau3[Mois],'Analyses Marc'!$I$7,Tableau3[Négo],paramètres!$B$5)","v":0},{"$f":"COUNTIFS(Tableau3[Source du prospect],'Analyses Marc'!A9,Tableau3[Mois],'Analyses Marc'!$J$7,Tableau3[Négo],paramètres!$B$5)","v":0},{"$f":"COUNTIFS(Tableau3[Source du prospect],'Analyses Marc'!A9,Tableau3[Mois],'Analyses Marc'!$K$7,Tableau3[Négo],paramètres!$B$5)","v":0},{"$f":"COUNTIFS(Tableau3[Source du prospect],'Analyses Marc'!A9,Tableau3[Mois],'Analyses Marc'!$L$7,Tableau3[Négo],paramètres!$B$5)","v":0},{"$f":"COUNTIFS(Tableau3[Source du prospect],'Analyses Marc'!A9,Tableau3[Mois],'Analyses Marc'!$M$7,Tableau3[Négo],paramètres!$B$5)","v":0},{"$f":"SUM(B9:M9)","v":1}]
[{"$f":"IF(ISBLANK(paramètres!A7),\"\",paramètres!A7)","v":"Prospection"},{"$f":"COUNTIFS(Tableau3[Source du prospect],'Analyses Marc'!A10,Tableau3[Mois],'Analyses Marc'!$B$7,Tableau3[Négo],paramètres!$B$5)","v":0},{"$f":"COUNTIFS(Tableau3[Source du prospect],'Analyses Marc'!A10,Tableau3[Mois],'Analyses Marc'!$C$7,Tableau3[Négo],paramètres!$B$5)","v":0},{"$f":"COUNTIFS(Tableau3[Source du prospect],'Analyses Marc'!A10,Tableau3[Mois],'Analyses Marc'!$D$7,Tableau3[Négo],paramètres!$B$5)","v":0},{"$f":"COUNTIFS(Tableau3[Source du prospect],'Analyses Marc'!A10,Tableau3[Mois],'Analyses Marc'!$E$7,Tableau3[Négo],paramètres!$B$5)","v":0},{"$f":"COUNTIFS(Tableau3[Source du prospect],'Analyses Marc'!A10,Tableau3[Mois],'Analyses Marc'!$F$7,Tableau3[Négo],paramètres!$B$5)","v":0},{"$f":"COUNTIFS(Tableau3[Source du prospect],'Analyses Marc'!A10,Tableau3[Mois],'Analyses Marc'!$G$7,Tableau3[Négo],paramètres!$B$5)","v":0},{"$f":"COUNTIFS(Tableau3[Source du prospect],'Analyses Marc'!A10,Tableau3[Mois],'Analyses Marc'!$H$7,Tableau3[Négo],paramètres!$B$5)","v":0},{"$f":"COUNTIFS(Tableau3[Source du prospect],'Analyses Marc'!A10,Tableau3[Mois],'Analyses Marc'!$I$7,Tableau3[Négo],paramètres!$B$5)","v":0},{"$f":"COUNTIFS(Tableau3[Source du prospect],'Analyses Marc'!A10,Tableau3[Mois],'Analyses Marc'!$J$7,Tableau3[Négo],paramètres!$B$5)","v":0},{"$f":"COUNTIFS(Tableau3[Source du prospect],'Analyses Marc'!A10,Tableau3[Mois],'Analyses Marc'!$K$7,Tableau3[Négo],paramètres!$B$5)","v":0},{"$f":"COUNTIFS(Tableau3[Source du prospect],'Analyses Marc'!A10,Tableau3[Mois],'Analyses Marc'!$L$7,Tableau3[Négo],paramètres!$B$5)","v":0},{"$f":"COUNTIFS(Tableau3[Source du prospect],'Analyses Marc'!A10,Tableau3[Mois],'Analyses Marc'!$M$7,Tableau3[Négo],paramètres!$B$5)","v":1},1]
[{"$f":"IF(ISBLANK(paramètres!A8),\"\",paramètres!A8)","v":"Site Internet"},{"$f":"COUNTIFS(Tableau3[Source du prospect],'Analyses Marc'!A11,Tableau3[Mois],'Analyses Marc'!$B$7,Tableau3[Négo],paramètres!$B$5)","v":0},{"$f":"COUNTIFS(Tableau3[Source du prospect],'Analyses Marc'!A11,Tableau3[Mois],'Analyses Marc'!$C$7,Tableau3[Négo],paramètres!$B$5)","v":1},{"$f":"COUNTIFS(Tableau3[Source du prospect],'Analyses Marc'!A11,Tableau3[Mois],'Analyses Marc'!$D$7,Tableau3[Négo],paramètres!$B$5)","v":0},{"$f":"COUNTIFS(Tableau3[Source du prospect],'Analyses Marc'!A11,Tableau3[Mois],'Analyses Marc'!$E$7,Tableau3[Négo],paramètres!$B$5)","v":0},{"$f":"COUNTIFS(Tableau3[Source du prospect],'Analyses Marc'!A11,Tableau3[Mois],'Analyses Marc'!$F$7,Tableau3[Négo],paramètres!$B$5)","v":0},{"$f":"COUNTIFS(Tableau3[Source du prospect],'Analyses Marc'!A11,Tableau3[Mois],'Analyses Marc'!$G$7,Tableau3[Négo],paramètres!$B$5)","v":0},{"$f":"COUNTIFS(Tableau3[Source du prospect],'Analyses Marc'!A11,Tableau3[Mois],'Analyses Marc'!$H$7,Tableau3[Négo],paramètres!$B$5)","v":0},{"$f":"COUNTIFS(Tableau3[Source du prospect],'Analyses Marc'!A11,Tableau3[Mois],'Analyses Marc'!$I$7,Tableau3[Négo],paramètres!$B$5)","v":0},{"$f":"COUNTIFS(Tableau3[Source du prospect],'Analyses Marc'!A11,Tableau3[Mois],'Analyses Marc'!$J$7,Tableau3[Négo],paramètres!$B$5)","v":0},{"$f":"COUNTIFS(Tableau3[Source du prospect],'Analyses Marc'!A11,Tableau3[Mois],'Analyses Marc'!$K$7,Tableau3[Négo],paramètres!$B$5)","v":0},{"$f":"COUNTIFS(Tableau3[Source du prospect],'Analyses Marc'!A11,Tableau3[Mois],'Analyses Marc'!$L$7,Tableau3[Négo],paramètres!$B$5)","v":0},{"$f":"COUNTIFS(Tableau3[Source du prospect],'Analyses Marc'!A11,Tableau3[Mois],'Analyses Marc'!$M$7,Tableau3[Négo],paramètres!$B$5)","v":0},1]
[{"$f":"IF(ISBLANK(paramètres!A9),\"\",paramètres!A9)","v":"Appel agence"},{"$f":"COUNTIFS(Tableau3[Source du prospect],'Analyses Marc'!A12,Tableau3[Mois],'Analyses Marc'!$B$7,Tableau3[Négo],paramètres!$B$5)","v":0},{"$f":"COUNTIFS(Tableau3[Source du prospect],'Analyses Marc'!A12,Tableau3[Mois],'Analyses Marc'!$C$7,Tableau3[Négo],paramètres!$B$5)","v":0},{"$f":"COUNTIFS(Tableau3[Source du prospect],'Analyses Marc'!A12,Tableau3[Mois],'Analyses Marc'!$D$7,Tableau3[Négo],paramètres!$B$5)","v":0},{"$f":"COUNTIFS(Tableau3[Source du prospect],'Analyses Marc'!A12,Tableau3[Mois],'Analyses Marc'!$E$7,Tableau3[Négo],paramètres!$B$5)","v":0},{"$f":"COUNTIFS(Tableau3[Source du prospect],'Analyses Marc'!A12,Tableau3[Mois],'Analyses Marc'!$F$7,Tableau3[Négo],paramètres!$B$5)","v":0},{"$f":"COUNTIFS(Tableau3[Source du prospect],'Analyses Marc'!A12,Tableau3[Mois],'Analyses Marc'!$G$7,Tableau3[Négo],paramètres!$B$5)","v":0},{"$f":"COUNTIFS(Tableau3[Source du prospect],'Analyses Marc'!A12,Tableau3[Mois],'Analyses Marc'!$H$7,Tableau3[Négo],paramètres!$B$5)","v":0},{"$f":"COUNTIFS(Tableau3[Source du prospect],'Analyses Marc'!A12,Tableau3[Mois],'Analyses Marc'!$I$7,Tableau3[Négo],paramètres!$B$5)","v":0},{"$f":"COUNTIFS(Tableau3[Source du prospect],'Analyses Marc'!A12,Tableau3[Mois],'Analyses Marc'!$J$7,Tableau3[Négo],paramètres!$B$5)","v":0},{"$f":"COUNTIFS(Tableau3[Source du prospect],'Analyses Marc'!A12,Tableau3[Mois],'Analyses Marc'!$K$7,Tableau3[Négo],paramètres!$B$5)","v":0},{"$f":"COUNTIFS(Tableau3[Source du prospect],'Analyses Marc'!A12,Tableau3[Mois],'Analyses Marc'!$L$7,Tableau3[Négo],paramètres!$B$5)","v":0},{"$f":"COUNTIFS(Tableau3[Source du prospect],'Analyses Marc'!A12,Tableau3[Mois],'Analyses Marc'!$M$7,Tableau3[Négo],paramètres!$B$5)","v":0},0]
[{"$f":"IF(ISBLANK(paramètres!A10),\"\",paramètres!A10)","v":""},null,null,null,null,null,null,null,null,null,null,null,null,0]
[{"$f":"IF(ISBLANK(paramètres!A11),\"\",paramètres!A11)","v":""},null,null,null,null,null,null,null,null,null,null,null,null,0]
[{"$f":"IF(ISBLANK(paramètres!A12),\"\",paramètres!A12)","v":""},null,null,null,null,null,null,null,null,null,null,null,null,{"$f":"SUM(B15:M15)","v":0}]
[{"$f":"IF(ISBLANK(paramètres!A13),\"\",paramètres!A13)","v":""},null,null,null,null,null,null,null,null,null,null,null,null,0]
[{"$f":"IF(ISBLANK(paramètres!A14),\"\",paramètres!A14)","v":""},null,null,null,null,null,null,null,null,null,null,null,null,0]
[{"$f":"IF(ISBLANK(paramètres!A15),\"\",paramètres!A15)","v":""},null,null,null,null,null,null,null,null,null,null,null,null,0]
[{"$f":"IF(ISBLANK(paramètres!A16),\"\",paramètres!A16)","v":""},null,null,null,null,null,null,null,null,null,null,null,null,0]
["TOTAL",{"$f":"SUM(B8:B19)","v":0},{"$f":"SUM(C8:C19)","v":2},0,0,0,0,0,0,0,0,0,2,4,0]
[]
["Statut actuel des dossiers du négociateur"]
["Statut","JANVIER","FÉVRIER","MARS","AVRIL","MAI","JUIN","JUILLET","AOÛT","SEPTEMBRE","OCTOBRE","NOVEMBRE","DÉCEMBRE","TOTAL","Pourcentage"]
[{"$f":"IF(ISBLANK(paramètres!C5),\"\",paramètres!C5)","v":"TEL, SMS"},{"$f":"COUNTIFS(Tableau3[Statut actuel],'Analyses Marc'!A24,Tableau3[Mois],'Analyses Marc'!$B$7,Tableau3[Négo],paramètres!$B$5)","v":0},{"$f":"COUNTIFS(Tableau3[Statut actuel],'Analyses Marc'!A24,Tableau3[Mois],'Analyses Marc'!$C$7,Tableau3[Négo],paramètres!$B$5)","v":0},{"$f":"COUNTIFS(Tableau3[Statut actuel],'Analyses Marc'!A24,Tableau3[Mois],'Analyses Marc'!$D$7,Tableau3[Négo],paramètres!$B$5)","v":0},{"$f":"COUNTIFS(Tableau3[Statut actuel],'Analyses Marc'!A24,Tableau3[Mois],'Analyses Marc'!$E$7,Tableau3[Négo],paramètres!$B$5)","v":0},{"$f":"COUNTIFS(Tableau3[Statut actuel],'Analyses Marc'!A24,Tableau3[Mois],'Analyses Marc'!$F$7,Tableau3[Négo],paramètres!$B$5)","v":0},{"$f":"COUNTIFS(Tableau3[Statut actuel],'Analyses Marc'!A24,Tableau3[Mois],'Analyses Marc'!$G$7,Tableau3[Négo],paramètres!$B$5)","v":0},{"$f":"COUNTIFS(Tableau3[Statut actuel],'Analyses Marc'!A24,Tableau3[Mois],'Analyses Marc'!$H$7,Tableau3[Négo],paramètres!$B$5)","v":0},{"$f":"COUNTIFS(Tableau3[Statut actuel],'Analyses Marc'!A24,Tableau3[Mois],'Analyses Marc'!$I$7,Tableau3[Négo],paramètres!$B$5)","v":0},{"$f":"COUNTIFS(Tableau3[Statut actuel],'Analyses Marc'!A24,Tableau3[Mois],'Analyses Marc'!$J$7,Tableau3[Négo],paramètres!$B$5)","v":0},{"$f":"COUNTIFS(Tableau3[Statut actuel],'Analyses Marc'!A24,Tableau3[Mois],'Analyses Marc'!$K$7,Tableau3[Négo],paramètres!$B$5)","v":0},{"$f":"COUNTIFS(Tableau3[Statut actuel],'Analyses Marc'!A24,Tableau3[Mois],'Analyses Marc'!$L$7,Tableau3[Négo],paramètres!$B$5)","v":0},{"$f":"COUNTIFS(Tableau3[Statut actuel],'Analyses Marc'!A24,Tableau3[Mois],'Analyses Marc'!$M$7,Tableau3[Négo],paramètres!$B$5)","v":0},{"$f":"SUM(B24:M24)","v":0}]
[{"$f":"IF(ISBLANK(paramètres!C6),\"\",paramètres!C6)","v":"Porte à porte"},{"$f":"COUNTIFS(Tableau3[Statut actuel],'Analyses Marc'!A25,Tableau3[Mois],'Analyses Marc'!$B$7,Tableau3[Négo],paramètres!$B$5)","v":0},{"$f":"COUNTIFS(Tableau3[Statut actuel],'Analyses Marc'!A25,Tableau3[Mois],'Analyses Marc'!$C$7,Tableau3[Négo],paramètres!$B$5)","v":0},{"$f":"COUNTIFS(Tableau3[Statut actuel],'Analyses Marc'!A25,Tableau3[Mois],'Analyses Marc'!$D$7,Tableau3[Négo],paramètres!$B$5)","v":0},{"$f":"COUNTIFS(Tableau3[Statut actuel],'Analyses Marc'!A25,Tableau3[Mois],'Analyses Marc'!$E$7,Tableau3[Négo],paramètres!$B$5)","v":0},{"$f":"COUNTIFS(Tableau3[Statut actuel],'Analyses Marc'!A25,Tableau3[Mois],'Analyses Marc'!$F$7,Tableau3[Négo],paramètres!$B$5)","v":0},{"$f":"COUNTIFS(Tableau3[Statut actuel],'Analyses Marc'!A25,Tableau3[Mois],'Analyses Marc'!$G$7,Tableau3[Négo],paramètres!$B$5)","v":0},{"$f":"COUNTIFS(Tableau3[Statut actuel],'Analyses Marc'!A25,Tableau3[Mois],'Analyses Marc'!$H$7,Tableau3[Négo],paramètres!$B$5)","v":0},{"$f":"COUNTIFS(Tableau3[Statut actuel],'Analyses Marc'!A25,Tableau3[Mois],'Analyses Marc'!$I$7,Tableau3[Négo],paramètres!$B$5)","v":0},{"$f":"COUNTIFS(Tableau3[Statut actuel],'Analyses Marc'!A25,Tableau3[Mois],'Analyses Marc'!$J$7,Tableau3[Négo],paramètres!$B$5)","v":0},{"$f":"COUNTIFS(Tableau3[Statut actuel],'Analyses Marc'!A25,Tableau3[Mois],'Analyses Marc'!$K$7,Tableau3[Négo],paramètres!$B$5)","v":0},{"$f":"COUNTIFS(Tableau3[Statut actuel],'Analyses Marc'!A25,Tableau3[Mois],'Analyses Marc'!$L$7,Tableau3[Négo],paramètres!$B$5)","v":0},{"$f":"COUNTIFS(Tableau3[Statut actuel],'Analyses Marc'!A25,Tableau3[Mois],'Analyses Marc'!$M$7,Tableau3[Négo],paramètres!$B$5)","v":0},{"$f":"SUM(B25:M25)","v":0}]
[{"$f":"IF(ISBLANK(paramètres!C7),\"\",paramètres!C7)","v":"R1"},{"$f":"COUNTIFS(Tableau3[Statut actuel],'Analyses Marc'!A26,Tableau3[Mois],'Analyses Marc'!$B$7,Tableau3[Négo],paramètres!$B$5)","v":0},{"$f":"COUNTIFS(Tableau3[Statut actuel],'Analyses Marc'!A26,Tableau3[Mois],'Analyses Marc'!$C$7,Tableau3[Négo],paramètres!$B$5)","v":0},{"$f":"COUNTIFS(Tableau3[Statut actuel],'Analyses Marc'!A26,Tableau3[Mois],'Analyses Marc'!$D$7,Tableau3[Négo],paramètres!$B$5)","v":0},{"$f":"COUNTIFS(Tableau3[Statut actuel],'Analyses Marc'!A26,Tableau3[Mois],'Analyses Marc'!$E$7,Tableau3[Négo],paramètres!$B$5)","v":0},{"$f":"COUNTIFS(Tableau3[Statut actuel],'Analyses Marc'!A26,Tableau3[Mois],'Analyses Marc'!$F$7,Tableau3[Négo],paramètres!$B$5)","v":0},{"$f":"COUNTIFS(Tableau3[Statut actuel],'Analyses Marc'!A26,Tableau3[Mois],'Analyses Marc'!$G$7,Tableau3[Négo],paramètres!$B$5)","v":0},{"$f":"COUNTIFS(Tableau3[Statut actuel],'Analyses Marc'!A26,Tableau3[Mois],'Analyses Marc'!$H$7,Tableau3[Négo],paramètres!$B$5)","v":0},{"$f":"COUNTIFS(Tableau3[Statut actuel],'Analyses Marc'!A26,Tableau3[Mois],'Analyses Marc'!$I$7,Tableau3[Négo],paramètres!$B$5)","v":0},{"$f":"COUNTIFS(Tableau3[Statut actuel],'Analyses Marc'!A26,Tableau3[Mois],'Analyses Marc'!$J$7,Tableau3[Négo],paramètres!$B$5)","v":0},{"$f":"COUNTIFS(Tableau3[Statut actuel],'Analyses Marc'!A26,Tableau3[Mois],'Analyses Marc'!$K$7,Tableau3[Négo],paramètres!$B$5)","v":0},{"$f":"COUNTIFS(Tableau3[Statut actuel],'Analyses Marc'!A26,Tableau3[Mois],'Analyses Marc'!$L$7,Tableau3[Négo],paramètres!$B$5)","v":0},{"$f":"COUNTIFS(Tableau3[Statut actuel],'Analyses Marc'!A26,Tableau3[Mois],'Analyses Marc'!$M$7,Tableau3[Négo],paramètres!$B$5)","v":0},0]
[{"$f":"IF(ISBLANK(paramètres!C8),\"\",paramètres!C8)","v":"R2"},{"$f":"COUNTIFS(Tableau3[Statut actuel],'Analyses Marc'!A27,Tableau3[Mois],'Analyses Marc'!$B$7,Tableau3[Négo],paramètres!$B$5)","v":0},{"$f":"COUNTIFS(Tableau3[Statut actuel],'Analyses Marc'!A27,Tableau3[Mois],'Analyses Marc'!$C$7,Tableau3[Négo],paramètres!$B$5)","v":0},{"$f":"COUNTIFS(Tableau3[Statut actuel],'Analyses Marc'!A27,Tableau3[Mois],'Analyses Marc'!$D$7,Tableau3[Négo],paramètres!$B$5)","v":0},{"$f":"COUNTIFS(Tableau3[Statut actuel],'Analyses Marc'!A27,Tableau3[Mois],'Analyses Marc'!$E$7,Tableau3[Négo],paramètres!$B$5)","v":0},{"$f":"COUNTIFS(Tableau3[Statut actuel],'Analyses Marc'!A27,Tableau3[Mois],'Analyses Marc'!$F$7,Tableau3[Négo],paramètres!$B$5)","v":0},{"$f":"COUNTIFS(Tableau3[Statut actuel],'Analyses Marc'!A27,Tableau3[Mois],'Analyses Marc'!$G$7,Tableau3[Négo],paramètres!$B$5)","v":0},{"$f":"COUNTIFS(Tableau3[Statut actuel],'Analyses Marc'!A27,Tableau3[Mois],'Analyses Marc'!$H$7,Tableau3[Négo],paramètres!$B$5)","v":0},{"$f":"COUNTIFS(Tableau3[Statut actuel],'Analyses Marc'!A27,Tableau3[Mois],'Analyses Marc'!$I$7,Tableau3[Négo],paramètres!$B$5)","v":0},{"$f":"COUNTIFS(Tableau3[Statut actuel],'Analyses Marc'!A27,Tableau3[Mois],'Analyses Marc'!$J$7,Tableau3[Négo],paramètres!$B$5)","v":0},{"$f":"COUNTIFS(Tableau3[Statut actuel],'Analyses Marc'!A27,Tableau3[Mois],'Analyses Marc'!$K$7,Tableau3[Négo],paramètres!$B$5)","v":0},{"$f":"COUNTIFS(Tableau3[Statut actuel],'Analyses Marc'!A27,Tableau3[Mois],'Analyses Marc'!$L$7,Tableau3[Négo],paramètres!$B$5)","v":0},{"$f":"COUNTIFS(Tableau3[Statut actuel],'Analyses Marc'!A27,Tableau3[Mois],'Analyses Marc'!$M$7,Tableau3[Négo],paramètres!$B$5)","v":0},0]
[{"$f":"IF(ISBLANK(paramètres!C9),\"\",paramètres!C9)","v":"Estimation faite"},{"$f":"COUNTIFS(Tableau3[Statut actuel],'Analyses Marc'!A28,Tableau3[Mois],'Analyses Marc'!$B$7,Tableau3[Négo],paramètres!$B$5)","v":0},{"$f":"COUNTIFS(Tableau3[Statut actuel],'Analyses Marc'!A28,Tableau3[Mois],'Analyses Marc'!$C$7,Tableau3[Négo],paramètres!$B$5)","v":0},{"$f":"COUNTIFS(Tableau3[Statut actuel],'Analyses Marc'!A28,Tableau3[Mois],'Analyses Marc'!$D$7,Tableau3[Négo],paramètres!$B$5)","v":0},{"$f":"COUNTIFS(Tableau3[Statut actuel],'Analyses Marc'!A28,Tableau3[Mois],'Analyses Marc'!$E$7,Tableau3[Négo],paramètres!$B$5)","v":0},{"$f":"COUNTIFS(Tableau3[Statut actuel],'Analyses Marc'!A28,Tableau3[Mois],'Analyses Marc'!$F$7,Tableau3[Négo],paramètres!$B$5)","v":0},{"$f":"COUNTIFS(Tableau3[Statut actuel],'Analyses Marc'!A28,Tableau3[Mois],'Analyses Marc'!$G$7,Tableau3[Négo],paramètres!$B$5)","v":0},{"$f":"COUNTIFS(Tableau3[Statut actuel],'Analyses Marc'!A28,Tableau3[Mois],'Analyses Marc'!$H$7,Tableau3[Négo],paramètres!$B$5)","v":0},{"$f":"COUNTIFS(Tableau3[Statut actuel],'Analyses Marc'!A28,Tableau3[Mois],'Analyses Marc'!$I$7,Tableau3[Négo],paramètres!$B$5)","v":0},{"$f":"COUNTIFS(Tableau3[Statut actuel],'Analyses Marc'!A28,Tableau3[Mois],'Analyses Marc'!$J$7,Tableau3[Négo],paramètres!$B$5)","v":0},{"$f":"COUNTIFS(Tableau3[Statut actuel],'Analyses Marc'!A28,Tableau3[Mois],'Analyses Marc'!$K$7,Tableau3[Négo],paramètres!$B$5)","v":0},{"$f":"COUNTIFS(Tableau3[Statut actuel],'Analyses Marc'!A28,Tableau3[Mois],'Analyses Marc'!$L$7,Tableau3[Négo],paramètres!$B$5)","v":0},{"$f":"COUNTIFS(Tableau3[Statut actuel],'Analyses Marc'!A28,Tableau3[Mois],'Analyses Marc'!$M$7,Tableau3[Négo],paramètres!$B$5)","v":0},0]
[{"$f":"IF(ISBLANK(paramètres!C10),\"\",paramètres!C10)","v":"Sous compromis"},{"$f":"COUNTIFS(Tableau3[Statut actuel],'Analyses Marc'!A29,Tableau3[Mois],'Analyses Marc'!$B$7,Tableau3[Négo],paramètres!$B$5)","v":0},{"$f":"COUNTIFS(Tableau3[Statut actuel],'Analyses Marc'!A29,Tableau3[Mois],'Analyses Marc'!$C$7,Tableau3[Négo],paramètres!$B$5)","v":0},{"$f":"COUNTIFS(Tableau3[Statut actuel],'Analyses Marc'!A29,Tableau3[Mois],'Analyses Marc'!$D$7,Tableau3[Négo],paramètres!$B$5)","v":0},{"$f":"COUNTIFS(Tableau3[Statut actuel],'Analyses Marc'!A29,Tableau3[Mois],'Analyses Marc'!$E$7,Tableau3[Négo],paramètres!$B$5)","v":0},{"$f":"COUNTIFS(Tableau3[Statut actuel],'Analyses Marc'!A29,Tableau3[Mois],'Analyses Marc'!$F$7,Tableau3[Négo],paramètres!$B$5)","v":0},{"$f":"COUNTIFS(Tableau3[Statut actuel],'Analyses Marc'!A29,Tableau3[Mois],'Analyses Marc'!$G$7,Tableau3[Négo],paramètres!$B$5)","v":0},{"$f":"COUNTIFS(Tableau3[Statut actuel],'Analyses Marc'!A29,Tableau3[Mois],'Analyses Marc'!$H$7,Tableau3[Négo],paramètres!$B$5)","v":0},{"$f":"COUNTIFS(Tableau3[Statut actuel],'Analyses Marc'!A29,Tableau3[Mois],'Analyses Marc'!$I$7,Tableau3[Négo],paramètres!$B$5)","v":0},{"$f":"COUNTIFS(Tableau3[Statut actuel],'Analyses Marc'!A29,Tableau3[Mois],'Analyses Marc'!$J$7,Tableau3[Négo],paramètres!$B$5)","v":0},{"$f":"COUNTIFS(Tableau3[Statut actuel],'Analyses Marc'!A29,Tableau3[Mois],'Analyses Marc'!$K$7,Tableau3[Négo],paramètres!$B$5)","v":0},{"$f":"COUNTIFS(Tableau3[Statut actuel],'Analyses Marc'!A29,Tableau3[Mois],'Analyses Marc'!$L$7,Tableau3[Négo],paramètres!$B$5)","v":0},{"$f":"COUNTIFS(Tableau3[Statut actuel],'Analyses Marc'!A29,Tableau3[Mois],'Analyses Marc'!$M$7,Tableau3[Négo],paramètres!$B$5)","v":1},1]
[{"$f":"IF(ISBLANK(paramètres!C11),\"\",paramètres!C11)","v":"Vendu"},{"$f":"COUNTIFS(Tableau3[Statut actuel],'Analyses Marc'!A30,Tableau3[Mois],'Analyses Marc'!$B$7,Tableau3[Négo],paramètres!$B$5)","v":0},{"$f":"COUNTIFS(Tableau3[Statut actuel],'Analyses Marc'!A30,Tableau3[Mois],'Analyses Marc'!$C$7,Tableau3[Négo],paramètres!$B$5)","v":0},{"$f":"COUNTIFS(Tableau3[Statut actuel],'Analyses Marc'!A30,Tableau3[Mois],'Analyses Marc'!$D$7,Tableau3[Négo],paramètres!$B$5)","v":0},{"$f":"COUNTIFS(Tableau3[Statut actuel],'Analyses Marc'!A30,Tableau3[Mois],'Analyses Marc'!$E$7,Tableau3[Négo],paramètres!$B$5)","v":0},{"$f":"COUNTIFS(Tableau3[Statut actuel],'Analyses Marc'!A30,Tableau3[Mois],'Analyses Marc'!$F$7,Tableau3[Négo],paramètres!$B$5)","v":0},{"$f":"COUNTIFS(Tableau3[Statut actuel],'Analyses Marc'!A30,Tableau3[Mois],'Analyses Marc'!$G$7,Tableau3[Négo],paramètres!$B$5)","v":0},{"$f":"COUNTIFS(Tableau3[Statut actuel],'Analyses Marc'!A30,Tableau3[Mois],'Analyses Marc'!$H$7,Tableau3[Négo],paramètres!$B$5)","v":0},{"$f":"COUNTIFS(Tableau3[Statut actuel],'Analyses Marc'!A30,Tableau3[Mois],'Analyses Marc'!$I$7,Tableau3[Négo],paramètres!$B$5)","v":0},{"$f":"COUNTIFS(Tableau3[Statut actuel],'Analyses Marc'!A30,Tableau3[Mois],'Analyses Marc'!$J$7,Tableau3[Négo],paramètres!$B$5)","v":0},{"$f":"COUNTIFS(Tableau3[Statut actuel],'Analyses Marc'!A30,Tableau3[Mois],'Analyses Marc'!$K$7,Tableau3[Négo],paramètres!$B$5)","v":0},{"$f":"COUNTIFS(Tableau3[Statut actuel],'Analyses Marc'!A30,Tableau3[Mois],'Analyses Marc'!$L$7,Tableau3[Négo],paramètres!$B$5)","v":0},{"$f":"COUNTIFS(Tableau3[Statut actuel],'Analyses Marc'!A30,Tableau3[Mois],'Analyses Marc'!$M$7,Tableau3[Négo],paramètres!$B$5)","v":0},0]
[{"$f":"IF(ISBLANK(paramètres!C12),\"\",paramètres!C12)","v":"Vente annulée"},{"$f":"COUNTIFS(Tableau3[Statut actuel],'Analyses Marc'!A31,Tableau3[Mois],'Analyses Marc'!$B$7,Tableau3[Négo],paramètres!$B$5)","v":0},{"$f":"COUNTIFS(Tableau3[Statut actuel],'Analyses Marc'!A31,Tableau3[Mois],'Analyses Marc'!$C$7,Tableau3[Négo],paramètres!$B$5)","v":0},{"$f":"COUNTIFS(Tableau3[Statut actuel],'Analyses Marc'!A31,Tableau3[Mois],'Analyses Marc'!$D$7,Tableau3[Négo],paramètres!$B$5)","v":0},{"$f":"COUNTIFS(Tableau3[Statut actuel],'Analyses Marc'!A31,Tableau3[Mois],'Analyses Marc'!$E$7,Tableau3[Négo],paramètres!$B$5)","v":0},{"$f":"COUNTIFS(Tableau3[Statut actuel],'Analyses Marc'!A31,Tableau3[Mois],'Analyses Marc'!$F$7,Tableau3[Négo],paramètres!$B$5)","v":0},{"$f":"COUNTIFS(Tableau3[Statut actuel],'Analyses Marc'!A31,Tableau3[Mois],'Analyses Marc'!$G$7,Tableau3[Négo],paramètres!$B$5)","v":0},{"$f":"COUNTIFS(Tableau3[Statut actuel],'Analyses Marc'!A31,Tableau3[Mois],'Analyses Marc'!$H$7,Tableau3[Négo],paramètres!$B$5)","v":0},{"$f":"COUNTIFS(Tableau3[Statut actuel],'Analyses Marc'!A31,Tableau3[Mois],'Analyses Marc'!$I$7,Tableau3[Négo],paramètres!$B$5)","v":0},{"$f":"COUNTIFS(Tableau3[Statut actuel],'Analyses Marc'!A31,Tableau3[Mois],'Analyses Marc'!$J$7,Tableau3[Négo],paramètres!$B$5)","v":0},{"$f":"COUNTIFS(Tableau3[Statut actuel],'Analyses Marc'!A31,Tableau3[Mois],'Analyses Marc'!$K$7,Tableau3[Négo],paramètres!$B$5)","v":0},{"$f":"COUNTIFS(Tableau3[Statut actuel],'Analyses Marc'!A31,Tableau3[Mois],'Analyses Marc'!$L$7,Tableau3[Négo],paramètres!$B$5)","v":0},{"$f":"COUNTIFS(Tableau3[Statut actuel],'Analyses Marc'!A31,Tableau3[Mois],'Analyses Marc'!$M$7,Tableau3[Négo],paramètres!$B$5)","v":1},1]
[{"$f":"IF(ISBLANK(paramètres!C13),\"\",paramètres!C13)","v":"Abandonné"},{"$f":"COUNTIFS(Tableau3[Statut actuel],'Analyses Marc'!A32,Tableau3[Mois],'Analyses Marc'!$B$7,Tableau3[Négo],paramètres!$B$5)","v":0},{"$f":"COUNTIFS(Tableau3[Statut actuel],'Analyses Marc'!A32,Tableau3[Mois],'Analyses Marc'!$C$7,Tableau3[Négo],paramètres!$B$5)","v":1},{"$f":"COUNTIFS(Tableau3[Statut actuel],'Analyses Marc'!A32,Tableau3[Mois],'Analyses Marc'!$D$7,Tableau3[Négo],paramètres!$B$5)","v":0},{"$f":"COUNTIFS(Tableau3[Statut actuel],'Analyses Marc'!A32,Tableau3[Mois],'Analyses Marc'!$E$7,Tableau3[Négo],paramètres!$B$5)","v":0},{"$f":"COUNTIFS(Tableau3[Statut actuel],'Analyses Marc'!A32,Tableau3[Mois],'Analyses Marc'!$F$7,Tableau3[Négo],paramètres!$B$5)","v":0},{"$f":"COUNTIFS(Tableau3[Statut actuel],'Analyses Marc'!A32,Tableau3[Mois],'Analyses Marc'!$G$7,Tableau3[Négo],paramètres!$B$5)","v":0},{"$f":"COUNTIFS(Tableau3[Statut actuel],'Analyses Marc'!A32,Tableau3[Mois],'Analyses Marc'!$H$7,Tableau3[Négo],paramètres!$B$5)","v":0},{"$f":"COUNTIFS(Tableau3[Statut actuel],'Analyses Marc'!A32,Tableau3[Mois],'Analyses Marc'!$I$7,Tableau3[Négo],paramètres!$B$5)","v":0},{"$f":"COUNTIFS(Tableau3[Statut actuel],'Analyses Marc'!A32,Tableau3[Mois],'Analyses Marc'!$J$7,Tableau3[Négo],paramètres!$B$5)","v":0},{"$f":"COUNTIFS(Tableau3[Statut actuel],'Analyses Marc'!A32,Tableau3[Mois],'Analyses Marc'!$K$7,Tableau3[Négo],paramètres!$B$5)","v":0},{"$f":"COUNTIFS(Tableau3[Statut actuel],'Analyses Marc'!A32,Tableau3[Mois],'Analyses Marc'!$L$7,Tableau3[Négo],paramètres!$B$5)","v":0},{"$f":"COUNTIFS(Tableau3[Statut actuel],'Analyses Marc'!A32,Tableau3[Mois],'Analyses Marc'!$M$7,Tableau3[Négo],paramètres!$B$5)","v":0},1]
[{"$f":"IF(ISBLANK(paramètres!C14),\"\",paramètres!C14)","v":"Stand-by"},{"$f":"COUNTIFS(Tableau3[Statut actuel],'Analyses Marc'!A33,Tableau3[Mois],'Analyses Marc'!$B$7,Tableau3[Négo],paramètres!$B$5)","v":0},{"$f":"COUNTIFS(Tableau3[Statut actuel],'Analyses Marc'!A33,Tableau3[Mois],'Analyses Marc'!$C$7,Tableau3[Négo],paramètres!$B$5)","v":0},{"$f":"COUNTIFS(Tableau3[Statut actuel],'Analyses Marc'!A33,Tableau3[Mois],'Analyses Marc'!$D$7,Tableau3[Négo],paramètres!$B$5)","v":0},{"$f":"COUNTIFS(Tableau3[Statut actuel],'Analyses Marc'!A33,Tableau3[Mois],'Analyses Marc'!$E$7,Tableau3[Négo],paramètres!$B$5)","v":0},{"$f":"COUNTIFS(Tableau3[Statut actuel],'Analyses Marc'!A33,Tableau3[Mois],'Analyses Marc'!$F$7,Tableau3[Négo],paramètres!$B$5)","v":0},{"$f":"COUNTIFS(Tableau3[Statut actuel],'Analyses Marc'!A33,Tableau3[Mois],'Analyses Marc'!$G$7,Tableau3[Négo],paramètres!$B$5)","v":0},{"$f":"COUNTIFS(Tableau3[Statut actuel],'Analyses Marc'!A33,Tableau3[Mois],'Analyses Marc'!$H$7,Tableau3[Négo],paramètres!$B$5)","v":0},{"$f":"COUNTIFS(Tableau3[Statut actuel],'Analyses Marc'!A33,Tableau3[Mois],'Analyses Marc'!$I$7,Tableau3[Négo],paramètres!$B$5)","v":0},{"$f":"COUNTIFS(Tableau3[Statut actuel],'Analyses Marc'!A33,Tableau3[Mois],'Analyses Marc'!$J$7,Tableau3[Négo],paramètres!$B$5)","v":0},{"$f":"COUNTIFS(Tableau3[Statut actuel],'Analyses Marc'!A33,Tableau3[Mois],'Analyses Marc'!$K$7,Tableau3[Négo],paramètres!$B$5)","v":0},{"$f":"COUNTIFS(Tableau3[Statut actuel],'Analyses Marc'!A33,Tableau3[Mois],'Analyses Marc'!$L$7,Tableau3[Négo],paramètres!$B$5)","v":0},{"$f":"COUNTIFS(Tableau3[Statut actuel],'Analyses Marc'!A33,Tableau3[Mois],'Analyses Marc'!$M$7,Tableau3[Négo],paramètres!$B$5)","v":0},0]
[{"$f":"IF(ISBLANK(paramètres!C15),\"\",paramètres!C15)","v":"Sans Suite"},{"$f":"COUNTIFS(Tableau3[Statut actuel],'Analyses Marc'!A34,Tableau3[Mois],'Analyses Marc'!$B$7,Tableau3[Négo],paramètres!$B$5)","v":0},{"$f":"COUNTIFS(Tableau3[Statut actuel],'Analyses Marc'!A34,Tableau3[Mois],'Analyses Marc'!$C$7,Tableau3[Négo],paramètres!$B$5)","v":0},{"$f":"COUNTIFS(Tableau3[Statut actuel],'Analyses Marc'!A34,Tableau3[Mois],'Analyses Marc'!$D$7,Tableau3[Négo],paramètres!$B$5)","v":0},{"$f":"COUNTIFS(Tableau3[Statut actuel],'Analyses Marc'!A34,Tableau3[Mois],'Analyses Marc'!$E$7,Tableau3[Négo],paramètres!$B$5)","v":0},{"$f":"COUNTIFS(Tableau3[Statut actuel],'Analyses Marc'!A34,Tableau3[Mois],'Analyses Marc'!$F$7,Tableau3[Négo],paramètres!$B$5)","v":0},{"$f":"COUNTIFS(Tableau3[Statut actuel],'Analyses Marc'!A34,Tableau3[Mois],'Analyses Marc'!$G$7,Tableau3[Négo],paramètres!$B$5)","v":0},{"$f":"COUNTIFS(Tableau3[Statut actuel],'Analyses Marc'!A34,Tableau3[Mois],'Analyses Marc'!$H$7,Tableau3[Négo],paramètres!$B$5)","v":0},{"$f":"COUNTIFS(Tableau3[Statut actuel],'Analyses Marc'!A34,Tableau3[Mois],'Analyses Marc'!$I$7,Tableau3[Négo],paramètres!$B$5)","v":0},{"$f":"COUNTIFS(Tableau3[Statut actuel],'Analyses Marc'!A34,Tableau3[Mois],'Analyses Marc'!$J$7,Tableau3[Négo],paramètres!$B$5)","v":0},{"$f":"COUNTIFS(Tableau3[Statut actuel],'Analyses Marc'!A34,Tableau3[Mois],'Analyses Marc'!$K$7,Tableau3[Négo],paramètres!$B$5)","v":0},{"$f":"COUNTIFS(Tableau3[Statut actuel],'Analyses Marc'!A34,Tableau3[Mois],'Analyses Marc'!$L$7,Tableau3[Négo],paramètres!$B$5)","v":0},{"$f":"COUNTIFS(Tableau3[Statut actuel],'Analyses Marc'!A34,Tableau3[Mois],'Analyses Marc'!$M$7,Tableau3[Négo],paramètres!$B$5)","v":0},0]
[{"$f":"IF(ISBLANK(paramètres!C16),\"\",paramètres!C16)","v":"Mandat"},{"$f":"COUNTIFS(Tableau3[Statut actuel],'Analyses Marc'!A35,Tableau3[Mois],'Analyses Marc'!$B$7,Tableau3[Négo],paramètres!$B$5)","v":0},{"$f":"COUNTIFS(Tableau3[Statut actuel],'Analyses Marc'!A35,Tableau3[Mois],'Analyses Marc'!$C$7,Tableau3[Négo],paramètres!$B$5)","v":1},{"$f":"COUNTIFS(Tableau3[Statut actuel],'Analyses Marc'!A35,Tableau3[Mois],'Analyses Marc'!$D$7,Tableau3[Négo],paramètres!$B$5)","v":0},{"$f":"COUNTIFS(Tableau3[Statut actuel],'Analyses Marc'!A35,Tableau3[Mois],'Analyses Marc'!$E$7,Tableau3[Négo],paramètres!$B$5)","v":0},{"$f":"COUNTIFS(Tableau3[Statut actuel],'Analyses Marc'!A35,Tableau3[Mois],'Analyses Marc'!$F$7,Tableau3[Négo],paramètres!$B$5)","v":0},{"$f":"COUNTIFS(Tableau3[Statut actuel],'Analyses Marc'!A35,Tableau3[Mois],'Analyses Marc'!$G$7,Tableau3[Négo],paramètres!$B$5)","v":0},{"$f":"COUNTIFS(Tableau3[Statut actuel],'Analyses Marc'!A35,Tableau3[Mois],'Analyses Marc'!$H$7,Tableau3[Négo],paramètres!$B$5)","v":0},{"$f":"COUNTIFS(Tableau3[Statut actuel],'Analyses Marc'!A35,Tableau3[Mois],'Analyses Marc'!$I$7,Tableau3[Négo],paramètres!$B$5)","v":0},{"$f":"COUNTIFS(Tableau3[Statut actuel],'Analyses Marc'!A35,Tableau3[Mois],'Analyses Marc'!$J$7,Tableau3[Négo],paramètres!$B$5)","v":0},{"$f":"COUNTIFS(Tableau3[Statut actuel],'Analyses Marc'!A35,Tableau3[Mois],'Analyses Marc'!$K$7,Tableau3[Négo],paramètres!$B$5)","v":0},{"$f":"COUNTIFS(Tableau3[Statut actuel],'Analyses Marc'!A35,Tableau3[Mois],'Analyses Marc'!$L$7,Tableau3[Négo],paramètres!$B$5)","v":0},{"$f":"COUNTIFS(Tableau3[Statut actuel],'Analyses Marc'!A35,Tableau3[Mois],'Analyses Marc'!$M$7,Tableau3[Négo],paramètres!$B$5)","v":0},1]
[]
["TOTAL",{"$f":"SUM(B24:B35)","v":0},{"$f":"SUM(C24:C35)","v":2},0,0,0,0,0,0,0,0,0,2,{"$f":"SUM(N24:N35)","v":4}]
[]
["Chiffre d'affaires du commercial"]
[null,"JANVIER","FEVRIER","MARS","AVRIL","MAI","JUIN","JUILLET","AOÛT","SEPTEMBRE","OCTOBRE","NOVEMBRE","DÉCEMBRE","TOTAL"]
[]
["COMPROMIS EN COURS"]
["Montant"]
["ACTES"]
["Montant"]
["VENTES ANNULEES"]
["Montant annulé"]
[]
["Somme CA "]
["Rappel sur objectif (mensualisé)"]
[]
["Cumul CA"]
["Cumul objectif"]
[]
[]
[]
[null,"Rappel objectif annuel du commercial:"]
[]
[null,"Pourcentage de l'objectif:"]

{"sheet":"Analyses Team Duo de Choc","index":10,"n_rows":59,"n_cols":15,"rows_kept":59,"cut":false,"hidden":true,"merged":[[3,6,3,7]]}
["Analyses par commercial"]
[]
[]
[null,null,null,null,null,"Sélectionnez nom du négociateur:","Team Duo de Choc"]
[]
["Analyse de l'origine des prospects par commercial"]
["Origine","JANVIER","FÉVRIER","MARS","AVRIL","MAI","JUIN","JUILLET","AOÛT","SEPTEMBRE","OCTOBRE","NOVEMBRE","DÉCEMBRE","TOTAL","Pourcentage"]
[{"$f":"IF(ISBLANK(paramètres!A5),\"\",paramètres!A5)","v":"Appel direct"},{"$f":"COUNTIFS(Tableau3[Source du prospect],'Analyses Team Duo de Choc'!A8,Tableau3[Mois],'Analyses Team Duo de Choc'!$B$7,Tableau3[Négo],paramètres!$B$5)","v":0},{"$f":"COUNTIFS(Tableau3[Source du prospect],'Analyses Team Duo de Choc'!A8,Tableau3[Mois],'Analyses Team Duo de Choc'!$C$7,Tableau3[Négo],paramètres!$B$5)","v":0},{"$f":"COUNTIFS(Tableau3[Source du prospect],'Analyses Team Duo de Choc'!A8,Tableau3[Mois],'Analyses Team Duo de Choc'!$D$7,Tableau3[Négo],paramètres!$B$5)","v":0},{"$f":"COUNTIFS(Tableau3[Source du prospect],'Analyses Team Duo de Choc'!A8,Tableau3[Mois],'Analyses Team Duo de Choc'!$E$7,Tableau3[Négo],paramètres!$B$5)","v":0},{"$f":"COUNTIFS(Tableau3[Source du prospect],'Analyses Team Duo de Choc'!A8,Tableau3[Mois],'Analyses Team Duo de Choc'!$F$7,Tableau3[Négo],paramètres!$B$5)","v":0},{"$f":"COUNTIFS(Tableau3[Source du prospect],'Analyses Team Duo de Choc'!A8,Tableau3[Mois],'Analyses Team Duo de Choc'!$G$7,Tableau3[Négo],paramètres!$B$5)","v":0},{"$f":"COUNTIFS(Tableau3[Source du prospect],'Analyses Team Duo de Choc'!A8,Tableau3[Mois],'Analyses Team Duo de Choc'!$H$7,Tableau3[Négo],paramètres!$B$5)","v":0},{"$f":"COUNTIFS(Tableau3[Source du prospect],'Analyses Team Duo de Choc'!A8,Tableau3[Mois],'Analyses Team Duo de Choc'!$I$7,Tableau3[Négo],paramètres!$B$5)","v":0},{"$f":"COUNTIFS(Tableau3[Source du prospect],'Analyses Team Duo de Choc'!A8,Tableau3[Mois],'Analyses Team Duo de Choc'!$J$7,Tableau3[Négo],paramètres!$B$5)","v":0},{"$f":"COUNTIFS(Tableau3[Source du prospect],'Analyses Team Duo de Choc'!A8,Tableau3[Mois],'Analyses Team Duo de Choc'!$K$7,Tableau3[Négo],paramètres!$B$5)","v":0},{"$f":"COUNTIFS(Tableau3[Source du prospect],'Analyses Team Duo de Choc'!A8,Tableau3[Mois],'Analyses Team Duo de Choc'!$L$7,Tableau3[Négo],paramètres!$B$5)","v":0},{"$f":"COUNTIFS(Tableau3[Source du prospect],'Analyses Team Duo de Choc'!A8,Tableau3[Mois],'Analyses Team Duo de Choc'!$M$7,Tableau3[Négo],paramètres!$B$5)","v":1},{"$f":"SUM(B8:M8)","v":1}]
[{"$f":"IF(ISBLANK(paramètres!A6),\"\",paramètres!A6)","v":"e-mail"},{"$f":"COUNTIFS(Tableau3[Source du prospect],'Analyses Team Duo de Choc'!A9,Tableau3[Mois],'Analyses Team Duo de Choc'!$B$7,Tableau3[Négo],paramètres!$B$5)","v":0},{"$f":"COUNTIFS(Tableau3[Source du prospect],'Analyses Team Duo de Choc'!A9,Tableau3[Mois],'Analyses Team Duo de Choc'!$C$7,Tableau3[Négo],paramètres!$B$5)","v":1},{"$f":"COUNTIFS(Tableau3[Source du prospect],'Analyses Team Duo de Choc'!A9,Tableau3[Mois],'Analyses Team Duo de Choc'!$D$7,Tableau3[Négo],paramètres!$B$5)","v":0},{"$f":"COUNTIFS(Tableau3[Source du prospect],'Analyses Team Duo de Choc'!A9,Tableau3[Mois],'Analyses Team Duo de Choc'!$E$7,Tableau3[Négo],paramètres!$B$5)","v":0},{"$f":"COUNTIFS(Tableau3[Source du prospect],'Analyses Team Duo de Choc'!A9,Tableau3[Mois],'Analyses Team Duo de Choc'!$F$7,Tableau3[Négo],paramètres!$B$5)","v":0},{"$f":"COUNTIFS(Tableau3[Source du prospect],'Analyses Team Duo de Choc'!A9,Tableau3[Mois],'Analyses Team Duo de Choc'!$G$7,Tableau3[Négo],paramètres!$B$5)","v":0},{"$f":"COUNTIFS(Tableau3[Source du prospect],'Analyses Team Duo de Choc'!A9,Tableau3[Mois],'Analyses Team Duo de Choc'!$H$7,Tableau3[Négo],paramètres!$B$5)","v":0},{"$f":"COUNTIFS(Tableau3[Source du prospect],'Analyses Team Duo de Choc'!A9,Tableau3[Mois],'Analyses Team Duo de Choc'!$I$7,Tableau3[Négo],paramètres!$B$5)","v":0},{"$f":"COUNTIFS(Tableau3[Source du prospect],'Analyses Team Duo de Choc'!A9,Tableau3[Mois],'Analyses Team Duo de Choc'!$J$7,Tableau3[Négo],paramètres!$B$5)","v":0},{"$f":"COUNTIFS(Tableau3[Source du prospect],'Analyses Team Duo de Choc'!A9,Tableau3[Mois],'Analyses Team Duo de Choc'!$K$7,Tableau3[Négo],paramètres!$B$5)","v":0},{"$f":"COUNTIFS(Tableau3[Source du prospect],'Analyses Team Duo de Choc'!A9,Tableau3[Mois],'Analyses Team Duo de Choc'!$L$7,Tableau3[Négo],paramètres!$B$5)","v":0},{"$f":"COUNTIFS(Tableau3[Source du prospect],'Analyses Team Duo de Choc'!A9,Tableau3[Mois],'Analyses Team Duo de Choc'!$M$7,Tableau3[Négo],paramètres!$B$5)","v":0},{"$f":"SUM(B9:M9)","v":1}]
[{"$f":"IF(ISBLANK(paramètres!A7),\"\",paramètres!A7)","v":"Prospection"},{"$f":"COUNTIFS(Tableau3[Source du prospect],'Analyses Team Duo de Choc'!A10,Tableau3[Mois],'Analyses Team Duo de Choc'!$B$7,Tableau3[Négo],paramètres!$B$5)","v":0},{"$f":"COUNTIFS(Tableau3[Source du prospect],'Analyses Team Duo de Choc'!A10,Tableau3[Mois],'Analyses Team Duo de Choc'!$C$7,Tableau3[Négo],paramètres!$B$5)","v":0},{"$f":"COUNTIFS(Tableau3[Source du prospect],'Analyses Team Duo de Choc'!A10,Tableau3[Mois],'Analyses Team Duo de Choc'!$D$7,Tableau3[Négo],paramètres!$B$5)","v":0},{"$f":"COUNTIFS(Tableau3[Source du prospect],'Analyses Team Duo de Choc'!A10,Tableau3[Mois],'Analyses Team Duo de Choc'!$E$7,Tableau3[Négo],paramètres!$B$5)","v":0},{"$f":"COUNTIFS(Tableau3[Source du prospect],'Analyses Team Duo de Choc'!A10,Tableau3[Mois],'Analyses Team Duo de Choc'!$F$7,Tableau3[Négo],paramètres!$B$5)","v":0},{"$f":"COUNTIFS(Tableau3[Source du prospect],'Analyses Team Duo de Choc'!A10,Tableau3[Mois],'Analyses Team Duo de Choc'!$G$7,Tableau3[Négo],paramètres!$B$5)","v":0},{"$f":"COUNTIFS(Tableau3[Source du prospect],'Analyses Team Duo de Choc'!A10,Tableau3[Mois],'Analyses Team Duo de Choc'!$H$7,Tableau3[Négo],paramètres!$B$5)","v":0},{"$f":"COUNTIFS(Tableau3[Source du prospect],'Analyses Team Duo de Choc'!A10,Tableau3[Mois],'Analyses Team Duo de Choc'!$I$7,Tableau3[Négo],paramètres!$B$5)","v":0},{"$f":"COUNTIFS(Tableau3[Source du prospect],'Analyses Team Duo de Choc'!A10,Tableau3[Mois],'Analyses Team Duo de Choc'!$J$7,Tableau3[Négo],paramètres!$B$5)","v":0},{"$f":"COUNTIFS(Tableau3[Source du prospect],'Analyses Team Duo de Choc'!A10,Tableau3[Mois],'Analyses Team Duo de Choc'!$K$7,Tableau3[Négo],paramètres!$B$5)","v":0},{"$f":"COUNTIFS(Tableau3[Source du prospect],'Analyses Team Duo de Choc'!A10,Tableau3[Mois],'Analyses Team Duo de Choc'!$L$7,Tableau3[Négo],paramètres!$B$5)","v":0},{"$f":"COUNTIFS(Tableau3[Source du prospect],'Analyses Team Duo de Choc'!A10,Tableau3[Mois],'Analyses Team Duo de Choc'!$M$7,Tableau3[Négo],paramètres!$B$5)","v":1},1]
[{"$f":"IF(ISBLANK(paramètres!A8),\"\",paramètres!A8)","v":"Site Internet"},{"$f":"COUNTIFS(Tableau3[Source du prospect],'Analyses Team Duo de Choc'!A11,Tableau3[Mois],'Analyses Team Duo de Choc'!$B$7,Tableau3[Négo],paramètres!$B$5)","v":0},{"$f":"COUNTIFS(Tableau3[Source du prospect],'Analyses Team Duo de Choc'!A11,Tableau3[Mois],'Analyses Team Duo de Choc'!$C$7,Tableau3[Négo],paramètres!$B$5)","v":1},{"$f":"COUNTIFS(Tableau3[Source du prospect],'Analyses Team Duo de Choc'!A11,Tableau3[Mois],'Analyses Team Duo de Choc'!$D$7,Tableau3[Négo],paramètres!$B$5)","v":0},{"$f":"COUNTIFS(Tableau3[Source du prospect],'Analyses Team Duo de Choc'!A11,Tableau3[Mois],'Analyses Team Duo de Choc'!$E$7,Tableau3[Négo],paramètres!$B$5)","v":0},{"$f":"COUNTIFS(Tableau3[Source du prospect],'Analyses Team Duo de Choc'!A11,Tableau3[Mois],'Analyses Team Duo de Choc'!$F$7,Tableau3[Négo],paramètres!$B$5)","v":0},{"$f":"COUNTIFS(Tableau3[Source du prospect],'Analyses Team Duo de Choc'!A11,Tableau3[Mois],'Analyses Team Duo de Choc'!$G$7,Tableau3[Négo],paramètres!$B$5)","v":0},{"$f":"COUNTIFS(Tableau3[Source du prospect],'Analyses Team Duo de Choc'!A11,Tableau3[Mois],'Analyses Team Duo de Choc'!$H$7,Tableau3[Négo],paramètres!$B$5)","v":0},{"$f":"COUNTIFS(Tableau3[Source du prospect],'Analyses Team Duo de Choc'!A11,Tableau3[Mois],'Analyses Team Duo de Choc'!$I$7,Tableau3[Négo],paramètres!$B$5)","v":0},{"$f":"COUNTIFS(Tableau3[Source du prospect],'Analyses Team Duo de Choc'!A11,Tableau3[Mois],'Analyses Team Duo de Choc'!$J$7,Tableau3[Négo],paramètres!$B$5)","v":0},{"$f":"COUNTIFS(Tableau3[Source du prospect],'Analyses Team Duo de Choc'!A11,Tableau3[Mois],'Analyses Team Duo de Choc'!$K$7,Tableau3[Négo],paramètres!$B$5)","v":0},{"$f":"COUNTIFS(Tableau3[Source du prospect],'Analyses Team Duo de Choc'!A11,Tableau3[Mois],'Analyses Team Duo de Choc'!$L$7,Tableau3[Négo],paramètres!$B$5)","v":0},{"$f":"COUNTIFS(Tableau3[Source du prospect],'Analyses Team Duo de Choc'!A11,Tableau3[Mois],'Analyses Team Duo de Choc'!$M$7,Tableau3[Négo],paramètres!$B$5)","v":0},1]
[{"$f":"IF(ISBLANK(paramètres!A9),\"\",paramètres!A9)","v":"Appel agence"},{"$f":"COUNTIFS(Tableau3[Source du prospect],'Analyses Team Duo de Choc'!A12,Tableau3[Mois],'Analyses Team Duo de Choc'!$B$7,Tableau3[Négo],paramètres!$B$5)","v":0},{"$f":"COUNTIFS(Tableau3[Source du prospect],'Analyses Team Duo de Choc'!A12,Tableau3[Mois],'Analyses Team Duo de Choc'!$C$7,Tableau3[Négo],paramètres!$B$5)","v":0},{"$f":"COUNTIFS(Tableau3[Source du prospect],'Analyses Team Duo de Choc'!A12,Tableau3[Mois],'Analyses Team Duo de Choc'!$D$7,Tableau3[Négo],paramètres!$B$5)","v":0},{"$f":"COUNTIFS(Tableau3[Source du prospect],'Analyses Team Duo de Choc'!A12,Tableau3[Mois],'Analyses Team Duo de Choc'!$E$7,Tableau3[Négo],paramètres!$B$5)","v":0},{"$f":"COUNTIFS(Tableau3[Source du prospect],'Analyses Team Duo de Choc'!A12,Tableau3[Mois],'Analyses Team Duo de Choc'!$F$7,Tableau3[Négo],paramètres!$B$5)","v":0},{"$f":"COUNTIFS(Tableau3[Source du prospect],'Analyses Team Duo de Choc'!A12,Tableau3[Mois],'Analyses Team Duo de Choc'!$G$7,Tableau3[Négo],paramètres!$B$5)","v":0},{"$f":"COUNTIFS(Tableau3[Source du prospect],'Analyses Team Duo de Choc'!A12,Tableau3[Mois],'Analyses Team Duo de Choc'!$H$7,Tableau3[Négo],paramètres!$B$5)","v":0},{"$f":"COUNTIFS(Tableau3[Source du prospect],'Analyses Team Duo de Choc'!A12,Tableau3[Mois],'Analyses Team Duo de Choc'!$I$7,Tableau3[Négo],paramètres!$B$5)","v":0},{"$f":"COUNTIFS(Tableau3[Source du prospect],'Analyses Team Duo de Choc'!A12,Tableau3[Mois],'Analyses Team Duo de Choc'!$J$7,Tableau3[Négo],paramètres!$B$5)","v":0},{"$f":"COUNTIFS(Tableau3[Source du prospect],'Analyses Team Duo de Choc'!A12,Tableau3[Mois],'Analyses Team Duo de Choc'!$K$7,Tableau3[Négo],paramètres!$B$5)","v":0},{"$f":"COUNTIFS(Tableau3[Source du prospect],'Analyses Team Duo de Choc'!A12,Tableau3[Mois],'Analyses Team Duo de Choc'!$L$7,Tableau3[Négo],paramètres!$B$5)","v":0},{"$f":"COUNTIFS(Tableau3[Source du prospect],'Analyses Team Duo de Choc'!A12,Tableau3[Mois],'Analyses Team Duo de Choc'!$M$7,Tableau3[Négo],paramètres!$B$5)","v":0},0]
[{"$f":"IF(ISBLANK(paramètres!A10),\"\",paramètres!A10)","v":""},null,null,null,null,null,null,null,null,null,null,null,null,0]
[{"$f":"IF(ISBLANK(paramètres!A11),\"\",paramètres!A11)","v":""},null,null,null,null,null,null,null,null,null,null,null,null,0]
[{"$f":"IF(ISBLANK(paramètres!A12),\"\",paramètres!A12)","v":""},null,null,null,null,null,null,null,null,null,null,null,null,{"$f":"SUM(B15:M15)","v":0}]
[{"$f":"IF(ISBLANK(paramètres!A13),\"\",paramètres!A13)","v":""},null,null,null,null,null,null,null,null,null,null,null,null,0]
[{"$f":"IF(ISBLANK(paramètres!A14),\"\",paramètres!A14)","v":""},null,null,null,null,null,null,null,null,null,null,null,null,0]
[{"$f":"IF(ISBLANK(paramètres!A15),\"\",paramètres!A15)","v":""},null,null,null,null,null,null,null,null,null,null,null,null,0]
[{"$f":"IF(ISBLANK(paramètres!A16),\"\",paramètres!A16)","v":""},null,null,null,null,null,null,null,null,null,null,null,null,0]
["TOTAL",{"$f":"SUM(B8:B19)","v":0},{"$f":"SUM(C8:C19)","v":2},0,0,0,0,0,0,0,0,0,2,4,0]
[]
["Statut actuel des dossiers du négociateur"]
["Statut","JANVIER","FÉVRIER","MARS","AVRIL","MAI","JUIN","JUILLET","AOÛT","SEPTEMBRE","OCTOBRE","NOVEMBRE","DÉCEMBRE","TOTAL","Pourcentage"]
[{"$f":"IF(ISBLANK(paramètres!C5),\"\",paramètres!C5)","v":"TEL, SMS"},{"$f":"COUNTIFS(Tableau3[Statut actuel],'Analyses Team Duo de Choc'!A24,Tableau3[Mois],'Analyses Team Duo de Choc'!$B$7,Tableau3[Négo],paramètres!$B$5)","v":0},{"$f":"COUNTIFS(Tableau3[Statut actuel],'Analyses Team Duo de Choc'!A24,Tableau3[Mois],'Analyses Team Duo de Choc'!$C$7,Tableau3[Négo],paramètres!$B$5)","v":0},{"$f":"COUNTIFS(Tableau3[Statut actuel],'Analyses Team Duo de Choc'!A24,Tableau3[Mois],'Analyses Team Duo de Choc'!$D$7,Tableau3[Négo],paramètres!$B$5)","v":0},{"$f":"COUNTIFS(Tableau3[Statut actuel],'Analyses Team Duo de Choc'!A24,Tableau3[Mois],'Analyses Team Duo de Choc'!$E$7,Tableau3[Négo],paramètres!$B$5)","v":0},{"$f":"COUNTIFS(Tableau3[Statut actuel],'Analyses Team Duo de Choc'!A24,Tableau3[Mois],'Analyses Team Duo de Choc'!$F$7,Tableau3[Négo],paramètres!$B$5)","v":0},{"$f":"COUNTIFS(Tableau3[Statut actuel],'Analyses Team Duo de Choc'!A24,Tableau3[Mois],'Analyses Team Duo de Choc'!$G$7,Tableau3[Négo],paramètres!$B$5)","v":0},{"$f":"COUNTIFS(Tableau3[Statut actuel],'Analyses Team Duo de Choc'!A24,Tableau3[Mois],'Analyses Team Duo de Choc'!$H$7,Tableau3[Négo],paramètres!$B$5)","v":0},{"$f":"COUNTIFS(Tableau3[Statut actuel],'Analyses Team Duo de Choc'!A24,Tableau3[Mois],'Analyses Team Duo de Choc'!$I$7,Tableau3[Négo],paramètres!$B$5)","v":0},{"$f":"COUNTIFS(Tableau3[Statut actuel],'Analyses Team Duo de Choc'!A24,Tableau3[Mois],'Analyses Team Duo de Choc'!$J$7,Tableau3[Négo],paramètres!$B$5)","v":0},{"$f":"COUNTIFS(Tableau3[Statut actuel],'Analyses Team Duo de Choc'!A24,Tableau3[Mois],'Analyses Team Duo de Choc'!$K$7,Tableau3[Négo],paramètres!$B$5)","v":0},{"$f":"COUNTIFS(Tableau3[Statut actuel],'Analyses Team Duo de Choc'!A24,Tableau3[Mois],'Analyses Team Duo de Choc'!$L$7,Tableau3[Négo],paramètres!$B$5)","v":0},{"$f":"COUNTIFS(Tableau3[Statut actuel],'Analyses Team Duo de Choc'!A24,Tableau3[Mois],'Analyses Team Duo de Choc'!$M$7,Tableau3[Négo],paramètres!$B$5)","v":0},{"$f":"SUM(B24:M24)","v":0}]
[{"$f":"IF(ISBLANK(paramètres!C6),\"\",paramètres!C6)","v":"Porte à porte"},{"$f":"COUNTIFS(Tableau3[Statut actuel],'Analyses Team Duo de Choc'!A25,Tableau3[Mois],'Analyses Team Duo de Choc'!$B$7,Tableau3[Négo],paramètres!$B$5)","v":0},{"$f":"COUNTIFS(Tableau3[Statut actuel],'Analyses Team Duo de Choc'!A25,Tableau3[Mois],'Analyses Team Duo de Choc'!$C$7,Tableau3[Négo],paramètres!$B$5)","v":0},{"$f":"COUNTIFS(Tableau3[Statut actuel],'Analyses Team Duo de Choc'!A25,Tableau3[Mois],'Analyses Team Duo de Choc'!$D$7,Tableau3[Négo],paramètres!$B$5)","v":0},{"$f":"COUNTIFS(Tableau3[Statut actuel],'Analyses Team Duo de Choc'!A25,Tableau3[Mois],'Analyses Team Duo de Choc'!$E$7,Tableau3[Négo],paramètres!$B$5)","v":0},{"$f":"COUNTIFS(Tableau3[Statut actuel],'Analyses Team Duo de Choc'!A25,Tableau3[Mois],'Analyses Team Duo de Choc'!$F$7,Tableau3[Négo],paramètres!$B$5)","v":0},{"$f":"COUNTIFS(Tableau3[Statut actuel],'Analyses Team Duo de Choc'!A25,Tableau3[Mois],'Analyses Team Duo de Choc'!$G$7,Tableau3[Négo],paramètres!$B$5)","v":0},{"$f":"COUNTIFS(Tableau3[Statut actuel],'Analyses Team Duo de Choc'!A25,Tableau3[Mois],'Analyses Team Duo de Choc'!$H$7,Tableau3[Négo],paramètres!$B$5)","v":0},{"$f":"COUNTIFS(Tableau3[Statut actuel],'Analyses Team Duo de Choc'!A25,Tableau3[Mois],'Analyses Team Duo de Choc'!$I$7,Tableau3[Négo],paramètres!$B$5)","v":0},{"$f":"COUNTIFS(Tableau3[Statut actuel],'Analyses Team Duo de Choc'!A25,Tableau3[Mois],'Analyses Team Duo de Choc'!$J$7,Tableau3[Négo],paramètres!$B$5)","v":0},{"$f":"COUNTIFS(Tableau3[Statut actuel],'Analyses Team Duo de Choc'!A25,Tableau3[Mois],'Analyses Team Duo de Choc'!$K$7,Tableau3[Négo],paramètres!$B$5)","v":0},{"$f":"COUNTIFS(Tableau3[Statut actuel],'Analyses Team Duo de Choc'!A25,Tableau3[Mois],'Analyses Team Duo de Choc'!$L$7,Tableau3[Négo],paramètres!$B$5)","v":0},{"$f":"COUNTIFS(Tableau3[Statut actuel],'Analyses Team Duo de Choc'!A25,Tableau3[Mois],'Analyses Team Duo de Choc'!$M$7,Tableau3[Négo],paramètres!$B$5)","v":0},{"$f":"SUM(B25:M25)","v":0}]
[{"$f":"IF(ISBLANK(paramètres!C7),\"\",paramètres!C7)","v":"R1"},{"$f":"COUNTIFS(Tableau3[Statut actuel],'Analyses Team Duo de Choc'!A26,Tableau3[Mois],'Analyses Team Duo de Choc'!$B$7,Tableau3[Négo],paramètres!$B$5)","v":0},{"$f":"COUNTIFS(Tableau3[Statut actuel],'Analyses Team Duo de Choc'!A26,Tableau3[Mois],'Analyses Team Duo de Choc'!$C$7,Tableau3[Négo],paramètres!$B$5)","v":0},{"$f":"COUNTIFS(Tableau3[Statut actuel],'Analyses Team Duo de Choc'!A26,Tableau3[Mois],'Analyses Team Duo de Choc'!$D$7,Tableau3[Négo],paramètres!$B$5)","v":0},{"$f":"COUNTIFS(Tableau3[Statut actuel],'Analyses Team Duo de Choc'!A26,Tableau3[Mois],'Analyses Team Duo de Choc'!$E$7,Tableau3[Négo],paramètres!$B$5)","v":0},{"$f":"COUNTIFS(Tableau3[Statut actuel],'Analyses Team Duo de Choc'!A26,Tableau3[Mois],'Analyses Team Duo de Choc'!$F$7,Tableau3[Négo],paramètres!$B$5)","v":0},{"$f":"COUNTIFS(Tableau3[Statut actuel],'Analyses Team Duo de Choc'!A26,Tableau3[Mois],'Analyses Team Duo de Choc'!$G$7,Tableau3[Négo],paramètres!$B$5)","v":0},{"$f":"COUNTIFS(Tableau3[Statut actuel],'Analyses Team Duo de Choc'!A26,Tableau3[Mois],'Analyses Team Duo de Choc'!$H$7,Tableau3[Négo],paramètres!$B$5)","v":0},{"$f":"COUNTIFS(Tableau3[Statut actuel],'Analyses Team Duo de Choc'!A26,Tableau3[Mois],'Analyses Team Duo de Choc'!$I$7,Tableau3[Négo],paramètres!$B$5)","v":0},{"$f":"COUNTIFS(Tableau3[Statut actuel],'Analyses Team Duo de Choc'!A26,Tableau3[Mois],'Analyses Team Duo de Choc'!$J$7,Tableau3[Négo],paramètres!$B$5)","v":0},{"$f":"COUNTIFS(Tableau3[Statut actuel],'Analyses Team Duo de Choc'!A26,Tableau3[Mois],'Analyses Team Duo de Choc'!$K$7,Tableau3[Négo],paramètres!$B$5)","v":0},{"$f":"COUNTIFS(Tableau3[Statut actuel],'Analyses Team Duo de Choc'!A26,Tableau3[Mois],'Analyses Team Duo de Choc'!$L$7,Tableau3[Négo],paramètres!$B$5)","v":0},{"$f":"COUNTIFS(Tableau3[Statut actuel],'Analyses Team Duo de Choc'!A26,Tableau3[Mois],'Analyses Team Duo de Choc'!$M$7,Tableau3[Négo],paramètres!$B$5)","v":0},0]
[{"$f":"IF(ISBLANK(paramètres!C8),\"\",paramètres!C8)","v":"R2"},{"$f":"COUNTIFS(Tableau3[Statut actuel],'Analyses Team Duo de Choc'!A27,Tableau3[Mois],'Analyses Team Duo de Choc'!$B$7,Tableau3[Négo],paramètres!$B$5)","v":0},{"$f":"COUNTIFS(Tableau3[Statut actuel],'Analyses Team Duo de Choc'!A27,Tableau3[Mois],'Analyses Team Duo de Choc'!$C$7,Tableau3[Négo],paramètres!$B$5)","v":0},{"$f":"COUNTIFS(Tableau3[Statut actuel],'Analyses Team Duo de Choc'!A27,Tableau3[Mois],'Analyses Team Duo de Choc'!$D$7,Tableau3[Négo],paramètres!$B$5)","v":0},{"$f":"COUNTIFS(Tableau3[Statut actuel],'Analyses Team Duo de Choc'!A27,Tableau3[Mois],'Analyses Team Duo de Choc'!$E$7,Tableau3[Négo],paramètres!$B$5)","v":0},{"$f":"COUNTIFS(Tableau3[Statut actuel],'Analyses Team Duo de Choc'!A27,Tableau3[Mois],'Analyses Team Duo de Choc'!$F$7,Tableau3[Négo],paramètres!$B$5)","v":0},{"$f":"COUNTIFS(Tableau3[Statut actuel],'Analyses Team Duo de Choc'!A27,Tableau3[Mois],'Analyses Team Duo de Choc'!$G$7,Tableau3[Négo],paramètres!$B$5)","v":0},{"$f":"COUNTIFS(Tableau3[Statut actuel],'Analyses Team Duo de Choc'!A27,Tableau3[Mois],'Analyses Team Duo de Choc'!$H$7,Tableau3[Négo],paramètres!$B$5)","v":0},{"$f":"COUNTIFS(Tableau3[Statut actuel],'Analyses Team Duo de Choc'!A27,Tableau3[Mois],'Analyses Team Duo de Choc'!$I$7,Tableau3[Négo],paramètres!$B$5)","v":0},{"$f":"COUNTIFS(Tableau3[Statut actuel],'Analyses Team Duo de Choc'!A27,Tableau3[Mois],'Analyses Team Duo de Choc'!$J$7,Tableau3[Négo],paramètres!$B$5)","v":0},{"$f":"COUNTIFS(Tableau3[Statut actuel],'Analyses Team Duo de Choc'!A27,Tableau3[Mois],'Analyses Team Duo de Choc'!$K$7,Tableau3[Négo],paramètres!$B$5)","v":0},{"$f":"COUNTIFS(Tableau3[Statut actuel],'Analyses Team Duo de Choc'!A27,Tableau3[Mois],'Analyses Team Duo de Choc'!$L$7,Tableau3[Négo],paramètres!$B$5)","v":0},{"$f":"COUNTIFS(Tableau3[Statut actuel],'Analyses Team Duo de Choc'!A27,Tableau3[Mois],'Analyses Team Duo de Choc'!$M$7,Tableau3[Négo],paramètres!$B$5)","v":0},0]
[{"$f":"IF(ISBLANK(paramètres!C9),\"\",paramètres!C9)","v":"Estimation faite"},{"$f":"COUNTIFS(Tableau3[Statut actuel],'Analyses Team Duo de Choc'!A28,Tableau3[Mois],'Analyses Team Duo de Choc'!$B$7,Tableau3[Négo],paramètres!$B$5)","v":0},{"$f":"COUNTIFS(Tableau3[Statut actuel],'Analyses Team Duo de Choc'!A28,Tableau3[Mois],'Analyses Team Duo de Choc'!$C$7,Tableau3[Négo],paramètres!$B$5)","v":0},{"$f":"COUNTIFS(Tableau3[Statut actuel],'Analyses Team Duo de Choc'!A28,Tableau3[Mois],'Analyses Team Duo de Choc'!$D$7,Tableau3[Négo],paramètres!$B$5)","v":0},{"$f":"COUNTIFS(Tableau3[Statut actuel],'Analyses Team Duo de Choc'!A28,Tableau3[Mois],'Analyses Team Duo de Choc'!$E$7,Tableau3[Négo],paramètres!$B$5)","v":0},{"$f":"COUNTIFS(Tableau3[Statut actuel],'Analyses Team Duo de Choc'!A28,Tableau3[Mois],'Analyses Team Duo de Choc'!$F$7,Tableau3[Négo],paramètres!$B$5)","v":0},{"$f":"COUNTIFS(Tableau3[Statut actuel],'Analyses Team Duo de Choc'!A28,Tableau3[Mois],'Analyses Team Duo de Choc'!$G$7,Tableau3[Négo],paramètres!$B$5)","v":0},{"$f":"COUNTIFS(Tableau3[Statut actuel],'Analyses Team Duo de Choc'!A28,Tableau3[Mois],'Analyses Team Duo de Choc'!$H$7,Tableau3[Négo],paramètres!$B$5)","v":0},{"$f":"COUNTIFS(Tableau3[Statut actuel],'Analyses Team Duo de Choc'!A28,Tableau3[Mois],'Analyses Team Duo de Choc'!$I$7,Tableau3[Négo],paramètres!$B$5)","v":0},{"$f":"COUNTIFS(Tableau3[Statut actuel],'Analyses Team Duo de Choc'!A28,Tableau3[Mois],'Analyses Team Duo de Choc'!$J$7,Tableau3[Négo],paramètres!$B$5)","v":0},{"$f":"COUNTIFS(Tableau3[Statut actuel],'Analyses Team Duo de Choc'!A28,Tableau3[Mois],'Analyses Team Duo de Choc'!$K$7,Tableau3[Négo],paramètres!$B$5)","v":0},{"$f":"COUNTIFS(Tableau3[Statut actuel],'Analyses Team Duo de Choc'!A28,Tableau3[Mois],'Analyses Team Duo de Choc'!$L$7,Tableau3[Négo],paramètres!$B$5)","v":0},{"$f":"COUNTIFS(Tableau3[Statut actuel],'Analyses Team Duo de Choc'!A28,Tableau3[Mois],'Analyses Team Duo de Choc'!$M$7,Tableau3[Négo],paramètres!$B$5)","v":0},0]
[{"$f":"IF(ISBLANK(paramètres!C10),\"\",paramètres!C10)","v":"Sous compromis"},{"$f":"COUNTIFS(Tableau3[Statut actuel],'Analyses Team Duo de Choc'!A29,Tableau3[Mois],'Analyses Team Duo de Choc'!$B$7,Tableau3[Négo],paramètres!$B$5)","v":0},{"$f":"COUNTIFS(Tableau3[Statut actuel],'Analyses Team Duo de Choc'!A29,Tableau3[Mois],'Analyses Team Duo de Choc'!$C$7,Tableau3[Négo],paramètres!$B$5)","v":0},{"$f":"COUNTIFS(Tableau3[Statut actuel],'Analyses Team Duo de Choc'!A29,Tableau3[Mois],'Analyses Team Duo de Choc'!$D$7,Tableau3[Négo],paramètres!$B$5)","v":0},{"$f":"COUNTIFS(Tableau3[Statut actuel],'Analyses Team Duo de Choc'!A29,Tableau3[Mois],'Analyses Team Duo de Choc'!$E$7,Tableau3[Négo],paramètres!$B$5)","v":0},{"$f":"COUNTIFS(Tableau3[Statut actuel],'Analyses Team Duo de Choc'!A29,Tableau3[Mois],'Analyses Team Duo de Choc'!$F$7,Tableau3[Négo],paramètres!$B$5)","v":0},{"$f":"COUNTIFS(Tableau3[Statut actuel],'Analyses Team Duo de Choc'!A29,Tableau3[Mois],'Analyses Team Duo de Choc'!$G$7,Tableau3[Négo],paramètres!$B$5)","v":0},{"$f":"COUNTIFS(Tableau3[Statut actuel],'Analyses Team Duo de Choc'!A29,Tableau3[Mois],'Analyses Team Duo de Choc'!$H$7,Tableau3[Négo],paramètres!$B$5)","v":0},{"$f":"COUNTIFS(Tableau3[Statut actuel],'Analyses Team Duo de Choc'!A29,Tableau3[Mois],'Analyses Team Duo de Choc'!$I$7,Tableau3[Négo],paramètres!$B$5)","v":0},{"$f":"COUNTIFS(Tableau3[Statut actuel],'Analyses Team Duo de Choc'!A29,Tableau3[Mois],'Analyses Team Duo de Choc'!$J$7,Tableau3[Négo],paramètres!$B$5)","v":0},{"$f":"COUNTIFS(Tableau3[Statut actuel],'Analyses Team Duo de Choc'!A29,Tableau3[Mois],'Analyses Team Duo de Choc'!$K$7,Tableau3[Négo],paramètres!$B$5)","v":0},{"$f":"COUNTIFS(Tableau3[Statut actuel],'Analyses Team Duo de Choc'!A29,Tableau3[Mois],'Analyses Team Duo de Choc'!$L$7,Tableau3[Négo],paramètres!$B$5)","v":0},{"$f":"COUNTIFS(Tableau3[Statut actuel],'Analyses Team Duo de Choc'!A29,Tableau3[Mois],'Analyses Team Duo de Choc'!$M$7,Tableau3[Négo],paramètres!$B$5)","v":1},1]
[{"$f":"IF(ISBLANK(paramètres!C11),\"\",paramètres!C11)","v":"Vendu"},{"$f":"COUNTIFS(Tableau3[Statut actuel],'Analyses Team Duo de Choc'!A30,Tableau3[Mois],'Analyses Team Duo de Choc'!$B$7,Tableau3[Négo],paramètres!$B$5)","v":0},{"$f":"COUNTIFS(Tableau3[Statut actuel],'Analyses Team Duo de Choc'!A30,Tableau3[Mois],'Analyses Team Duo de Choc'!$C$7,Tableau3[Négo],paramètres!$B$5)","v":0},{"$f":"COUNTIFS(Tableau3[Statut actuel],'Analyses Team Duo de Choc'!A30,Tableau3[Mois],'Analyses Team Duo de Choc'!$D$7,Tableau3[Négo],paramètres!$B$5)","v":0},{"$f":"COUNTIFS(Tableau3[Statut actuel],'Analyses Team Duo de Choc'!A30,Tableau3[Mois],'Analyses Team Duo de Choc'!$E$7,Tableau3[Négo],paramètres!$B$5)","v":0},{"$f":"COUNTIFS(Tableau3[Statut actuel],'Analyses Team Duo de Choc'!A30,Tableau3[Mois],'Analyses Team Duo de Choc'!$F$7,Tableau3[Négo],paramètres!$B$5)","v":0},{"$f":"COUNTIFS(Tableau3[Statut actuel],'Analyses Team Duo de Choc'!A30,Tableau3[Mois],'Analyses Team Duo de Choc'!$G$7,Tableau3[Négo],paramètres!$B$5)","v":0},{"$f":"COUNTIFS(Tableau3[Statut actuel],'Analyses Team Duo de Choc'!A30,Tableau3[Mois],'Analyses Team Duo de Choc'!$H$7,Tableau3[Négo],paramètres!$B$5)","v":0},{"$f":"COUNTIFS(Tableau3[Statut actuel],'Analyses Team Duo de Choc'!A30,Tableau3[Mois],'Analyses Team Duo de Choc'!$I$7,Tableau3[Négo],paramètres!$B$5)","v":0},{"$f":"COUNTIFS(Tableau3[Statut actuel],'Analyses Team Duo de Choc'!A30,Tableau3[Mois],'Analyses Team Duo de Choc'!$J$7,Tableau3[Négo],paramètres!$B$5)","v":0},{"$f":"COUNTIFS(Tableau3[Statut actuel],'Analyses Team Duo de Choc'!A30,Tableau3[Mois],'Analyses Team Duo de Choc'!$K$7,Tableau3[Négo],paramètres!$B$5)","v":0},{"$f":"COUNTIFS(Tableau3[Statut actuel],'Analyses Team Duo de Choc'!A30,Tableau3[Mois],'Analyses Team Duo de Choc'!$L$7,Tableau3[Négo],paramètres!$B$5)","v":0},{"$f":"COUNTIFS(Tableau3[Statut actuel],'Analyses Team Duo de Choc'!A30,Tableau3[Mois],'Analyses Team Duo de Choc'!$M$7,Tableau3[Négo],paramètres!$B$5)","v":0},0]
[{"$f":"IF(ISBLANK(paramètres!C12),\"\",paramètres!C12)","v":"Vente annulée"},{"$f":"COUNTIFS(Tableau3[Statut actuel],'Analyses Team Duo de Choc'!A31,Tableau3[Mois],'Analyses Team Duo de Choc'!$B$7,Tableau3[Négo],paramètres!$B$5)","v":0},{"$f":"COUNTIFS(Tableau3[Statut actuel],'Analyses Team Duo de Choc'!A31,Tableau3[Mois],'Analyses Team Duo de Choc'!$C$7,Tableau3[Négo],paramètres!$B$5)","v":0},{"$f":"COUNTIFS(Tableau3[Statut actuel],'Analyses Team Duo de Choc'!A31,Tableau3[Mois],'Analyses Team Duo de Choc'!$D$7,Tableau3[Négo],paramètres!$B$5)","v":0},{"$f":"COUNTIFS(Tableau3[Statut actuel],'Analyses Team Duo de Choc'!A31,Tableau3[Mois],'Analyses Team Duo de Choc'!$E$7,Tableau3[Négo],paramètres!$B$5)","v":0},{"$f":"COUNTIFS(Tableau3[Statut actuel],'Analyses Team Duo de Choc'!A31,Tableau3[Mois],'Analyses Team Duo de Choc'!$F$7,Tableau3[Négo],paramètres!$B$5)","v":0},{"$f":"COUNTIFS(Tableau3[Statut actuel],'Analyses Team Duo de Choc'!A31,Tableau3[Mois],'Analyses Team Duo de Choc'!$G$7,Tableau3[Négo],paramètres!$B$5)","v":0},{"$f":"COUNTIFS(Tableau3[Statut actuel],'Analyses Team Duo de Choc'!A31,Tableau3[Mois],'Analyses Team Duo de Choc'!$H$7,Tableau3[Négo],paramètres!$B$5)","v":0},{"$f":"COUNTIFS(Tableau3[Statut actuel],'Analyses Team Duo de Choc'!A31,Tableau3[Mois],'Analyses Team Duo de Choc'!$I$7,Tableau3[Négo],paramètres!$B$5)","v":0},{"$f":"COUNTIFS(Tableau3[Statut actuel],'Analyses Team Duo de Choc'!A31,Tableau3[Mois],'Analyses Team Duo de Choc'!$J$7,Tableau3[Négo],paramètres!$B$5)","v":0},{"$f":"COUNTIFS(Tableau3[Statut actuel],'Analyses Team Duo de Choc'!A31,Tableau3[Mois],'Analyses Team Duo de Choc'!$K$7,Tableau3[Négo],paramètres!$B$5)","v":0},{"$f":"COUNTIFS(Tableau3[Statut actuel],'Analyses Team Duo de Choc'!A31,Tableau3[Mois],'Analyses Team Duo de Choc'!$L$7,Tableau3[Négo],paramètres!$B$5)","v":0},{"$f":"COUNTIFS(Tableau3[Statut actuel],'Analyses Team Duo de Choc'!A31,Tableau3[Mois],'Analyses Team Duo de Choc'!$M$7,Tableau3[Négo],paramètres!$B$5)","v":1},1]
[{"$f":"IF(ISBLANK(paramètres!C13),\"\",paramètres!C13)","v":"Abandonné"},{"$f":"COUNTIFS(Tableau3[Statut actuel],'Analyses Team Duo de Choc'!A32,Tableau3[Mois],'Analyses Team Duo de Choc'!$B$7,Tableau3[Négo],paramètres!$B$5)","v":0},{"$f":"COUNTIFS(Tableau3[Statut actuel],'Analyses Team Duo de Choc'!A32,Tableau3[Mois],'Analyses Team Duo de Choc'!$C$7,Tableau3[Négo],paramètres!$B$5)","v":1},{"$f":"COUNTIFS(Tableau3[Statut actuel],'Analyses Team Duo de Choc'!A32,Tableau3[Mois],'Analyses Team Duo de Choc'!$D$7,Tableau3[Négo],paramètres!$B$5)","v":0},{"$f":"COUNTIFS(Tableau3[Statut actuel],'Analyses Team Duo de Choc'!A32,Tableau3[Mois],'Analyses Team Duo de Choc'!$E$7,Tableau3[Négo],paramètres!$B$5)","v":0},{"$f":"COUNTIFS(Tableau3[Statut actuel],'Analyses Team Duo de Choc'!A32,Tableau3[Mois],'Analyses Team Duo de Choc'!$F$7,Tableau3[Négo],paramètres!$B$5)","v":0},{"$f":"COUNTIFS(Tableau3[Statut actuel],'Analyses Team Duo de Choc'!A32,Tableau3[Mois],'Analyses Team Duo de Choc'!$G$7,Tableau3[Négo],paramètres!$B$5)","v":0},{"$f":"COUNTIFS(Tableau3[Statut actuel],'Analyses Team Duo de Choc'!A32,Tableau3[Mois],'Analyses Team Duo de Choc'!$H$7,Tableau3[Négo],paramètres!$B$5)","v":0},{"$f":"COUNTIFS(Tableau3[Statut actuel],'Analyses Team Duo de Choc'!A32,Tableau3[Mois],'Analyses Team Duo de Choc'!$I$7,Tableau3[Négo],paramètres!$B$5)","v":0},{"$f":"COUNTIFS(Tableau3[Statut actuel],'Analyses Team Duo de Choc'!A32,Tableau3[Mois],'Analyses Team Duo de Choc'!$J$7,Tableau3[Négo],paramètres!$B$5)","v":0},{"$f":"COUNTIFS(Tableau3[Statut actuel],'Analyses Team Duo de Choc'!A32,Tableau3[Mois],'Analyses Team Duo de Choc'!$K$7,Tableau3[Négo],paramètres!$B$5)","v":0},{"$f":"COUNTIFS(Tableau3[Statut actuel],'Analyses Team Duo de Choc'!A32,Tableau3[Mois],'Analyses Team Duo de Choc'!$L$7,Tableau3[Négo],paramètres!$B$5)","v":0},{"$f":"COUNTIFS(Tableau3[Statut actuel],'Analyses Team Duo de Choc'!A32,Tableau3[Mois],'Analyses Team Duo de Choc'!$M$7,Tableau3[Négo],paramètres!$B$5)","v":0},1]
[{"$f":"IF(ISBLANK(paramètres!C14),\"\",paramètres!C14)","v":"Stand-by"},{"$f":"COUNTIFS(Tableau3[Statut actuel],'Analyses Team Duo de Choc'!A33,Tableau3[Mois],'Analyses Team Duo de Choc'!$B$7,Tableau3[Négo],paramètres!$B$5)","v":0},{"$f":"COUNTIFS(Tableau3[Statut actuel],'Analyses Team Duo de Choc'!A33,Tableau3[Mois],'Analyses Team Duo de Choc'!$C$7,Tableau3[Négo],paramètres!$B$5)","v":0},{"$f":"COUNTIFS(Tableau3[Statut actuel],'Analyses Team Duo de Choc'!A33,Tableau3[Mois],'Analyses Team Duo de Choc'!$D$7,Tableau3[Négo],paramètres!$B$5)","v":0},{"$f":"COUNTIFS(Tableau3[Statut actuel],'Analyses Team Duo de Choc'!A33,Tableau3[Mois],'Analyses Team Duo de Choc'!$E$7,Tableau3[Négo],paramètres!$B$5)","v":0},{"$f":"COUNTIFS(Tableau3[Statut actuel],'Analyses Team Duo de Choc'!A33,Tableau3[Mois],'Analyses Team Duo de Choc'!$F$7,Tableau3[Négo],paramètres!$B$5)","v":0},{"$f":"COUNTIFS(Tableau3[Statut actuel],'Analyses Team Duo de Choc'!A33,Tableau3[Mois],'Analyses Team Duo de Choc'!$G$7,Tableau3[Négo],paramètres!$B$5)","v":0},{"$f":"COUNTIFS(Tableau3[Statut actuel],'Analyses Team Duo de Choc'!A33,Tableau3[Mois],'Analyses Team Duo de Choc'!$H$7,Tableau3[Négo],paramètres!$B$5)","v":0},{"$f":"COUNTIFS(Tableau3[Statut actuel],'Analyses Team Duo de Choc'!A33,Tableau3[Mois],'Analyses Team Duo de Choc'!$I$7,Tableau3[Négo],paramètres!$B$5)","v":0},{"$f":"COUNTIFS(Tableau3[Statut actuel],'Analyses Team Duo de Choc'!A33,Tableau3[Mois],'Analyses Team Duo de Choc'!$J$7,Tableau3[Négo],paramètres!$B$5)","v":0},{"$f":"COUNTIFS(Tableau3[Statut actuel],'Analyses Team Duo de Choc'!A33,Tableau3[Mois],'Analyses Team Duo de Choc'!$K$7,Tableau3[Négo],paramètres!$B$5)","v":0},{"$f":"COUNTIFS(Tableau3[Statut actuel],'Analyses Team Duo de Choc'!A33,Tableau3[Mois],'Analyses Team Duo de Choc'!$L$7,Tableau3[Négo],paramètres!$B$5)","v":0},{"$f":"COUNTIFS(Tableau3[Statut actuel],'Analyses Team Duo de Choc'!A33,Tableau3[Mois],'Analyses Team Duo de Choc'!$M$7,Tableau3[Négo],paramètres!$B$5)","v":0},0]
[{"$f":"IF(ISBLANK(paramètres!C15),\"\",paramètres!C15)","v":"Sans Suite"},{"$f":"COUNTIFS(Tableau3[Statut actuel],'Analyses Team Duo de Choc'!A34,Tableau3[Mois],'Analyses Team Duo de Choc'!$B$7,Tableau3[Négo],paramètres!$B$5)","v":0},{"$f":"COUNTIFS(Tableau3[Statut actuel],'Analyses Team Duo de Choc'!A34,Tableau3[Mois],'Analyses Team Duo de Choc'!$C$7,Tableau3[Négo],paramètres!$B$5)","v":0},{"$f":"COUNTIFS(Tableau3[Statut actuel],'Analyses Team Duo de Choc'!A34,Tableau3[Mois],'Analyses Team Duo de Choc'!$D$7,Tableau3[Négo],paramètres!$B$5)","v":0},{"$f":"COUNTIFS(Tableau3[Statut actuel],'Analyses Team Duo de Choc'!A34,Tableau3[Mois],'Analyses Team Duo de Choc'!$E$7,Tableau3[Négo],paramètres!$B$5)","v":0},{"$f":"COUNTIFS(Tableau3[Statut actuel],'Analyses Team Duo de Choc'!A34,Tableau3[Mois],'Analyses Team Duo de Choc'!$F$7,Tableau3[Négo],paramètres!$B$5)","v":0},{"$f":"COUNTIFS(Tableau3[Statut actuel],'Analyses Team Duo de Choc'!A34,Tableau3[Mois],'Analyses Team Duo de Choc'!$G$7,Tableau3[Négo],paramètres!$B$5)","v":0},{"$f":"COUNTIFS(Tableau3[Statut actuel],'Analyses Team Duo de Choc'!A34,Tableau3[Mois],'Analyses Team Duo de Choc'!$H$7,Tableau3[Négo],paramètres!$B$5)","v":0},{"$f":"COUNTIFS(Tableau3[Statut actuel],'Analyses Team Duo de Choc'!A34,Tableau3[Mois],'Analyses Team Duo de Choc'!$I$7,Tableau3[Négo],paramètres!$B$5)","v":0},{"$f":"COUNTIFS(Tableau3[Statut actuel],'Analyses Team Duo de Choc'!A34,Tableau3[Mois],'Analyses Team Duo de Choc'!$J$7,Tableau3[Négo],paramètres!$B$5)","v":0},{"$f":"COUNTIFS(Tableau3[Statut actuel],'Analyses Team Duo de Choc'!A34,Tableau3[Mois],'Analyses Team Duo de Choc'!$K$7,Tableau3[Négo],paramètres!$B$5)","v":0},{"$f":"COUNTIFS(Tableau3[Statut actuel],'Analyses Team Duo de Choc'!A34,Tableau3[Mois],'Analyses Team Duo de Choc'!$L$7,Tableau3[Négo],paramètres!$B$5)","v":0},{"$f":"COUNTIFS(Tableau3[Statut actuel],'Analyses Team Duo de Choc'!A34,Tableau3[Mois],'Analyses Team Duo de Choc'!$M$7,Tableau3[Négo],paramètres!$B$5)","v":0},0]
[{"$f":"IF(ISBLANK(paramètres!C16),\"\",paramètres!C16)","v":"Mandat"},{"$f":"COUNTIFS(Tableau3[Statut actuel],'Analyses Team Duo de Choc'!A35,Tableau3[Mois],'Analyses Team Duo de Choc'!$B$7,Tableau3[Négo],paramètres!$B$5)","v":0},{"$f":"COUNTIFS(Tableau3[Statut actuel],'Analyses Team Duo de Choc'!A35,Tableau3[Mois],'Analyses Team Duo de Choc'!$C$7,Tableau3[Négo],paramètres!$B$5)","v":1},{"$f":"COUNTIFS(Tableau3[Statut actuel],'Analyses Team Duo de Choc'!A35,Tableau3[Mois],'Analyses Team Duo de Choc'!$D$7,Tableau3[Négo],paramètres!$B$5)","v":0},{"$f":"COUNTIFS(Tableau3[Statut actuel],'Analyses Team Duo de Choc'!A35,Tableau3[Mois],'Analyses Team Duo de Choc'!$E$7,Tableau3[Négo],paramètres!$B$5)","v":0},{"$f":"COUNTIFS(Tableau3[Statut actuel],'Analyses Team Duo de Choc'!A35,Tableau3[Mois],'Analyses Team Duo de Choc'!$F$7,Tableau3[Négo],paramètres!$B$5)","v":0},{"$f":"COUNTIFS(Tableau3[Statut actuel],'Analyses Team Duo de Choc'!A35,Tableau3[Mois],'Analyses Team Duo de Choc'!$G$7,Tableau3[Négo],paramètres!$B$5)","v":0},{"$f":"COUNTIFS(Tableau3[Statut actuel],'Analyses Team Duo de Choc'!A35,Tableau3[Mois],'Analyses Team Duo de Choc'!$H$7,Tableau3[Négo],paramètres!$B$5)","v":0},{"$f":"COUNTIFS(Tableau3[Statut actuel],'Analyses Team Duo de Choc'!A35,Tableau3[Mois],'Analyses Team Duo de Choc'!$I$7,Tableau3[Négo],paramètres!$B$5)","v":0},{"$f":"COUNTIFS(Tableau3[Statut actuel],'Analyses Team Duo de Choc'!A35,Tableau3[Mois],'Analyses Team Duo de Choc'!$J$7,Tableau3[Négo],paramètres!$B$5)","v":0},{"$f":"COUNTIFS(Tableau3[Statut actuel],'Analyses Team Duo de Choc'!A35,Tableau3[Mois],'Analyses Team Duo de Choc'!$K$7,Tableau3[Négo],paramètres!$B$5)","v":0},{"$f":"COUNTIFS(Tableau3[Statut actuel],'Analyses Team Duo de Choc'!A35,Tableau3[Mois],'Analyses Team Duo de Choc'!$L$7,Tableau3[Négo],paramètres!$B$5)","v":0},{"$f":"COUNTIFS(Tableau3[Statut actuel],'Analyses Team Duo de Choc'!A35,Tableau3[Mois],'Analyses Team Duo de Choc'!$M$7,Tableau3[Négo],paramètres!$B$5)","v":0},1]
[]
["TOTAL",{"$f":"SUM(B24:B35)","v":0},{"$f":"SUM(C24:C35)","v":2},0,0,0,0,0,0,0,0,0,2,{"$f":"SUM(N24:N35)","v":4}]
[]
["Chiffre d'affaires du commercial"]
[null,"JANVIER","FEVRIER","MARS","AVRIL","MAI","JUIN","JUILLET","AOÛT","SEPTEMBRE","OCTOBRE","NOVEMBRE","DÉCEMBRE","TOTAL"]
[]
["COMPROMIS EN COURS"]
["Montant"]
["ACTES"]
["Montant"]
["VENTES ANNULEES"]
["Montant annulé"]
[]
["Somme CA "]
["Rappel sur objectif (mensualisé)"]
[]
["Cumul CA"]
["Cumul objectif"]
[]
[]
[]
[null,"Rappel objectif annuel du commercial:"]
[]
[null,"Pourcentage de l'objectif:"]

{"sheet":"paramètres","index":11,"n_rows":17,"n_cols":18,"rows_kept":17,"cut":false,"hidden":true,"merged":[]}
[null,null,null,null,null,null,null,null,null,1,null,null,null,null,null,null,null,"MdP"]
["A","B","C","D","E","F","G","H","I",2,null,null,null,null,null,null,null,"LENOIL"]
[null,null,null,null,null,null,null,null,null,3,null,null,null,null,null,null,null,"ENIAHPIT"]
["Sources","Commerciaux","Statut","Mois","Mois","Année","Choix",null,null,4,null,null,null,null,null,null,null,"ASSENAV"]
["Appel direct","Lionel","TEL, SMS",1,"JANVIER",2023,"Oui",null,null,5,null,null,null,null,null,null,null,"AELC"]
["e-mail","Tiphaine","Porte à porte",2,"FÉVRIER",2024,"Non",null,null,6,null,null,null,null,null,null,null,"CRAM"]
["Prospection","Vanessa","R1",3,"MARS",2025,null,null,null,7,null,null,null,null,null,null,null,"MAET"]
["Site Internet","Cléa","R2",4,"AVRIL",null,null,null,null,8,null,null,null,null,null,null,null,"ADMIN"]
["Appel agence","Marc","Estimation faite",5,"MAI",null,null,null,null,9]
[null,"Team Duo de Choc","Sous compromis",6,"JUIN",null,null,null,null,10]
[null,null,"Vendu",7,"JUILLET",null,null,null,null,11]
[null,null,"Vente annulée",8,"AOÛT",null,null,null,null,12]
[null,null,"Abandonné",9,"SEPTEMBRE",null,null,null,null,13]
[null,null,"Stand-by",10,"OCTOBRE",null,null,null,null,14]
[null,null,"Sans Suite",11,"NOVEMBRE",null,null,null,null,15]
[null,null,"Mandat",12,"DÉCEMBRE",null,null,null,null,16]
[null,null,null,null,null,null,null,null,null,17]